{"text_format":"2","workbook":"xlsx","n_sheets":1,"sheets":["Перечень"],"not_rendered":{"charts":0,"images":0,"macros":0,"external_links":0,"defined_names":20,"comments":0,"pivot_tables":0},"unopened":[],"bounds":{"document_bytes":16777216,"sheet_cells":100000,"run_cost":"one","rows_first":2000,"rows_last":500,"rows_between":2000,"halvings":0,"cell_chars":16384,"cell_head_chars":4096},"cells_cut":0,"cells_raw":0,"read":"whole","date_system":"1900"}

{"sheet":"Перечень","index":0,"n_rows":2821,"n_cols":11,"rows_kept":2821,"cut":false,"hidden":false,"merged":[[2682,7,2682,10],[2677,2,2679,2],[2677,3,2679,3],[2672,7,2672,10],[2673,7,2673,10],[1727,7,1727,8],[1727,9,1727,10],[1815,3,1816,3],[1815,2,1816,2],[1815,1,1816,1],[1816,7,1816,10],[1791,7,1791,10],[2804,7,2804,10],[2805,7,2805,10],[2806,7,2806,10],[2807,7,2807,10],[2685,1,2687,1],[2685,2,2687,2],[2685,3,2687,3],[2685,7,2685,10],[2686,7,2686,10],[2687,7,2687,10],[2688,1,2690,1],[2688,2,2690,2],[2688,3,2690,3],[2688,7,2688,10],[2689,7,2689,10],[2690,7,2690,10],[2674,1,2676,1],[2674,2,2676,2],[2674,3,2676,3],[2674,7,2674,10],[2675,7,2675,10],[2676,7,2676,10],[2677,1,2679,1],[2662,1,2664,1],[2662,2,2664,2],[2662,3,2664,3],[2662,7,2662,10],[2663,7,2663,10],[2664,7,2664,10],[2677,7,2677,10],[2678,7,2678,10],[2679,7,2679,10],[2680,1,2680,10],[2681,1,2684,1],[2681,2,2684,2],[2681,3,2684,3],[2681,7,2681,10],[2683,7,2683,10],[2684,7,2684,10],[2665,1,2667,1],[2665,2,2667,2],[2665,3,2667,3],[2665,7,2665,10],[2666,7,2666,10],[2667,7,2667,10],[2668,1,2670,1],[2668,2,2670,2],[2668,3,2670,3],[2668,7,2668,10],[2669,7,2669,10],[2670,7,2670,10],[2671,1,2673,1],[2671,2,2673,2],[2671,3,2673,3],[2671,7,2671,10],[2652,1,2652,10],[2653,1,2655,1],[2653,2,2655,2],[2653,3,2655,3],[2653,7,2653,10],[2655,7,2655,10],[2656,1,2658,1],[2656,2,2658,2],[2656,3,2658,3],[2656,7,2656,10],[2657,7,2657,10],[2658,7,2658,10],[2659,1,2661,1],[2659,2,2661,2],[2659,3,2661,3],[2659,7,2659,10],[2660,7,2660,10],[2661,7,2661,10],[2654,7,2654,10],[2636,1,2639,1],[2636,2,2639,2],[2636,3,2639,3],[2636,7,2636,10],[2637,7,2637,10],[2638,7,2638,10],[2639,7,2639,10],[2640,1,2643,1],[2640,2,2643,2],[2640,3,2643,3],[2640,7,2640,10],[2641,7,2641,10],[2642,7,2642,10],[2643,7,2643,10],[2648,1,2651,1],[2648,2,2651,2],[2648,3,2651,3],[2648,7,2648,10],[2649,7,2649,10],[2650,7,2650,10],[2651,7,2651,10],[2624,1,2627,1],[2624,2,2627,2],[2624,3,2627,3],[2624,7,2624,10],[2625,7,2625,10],[2626,7,2626,10],[2627,7,2627,10],[2628,1,2631,1],[2628,2,2631,2],[2628,3,2631,3],[2628,7,2628,10],[2629,7,2629,10],[2630,7,2630,10],[2631,7,2631,10],[2632,1,2635,1],[2632,2,2635,2],[2632,3,2635,3],[2632,7,2632,10],[2633,7,2633,10],[2634,7,2634,10],[2635,7,2635,10],[2613,1,2615,1],[2613,2,2615,2],[2613,3,2615,3],[2613,7,2613,10],[2614,7,2614,10],[2615,7,2615,10],[2616,1,2619,1],[2616,2,2619,2],[2616,3,2619,3],[2616,7,2616,10],[2617,7,2617,10],[2618,7,2618,10],[2619,7,2619,10],[2620,1,2623,1],[2620,2,2623,2],[2620,3,2623,3],[2620,7,2620,10],[2621,7,2621,10],[2622,7,2622,10],[2623,7,2623,10],[2600,7,2600,10],[2601,1,2604,1],[2601,2,2604,2],[2601,3,2604,3],[2601,7,2601,10],[2602,7,2602,10],[2603,7,2603,10],[2604,7,2604,10],[2605,1,2608,1],[2605,2,2608,2],[2605,3,2608,3],[2605,7,2605,10],[2606,7,2606,10],[2607,7,2607,10],[2608,7,2608,10],[2609,1,2612,1],[2609,2,2612,2],[2609,3,2612,3],[2609,7,2609,10],[2610,7,2610,10],[2611,7,2611,10],[2612,7,2612,10],[2578,1,2580,1],[2578,2,2580,2],[2578,3,2580,3],[2578,7,2578,10],[2579,7,2579,10],[2580,7,2580,10],[2581,1,2583,1],[2581,2,2583,2],[2581,3,2583,3],[2581,7,2581,10],[2582,7,2582,10],[2583,7,2583,10],[2584,1,2586,1],[2584,2,2586,2],[2584,3,2586,3],[2584,7,2584,10],[2585,7,2585,10],[2586,7,2586,10],[2569,1,2571,1],[2569,2,2571,2],[2569,3,2571,3],[2569,7,2569,10],[2570,7,2570,10],[2571,7,2571,10],[2572,1,2574,1],[2572,2,2574,2],[2572,3,2574,3],[2572,7,2572,10],[2573,7,2573,10],[2574,7,2574,10],[2575,1,2577,1],[2575,2,2577,2],[2575,3,2577,3],[2575,7,2575,10],[2576,7,2576,10],[2577,7,2577,10],[2560,1,2562,1],[2560,2,2562,2],[2560,3,2562,3],[2560,7,2560,10],[2561,7,2561,10],[2562,7,2562,10],[2563,1,2565,1],[2563,2,2565,2],[2563,3,2565,3],[2563,7,2563,10],[2564,7,2564,10],[2565,7,2565,10],[2566,1,2568,1],[2566,2,2568,2],[2566,3,2568,3],[2566,7,2566,10],[2567,7,2567,10],[2568,7,2568,10],[2551,1,2553,1],[2551,2,2553,2],[2551,3,2553,3],[2551,7,2551,10],[2552,7,2552,10],[2553,7,2553,10],[2554,1,2556,1],[2554,2,2556,2],[2554,3,2556,3],[2554,7,2554,10],[2555,7,2555,10],[2556,7,2556,10],[2557,1,2559,1],[2557,2,2559,2],[2557,3,2559,3],[2557,7,2557,10],[2558,7,2558,10],[2559,7,2559,10],[2542,1,2544,1],[2542,2,2544,2],[2542,3,2544,3],[2542,7,2542,10],[2543,7,2543,10],[2544,7,2544,10],[2545,1,2547,1],[2545,2,2547,2],[2545,3,2547,3],[2545,7,2545,10],[2546,7,2546,10],[2547,7,2547,10],[2548,1,2550,1],[2548,2,2550,2],[2548,3,2550,3],[2548,7,2548,10],[2549,7,2549,10],[2550,7,2550,10],[2533,1,2535,1],[2533,2,2535,2],[2533,3,2535,3],[2533,7,2533,10],[2534,7,2534,10],[2535,7,2535,10],[2536,1,2538,1],[2536,2,2538,2],[2536,3,2538,3],[2536,7,2536,10],[2537,7,2537,10],[2538,7,2538,10],[2539,1,2541,1],[2539,2,2541,2],[2539,3,2541,3],[2539,7,2539,10],[2540,7,2540,10],[2541,7,2541,10],[2527,1,2529,1],[2527,2,2529,2],[2527,3,2529,3],[2527,7,2527,10],[2528,7,2528,10],[2529,7,2529,10],[2530,1,2532,1],[2530,2,2532,2],[2530,3,2532,3],[2530,7,2530,10],[2531,7,2531,10],[2532,7,2532,10],[2524,1,2526,1],[2524,2,2526,2],[2524,3,2526,3],[2524,7,2524,10],[2525,7,2525,10],[2526,7,2526,10],[2515,1,2517,1],[2515,2,2517,2],[2515,3,2517,3],[2515,7,2515,10],[2516,7,2516,10],[2517,7,2517,10],[2518,1,2520,1],[2518,2,2520,2],[2518,3,2520,3],[2518,7,2518,10],[2519,7,2519,10],[2520,7,2520,10],[2521,1,2523,1],[2521,2,2523,2],[2521,3,2523,3],[2521,7,2521,10],[2522,7,2522,10],[2523,7,2523,10],[2506,1,2507,1],[2506,2,2507,2],[2506,3,2507,3],[2506,7,2506,10],[2507,7,2507,10],[2508,1,2508,10],[2509,1,2511,1],[2509,2,2511,2],[2509,3,2511,3],[2510,7,2510,10],[2511,7,2511,10],[2509,7,2509,10],[2512,1,2514,1],[2512,2,2514,2],[2512,3,2514,3],[2512,7,2512,10],[2513,7,2513,10],[2514,7,2514,10],[2498,1,2499,1],[2498,2,2499,2],[2498,3,2499,3],[2498,7,2498,10],[2499,7,2499,10],[2500,1,2501,1],[2500,2,2501,2],[2500,3,2501,3],[2500,7,2500,10],[2501,7,2501,10],[2502,1,2503,1],[2502,2,2503,2],[2502,3,2503,3],[2502,7,2502,10],[2503,7,2503,10],[2504,1,2505,1],[2504,2,2505,2],[2504,3,2505,3],[2504,7,2504,10],[2505,7,2505,10],[2490,1,2491,1],[2490,2,2491,2],[2490,3,2491,3],[2490,7,2490,10],[2491,7,2491,10],[2492,1,2493,1],[2492,2,2493,2],[2492,3,2493,3],[2492,7,2492,10],[2493,7,2493,10],[2494,1,2495,1],[2494,2,2495,2],[2494,3,2495,3],[2494,7,2494,10],[2495,7,2495,10],[2496,1,2497,1],[2496,2,2497,2],[2496,3,2497,3],[2496,7,2496,10],[2497,7,2497,10],[2482,1,2483,1],[2482,2,2483,2],[2482,3,2483,3],[2482,7,2482,10],[2483,7,2483,10],[2484,1,2485,1],[2484,2,2485,2],[2484,3,2485,3],[2484,7,2484,10],[2485,7,2485,10],[2486,1,2487,1],[2486,2,2487,2],[2486,3,2487,3],[2486,7,2486,10],[2487,7,2487,10],[2488,1,2489,1],[2488,2,2489,2],[2488,3,2489,3],[2488,7,2488,10],[2489,7,2489,10],[2474,1,2475,1],[2474,2,2475,2],[2474,3,2475,3],[2474,7,2474,10],[2475,7,2475,10],[2476,1,2477,1],[2476,2,2477,2],[2476,3,2477,3],[2476,7,2476,10],[2477,7,2477,10],[2478,1,2479,1],[2478,2,2479,2],[2478,3,2479,3],[2478,7,2478,10],[2479,7,2479,10],[2480,1,2481,1],[2480,2,2481,2],[2480,3,2481,3],[2480,7,2480,10],[2481,7,2481,10],[2466,1,2467,1],[2466,2,2467,2],[2466,3,2467,3],[2466,7,2466,10],[2467,7,2467,10],[2468,1,2469,1],[2468,2,2469,2],[2468,3,2469,3],[2468,7,2468,10],[2469,7,2469,10],[2470,1,2471,1],[2470,2,2471,2],[2470,3,2471,3],[2470,7,2470,10],[2471,7,2471,10],[2472,1,2473,1],[2472,2,2473,2],[2472,3,2473,3],[2472,7,2472,10],[2473,7,2473,10],[2458,1,2459,1],[2458,2,2459,2],[2458,3,2459,3],[2458,7,2458,10],[2459,7,2459,10],[2460,1,2461,1],[2460,2,2461,2],[2460,3,2461,3],[2460,7,2460,10],[2461,7,2461,10],[2462,1,2463,1],[2462,2,2463,2],[2462,3,2463,3],[2462,7,2462,10],[2463,7,2463,10],[2464,1,2465,1],[2464,2,2465,2],[2464,3,2465,3],[2464,7,2464,10],[2465,7,2465,10],[2450,1,2451,1],[2450,2,2451,2],[2450,3,2451,3],[2450,7,2450,10],[2451,7,2451,10],[2452,1,2453,1],[2452,2,2453,2],[2452,3,2453,3],[2452,7,2452,10],[2453,7,2453,10],[2454,1,2455,1],[2454,2,2455,2],[2454,3,2455,3],[2454,7,2454,10],[2455,7,2455,10],[2456,1,2457,1],[2456,2,2457,2],[2456,3,2457,3],[2456,7,2456,10],[2457,7,2457,10],[2442,1,2443,1],[2442,2,2443,2],[2442,3,2443,3],[2442,7,2442,10],[2443,7,2443,10],[2444,1,2445,1],[2444,2,2445,2],[2444,3,2445,3],[2444,7,2444,10],[2445,7,2445,10],[2446,1,2447,1],[2446,2,2447,2],[2446,3,2447,3],[2446,7,2446,10],[2447,7,2447,10],[2448,1,2449,1],[2448,2,2449,2],[2448,3,2449,3],[2448,7,2448,10],[2449,7,2449,10],[2434,1,2435,1],[2434,2,2435,2],[2434,3,2435,3],[2434,7,2434,10],[2435,7,2435,10],[2436,1,2437,1],[2436,2,2437,2],[2436,3,2437,3],[2436,7,2436,10],[2437,7,2437,10],[2438,1,2439,1],[2438,2,2439,2],[2438,3,2439,3],[2438,7,2438,10],[2439,7,2439,10],[2440,1,2441,1],[2440,2,2441,2],[2440,3,2441,3],[2440,7,2440,10],[2441,7,2441,10],[2426,1,2427,1],[2426,2,2427,2],[2426,3,2427,3],[2426,7,2426,10],[2427,7,2427,10],[2428,1,2429,1],[2428,2,2429,2],[2428,3,2429,3],[2428,7,2428,10],[2429,7,2429,10],[2430,1,2431,1],[2430,2,2431,2],[2430,3,2431,3],[2430,7,2430,10],[2431,7,2431,10],[2432,1,2433,1],[2432,2,2433,2],[2432,3,2433,3],[2432,7,2432,10],[2433,7,2433,10],[2418,1,2419,1],[2418,2,2419,2],[2418,3,2419,3],[2418,7,2418,10],[2419,7,2419,10],[2420,1,2421,1],[2420,2,2421,2],[2420,3,2421,3],[2420,7,2420,10],[2421,7,2421,10],[2422,1,2423,1],[2422,2,2423,2],[2422,3,2423,3],[2422,7,2422,10],[2423,7,2423,10],[2424,1,2425,1],[2424,2,2425,2],[2424,3,2425,3],[2424,7,2424,10],[2425,7,2425,10],[2409,7,2409,10],[2410,1,2411,1],[2410,2,2411,2],[2410,3,2411,3],[2410,7,2410,10],[2411,7,2411,10],[2412,1,2413,1],[2412,2,2413,2],[2412,3,2413,3],[2412,7,2412,10],[2413,7,2413,10],[2414,1,2415,1],[2414,2,2415,2],[2414,3,2415,3],[2414,7,2414,10],[2415,7,2415,10],[2416,1,2417,1],[2416,2,2417,2],[2416,3,2417,3],[2416,7,2416,10],[2417,7,2417,10],[1701,3,1704,3],[1701,7,1701,10],[1702,7,1702,10],[1703,7,1703,10],[1704,7,1704,10],[1705,1,1706,1],[1705,2,1706,2],[1705,3,1706,3],[1705,7,1705,10],[1706,7,1706,10],[2404,1,2405,1],[2404,2,2405,2],[2404,3,2405,3],[2404,7,2404,10],[2405,7,2405,10],[2376,7,2376,10],[2377,1,2379,1],[2377,2,2379,2],[2377,3,2379,3],[2381,1,2382,1],[2381,2,2382,2],[2381,3,2382,3],[2394,7,2394,10],[2403,1,2403,10],[2392,7,2392,10],[2388,7,2388,10],[2389,7,2389,10],[2390,7,2390,10],[2391,7,2391,10],[2386,7,2386,10],[2387,7,2387,10],[2384,7,2384,10],[668,7,668,10],[669,7,669,10],[670,7,670,10],[1617,1,1627,1],[1617,2,1627,2],[1617,3,1627,3],[1634,1,1636,1],[1634,2,1636,2],[1634,3,1636,3],[1683,7,1683,10],[1693,1,1695,1],[1693,2,1695,2],[1693,3,1695,3],[1696,1,1700,1],[1696,2,1700,2],[1696,3,1700,3],[1696,7,1696,10],[1697,7,1697,10],[1698,7,1698,10],[1699,7,1699,10],[1700,7,1700,10],[732,1,733,1],[732,2,733,2],[1673,1,1675,1],[1673,2,1675,2],[1673,3,1675,3],[1673,7,1673,10],[1674,7,1674,10],[1675,7,1675,10],[1672,7,1672,10],[1670,7,1670,10],[1671,1,1672,1],[653,7,653,10],[654,7,654,10],[655,1,660,1],[655,2,660,2],[655,3,660,3],[655,7,655,10],[656,7,656,10],[657,7,657,10],[658,7,658,10],[659,7,659,10],[660,7,660,10],[661,1,667,1],[661,2,667,2],[661,3,667,3],[661,7,661,10],[662,7,662,10],[663,7,663,10],[664,7,664,10],[665,7,665,10],[666,7,666,10],[667,7,667,10],[638,7,638,10],[639,7,639,10],[640,1,642,1],[640,2,642,2],[640,3,642,3],[640,7,640,10],[641,7,641,10],[642,7,642,10],[643,7,643,10],[644,7,644,10],[645,7,645,10],[646,1,647,1],[646,2,647,2],[646,3,647,3],[646,7,646,10],[647,7,647,10],[648,1,652,1],[648,2,652,2],[648,3,652,3],[648,7,648,10],[649,7,649,10],[650,7,650,10],[651,7,651,10],[652,7,652,10],[626,7,626,10],[627,1,628,1],[627,2,628,2],[627,3,628,3],[627,7,627,10],[628,7,628,10],[629,1,634,1],[629,2,634,2],[629,3,634,3],[629,7,629,10],[630,7,630,10],[631,7,631,10],[632,7,632,10],[633,7,633,10],[634,7,634,10],[635,7,635,10],[636,1,637,1],[636,2,637,2],[636,3,637,3],[636,7,636,10],[637,7,637,10],[618,1,619,1],[618,2,619,2],[618,3,619,3],[618,7,618,10],[619,7,619,10],[620,1,623,1],[620,2,623,2],[620,3,623,3],[620,7,620,10],[621,7,621,10],[622,7,622,10],[623,7,623,10],[624,1,625,1],[624,2,625,2],[624,3,625,3],[624,7,624,10],[625,7,625,10],[607,7,607,10],[608,7,608,10],[609,1,610,1],[609,2,610,2],[609,3,610,3],[609,7,609,10],[610,7,610,10],[611,1,613,1],[611,2,613,2],[611,3,613,3],[611,7,611,10],[612,7,612,10],[613,7,613,10],[614,7,614,10],[615,1,617,1],[615,2,617,2],[615,3,617,3],[615,7,615,10],[616,7,616,10],[617,7,617,10],[591,7,591,10],[592,1,593,1],[592,2,593,2],[592,3,593,3],[592,7,592,10],[593,7,593,10],[594,7,594,10],[595,1,606,1],[595,2,606,2],[595,3,606,3],[595,7,595,10],[596,7,596,10],[597,7,597,10],[598,7,598,10],[599,7,599,10],[600,7,600,10],[601,7,601,10],[602,7,602,10],[603,7,603,10],[604,7,604,10],[605,7,605,10],[606,7,606,10],[580,1,584,1],[580,2,584,2],[580,3,584,3],[580,7,580,10],[581,7,581,10],[582,7,582,10],[583,7,583,10],[584,7,584,10],[585,7,585,10],[586,7,586,10],[587,7,587,10],[588,1,590,1],[588,2,590,2],[588,3,590,3],[588,7,588,10],[589,7,589,10],[590,7,590,10],[570,1,572,1],[570,2,572,2],[570,3,572,3],[570,7,570,10],[571,7,571,10],[572,7,572,10],[573,1,574,1],[573,2,574,2],[573,3,574,3],[573,7,573,10],[574,7,574,10],[575,7,575,10],[576,1,579,1],[576,2,579,2],[576,3,579,3],[576,7,576,10],[577,7,577,10],[578,7,578,10],[579,7,579,10],[558,1,560,1],[558,2,560,2],[558,3,560,3],[558,7,558,10],[559,7,559,10],[560,7,560,10],[561,1,562,1],[561,2,562,2],[561,3,562,3],[561,7,561,10],[562,7,562,10],[563,7,563,10],[564,1,569,1],[564,2,569,2],[564,3,569,3],[564,7,564,10],[565,7,565,10],[566,7,566,10],[567,7,567,10],[568,7,568,10],[569,7,569,10],[547,1,550,1],[547,2,550,2],[547,3,550,3],[547,7,547,10],[548,7,548,10],[549,7,549,10],[550,7,550,10],[551,7,551,10],[552,1,553,1],[552,2,553,2],[552,3,553,3],[552,7,552,10],[553,7,553,10],[554,1,557,1],[554,2,557,2],[554,3,557,3],[554,7,554,10],[555,7,555,10],[556,7,556,10],[557,7,557,10],[535,1,541,1],[535,2,541,2],[535,3,541,3],[535,7,535,10],[536,7,536,10],[537,7,537,10],[538,7,538,10],[539,7,539,10],[540,7,540,10],[541,7,541,10],[542,1,544,1],[542,2,544,2],[542,3,544,3],[542,7,542,10],[543,7,543,10],[544,7,544,10],[545,1,546,1],[545,2,546,2],[545,3,546,3],[545,7,545,10],[546,7,546,10],[523,1,524,1],[523,2,524,2],[523,3,524,3],[523,7,523,10],[524,7,524,10],[525,1,528,1],[525,2,528,2],[525,3,528,3],[525,7,525,10],[526,7,526,10],[527,7,527,10],[528,7,528,10],[529,1,534,1],[529,2,534,2],[529,3,534,3],[529,7,529,10],[530,7,530,10],[531,7,531,10],[532,7,532,10],[533,7,533,10],[534,7,534,10],[512,1,513,1],[512,2,513,2],[512,3,513,3],[512,7,512,10],[513,7,513,10],[514,7,514,10],[515,1,522,1],[515,2,522,2],[515,3,522,3],[515,7,515,10],[516,7,516,10],[517,7,517,10],[518,7,518,10],[519,7,519,10],[520,7,520,10],[521,7,521,10],[522,7,522,10],[498,1,502,1],[498,2,502,2],[498,3,502,3],[498,7,498,10],[499,7,499,10],[500,7,500,10],[501,7,501,10],[502,7,502,10],[503,7,503,10],[504,7,504,10],[505,7,505,10],[506,1,511,1],[506,2,511,2],[506,3,511,3],[506,7,506,10],[507,7,507,10],[508,7,508,10],[509,7,509,10],[510,7,510,10],[511,7,511,10],[487,7,487,10],[488,1,492,1],[488,2,492,2],[488,3,492,3],[488,7,488,10],[489,7,489,10],[490,7,490,10],[491,7,491,10],[492,7,492,10],[493,1,497,1],[493,2,497,2],[493,3,497,3],[493,7,493,10],[494,7,494,10],[495,7,495,10],[496,7,496,10],[497,7,497,10],[472,7,472,10],[473,1,484,1],[473,2,484,2],[473,3,484,3],[473,7,473,10],[474,7,474,10],[475,7,475,10],[476,7,476,10],[477,7,477,10],[478,7,478,10],[479,7,479,10],[480,7,480,10],[481,7,481,10],[482,7,482,10],[483,7,483,10],[484,7,484,10],[485,1,486,1],[485,2,486,2],[485,3,486,3],[485,7,485,10],[486,7,486,10],[460,7,460,10],[461,1,462,1],[461,2,462,2],[461,3,462,3],[461,7,461,10],[462,7,462,10],[463,1,466,1],[463,2,466,2],[463,3,466,3],[463,7,463,10],[464,7,464,10],[465,7,465,10],[466,7,466,10],[467,7,467,10],[468,1,471,1],[468,2,471,2],[468,3,471,3],[468,7,468,10],[469,7,469,10],[470,7,470,10],[471,7,471,10],[449,7,449,10],[450,7,450,10],[451,1,454,1],[451,2,454,2],[451,3,454,3],[451,7,451,10],[452,7,452,10],[453,7,453,10],[454,7,454,10],[455,1,458,1],[455,2,458,2],[455,3,458,3],[455,7,455,10],[456,7,456,10],[457,7,457,10],[458,7,458,10],[459,7,459,10],[441,1,442,1],[441,2,442,2],[441,3,442,3],[441,7,441,10],[442,7,442,10],[443,1,446,1]],"merged_total":4858,"flags":["merged_cut"]}
[{"$nulls":9},"Приложение к распоряжению                                                                                                                                                                                                     Комитета по государственному заказу Санкт-Петербурга                                                                          от __________ № ____________"]
[null,"ПЕРЕЧЕНЬ\nотдельных видов товаров, работ, услуг, в отношении которых определяются требования к их потребительским свойствам\n(в том числе характеристикам качества) и иным характеристикам (в том числе предельные цены товаров, работ, услуг)"]
[null,"№ п/п","Код по ОКПД2","Наименование отдельного вида товаров, работ, услуг","Требования к потребительским свойствам (в том числе характеристикам качества) и иным характеристикам (в том числе предельные цены) отдельных видов товаров, работ, услуг"]
[{"$nulls":4},"Характеристика","Единица измерения",null,"Значение характеристики"]
[{"$nulls":5},"Код по ОКЕИ","Наименование","Для государственных гражданских служащих государственных органов Санкт-Петербурга, относящихся к категории «руководители», руководителя органа управления территориальным государственным внебюджетным фондом, руководителей унитарных предприятий \nСанкт-Петербурга","Для руководителей казенных и бюджетных учреждений","Для иных должностей","Без учета категорий и (или) групп должностей работников государственных учреждений"]
[null,1,2,3,4,5,6,7,8,9,10]
[null,"2. Перечень отдельных видов товаров, работ, услуг, определенный Правительством Санкт-Петербурга"]
[{"$nulls":4},"В соответствии с кодом конечного каталожного наименования (ККН)",null,null,"Предельная цена (руб. с НДС)"]
[null,1,2,3,4,5,6,7,8,9,10]
[null,28,"49.32.12","Услуги арендованных легковых автомобилей с водителем в Москве","49.32.12.000-001",356,"Час",1550,null,"-"]
[null,29,"49.32.12","Услуги арендованных легковых автомобилей с водителем в Санкт-Петербурге","49.32.12.000-003",356,"Час",1500,null,"-"]
[{"$nulls":4},"49.32.12.000-004",356,"Час","-",null,1000]
[null,30,"56.29.20","Услуги столовых. Пояснение по требуемой продукции: услуги школьных столовых и кухонь","56.29.20.120-100",796,"Штука",117.6]
[{"$nulls":4},"56.29.20.120-101",796,"Штука",176.4]
[{"$nulls":4},"56.29.20.120-102",796,"Штука",294]
[{"$nulls":4},"56.29.20.120-103",796,"Штука",152.80000000000001]
[{"$nulls":4},"56.29.20.120-104",796,"Штука",229.2]
[{"$nulls":4},"56.29.20.120-105",796,"Штука",382]
[{"$nulls":4},"56.29.20.120-106",796,"Штука",172.1]
[{"$nulls":4},"56.29.20.120-107",796,"Штука",258.10000000000002]
[{"$nulls":4},"56.29.20.120-108",796,"Штука",430.2]
[{"$nulls":4},"56.29.20.120-109",796,"Штука",99.9]
[{"$nulls":4},"56.29.20.120-110",796,"Штука",149.80000000000001]
[{"$nulls":4},"56.29.20.120-111",796,"Штука",249.7]
[{"$nulls":4},"56.29.20.120-112",796,"Штука","х"]
[{"$nulls":4},"56.29.20.120-113",796,"Штука","х"]
[{"$nulls":4},"56.29.20.120-114",796,"Штука","х"]
[{"$nulls":4},"56.29.20.120-115",796,"Штука","х"]
[{"$nulls":4},"56.29.20.120-116",796,"Штука","х"]
[{"$nulls":4},"56.29.20.120-117",796,"Штука","х"]
[{"$nulls":4},"56.29.20.120-118",796,"Штука","х"]
[{"$nulls":4},"56.29.20.120-119",796,"Штука","х"]
[{"$nulls":4},"56.29.20.120-120",796,"Штука","х"]
[{"$nulls":4},"56.29.20.120-121",796,"Штука","х"]
[{"$nulls":4},"56.29.20.120-122",796,"Штука","х"]
[{"$nulls":4},"56.29.20.120-123",796,"Штука","х"]
[null,31,"56.29.20","Услуги столовых. Пояснение по требуемой продукции: услуги дошкольных столовых и кухонь","56.29.20.190-053",796,"Штука",82.92]
[{"$nulls":4},"56.29.20.190-054",796,"Штука",20.73]
[{"$nulls":4},"56.29.20.190-055",796,"Штука",145.11000000000001]
[{"$nulls":4},"56.29.20.190-056",796,"Штука",62.19]
[{"$nulls":4},"56.29.20.190-057",796,"Штука",82.92]
[{"$nulls":4},"56.29.20.190-058",796,"Штука",310.94]
[{"$nulls":4},"56.29.20.190-059",796,"Штука",373.13]
[{"$nulls":4},"56.29.20.190-060",796,"Штука",393.86]
[{"$nulls":4},"56.29.20.190-061",796,"Штука",414.58]
[{"$nulls":4},"56.29.20.190-062",796,"Штука",106.96]
[{"$nulls":4},"56.29.20.190-063",796,"Штука",26.74]
[{"$nulls":4},"56.29.20.190-064",796,"Штука",187.19]
[{"$nulls":4},"56.29.20.190-065",796,"Штука",80.22]
[{"$nulls":4},"56.29.20.190-066",796,"Штука",106.96]
[{"$nulls":4},"56.29.20.190-067",796,"Штука",401.13]
[{"$nulls":4},"56.29.20.190-068",796,"Штука",481.35]
[{"$nulls":4},"56.29.20.190-069",796,"Штука",508.09]
[{"$nulls":4},"56.29.20.190-070",796,"Штука",534.83000000000004]
[{"$nulls":4},"56.29.20.190-071",796,"Штука",573.48]
[{"$nulls":4},"56.29.20.190-072",796,"Штука",605.33000000000004]
[{"$nulls":4},"56.29.20.190-073",796,"Штука",792.41]
[{"$nulls":4},"56.29.20.190-074",796,"Штука",836.44]
[{"$nulls":4},"56.29.20.190-075",796,"Штука",726.87]
[{"$nulls":4},"56.29.20.190-076",796,"Штука",767.26]
[{"$nulls":4},"56.29.20.190-077",796,"Штука",701.72]
[{"$nulls":4},"56.29.20.190-078",796,"Штука",740.7]
[{"$nulls":4},"56.29.20.190-001",796,"Штука","х"]
[{"$nulls":4},"56.29.20.190-002",796,"Штука","х"]
[{"$nulls":4},"56.29.20.190-003",796,"Штука","х"]
[{"$nulls":4},"56.29.20.190-004",796,"Штука","х"]
[{"$nulls":4},"56.29.20.190-005",796,"Штука","х"]
[{"$nulls":4},"56.29.20.190-006",796,"Штука","х"]
[{"$nulls":4},"56.29.20.190-007",796,"Штука","х"]
[{"$nulls":4},"56.29.20.190-008",796,"Штука","х"]
[{"$nulls":4},"56.29.20.190-009",796,"Штука","х"]
[{"$nulls":4},"56.29.20.190-010",796,"Штука","х"]
[{"$nulls":4},"56.29.20.190-011",796,"Штука","х"]
[{"$nulls":4},"56.29.20.190-012",796,"Штука","х"]
[{"$nulls":4},"56.29.20.190-013",796,"Штука","х"]
[{"$nulls":4},"56.29.20.190-014",796,"Штука","х"]
[{"$nulls":4},"56.29.20.190-015",796,"Штука","х"]
[{"$nulls":4},"56.29.20.190-016",796,"Штука","х"]
[{"$nulls":4},"56.29.20.190-017",796,"Штука","х"]
[{"$nulls":4},"56.29.20.190-018",796,"Штука","х"]
[{"$nulls":4},"56.29.20.190-019",796,"Штука","х"]
[{"$nulls":4},"56.29.20.190-020",796,"Штука","х"]
[{"$nulls":4},"56.29.20.190-021",796,"Штука","х"]
[{"$nulls":4},"56.29.20.190-022",796,"Штука","х"]
[{"$nulls":4},"56.29.20.190-023",796,"Штука","х"]
[{"$nulls":4},"56.29.20.190-024",796,"Штука","х"]
[{"$nulls":4},"56.29.20.190-025",796,"Штука","х"]
[{"$nulls":4},"56.29.20.190-026",796,"Штука","х"]
[null,32,"69.10.19","Услуги юридические прочие. Пояснение по требуемым услугам: услуги независимых экспертов, включаемых в составы аттестационной и конкурсной комиссий, образуемых в государственном органе Санкт-Петербурга","-",356,"Час","Не более 150",null,null,"-"]
[null,"2.1. Перечень товарных позиций части «Продовольственные товары и сырье»"]
[{"$nulls":4},"В соответствии с кодом конечного каталожного наименования (ККН)",null,null,"Предельная цена (руб. с НДС)"]
[null,33,"01.11.61","Фасоль овощная","01.11.61.000-001",166,"Килограмм",1997.36]
[null,34,"01.11.71","Фасоль сушеная. Пояснение по требуемой продукции: фасоль продовольственная","01.11.71.110-001",166,"Килограмм",240.38]
[{"$nulls":4},"01.11.71.110-003",166,"Килограмм",240.38]
[{"$nulls":4},"01.11.71.110-004",166,"Килограмм",240.38]
[null,35,"01.11.74","Чечевица сушеная. Пояснение по требуемой продукции: чечевица продовольственная","01.11.74.110-001",166,"Килограмм",245.84]
[{"$nulls":4},"01.11.74.110-003",166,"Килограмм",245.84]
[{"$nulls":4},"01.11.74.110-004",166,"Килограмм",245.84]
[{"$nulls":4},"01.11.74.110-005",166,"Килограмм",245.84]
[{"$nulls":4},"01.11.74.110-006",166,"Килограмм",245.84]
[null,36,"01.11.75","Горох сушеный. Пояснение по требуемой продукции: горох шлифованный","01.11.75.110-001",166,"Килограмм",82.28]
[{"$nulls":4},"01.11.75.110-002",166,"Килограмм",67.14]
[null,37,"01.11.83","Арахис (орех земляной) лущеный","01.11.83.000-001",166,"Килограмм",330.66]
[null,38,"01.13.12","Капуста. Пояснение по требуемой продукции: капуста белокочанная","01.13.12.120-001",166,"Килограмм",43.63]
[{"$nulls":4},"01.13.12.120-002",166,"Килограмм",101.7]
[null,39,"01.13.12","Капуста. Пояснение по требуемой продукции: капуста брюссельская","01.13.12.110-001",166,"Килограмм",985.04]
[null,40,"01.13.12","Капуста. Пояснение по требуемой продукции: капуста китайская","01.13.12.150-001",166,"Килограмм",156.72]
[null,41,"01.13.12","Капуста. Пояснение по требуемой продукции: капуста кольраби","01.13.12.160-001",166,"Килограмм",413.14]
[null,42,"01.13.12","Капуста. Пояснение по требуемой продукции: капуста краснокочанная","01.13.12.130-001",166,"Килограмм",112.27]
[null,43,"01.13.12","Капуста. Пояснение по требуемой продукции: капуста савойская","01.13.12.140-001",166,"Килограмм",246.66]
[null,44,"01.13.13","Капуста цветная и брокколи. Пояснение по требуемой продукции: капуста брокколи","01.13.13.000-001",166,"Килограмм",391.8]
[null,45,"01.13.13","Капуста цветная и брокколи. Пояснение по требуемой продукции: капуста цветная","01.13.13.000-002",166,"Килограмм",248.7]
[{"$nulls":4},"01.13.13.000-003",166,"Килограмм",248.7]
[null,46,"01.13.16","Шпинат","01.13.16.000-001",166,"Килограмм",648.80999999999995]
[null,47,"01.13.19","Овощи листовые или стебельные прочие. Пояснение по требуемой продукции: петрушка свежая","01.13.19.000-001",166,"Килограмм",478.83]
[null,48,"01.13.19","Овощи листовые или стебельные прочие. Пояснение по требуемой продукции: сельдерей","01.13.19.000-003",166,"Килограмм",417.56]
[null,49,"01.13.19","Овощи листовые или стебельные прочие. Пояснение по требуемой продукции: укроп свежий","01.13.19.000-002",166,"Килограмм",504.06]
[null,50,"01.13.19","Овощи листовые или стебельные прочие. Пояснение по требуемой продукции: щавель","01.13.19.000-005",166,"Килограмм",601.26]
[null,51,"01.13.19","Овощи листовые или стебельные прочие. Пояснение по требуемой продукции: базилик свежий","01.13.19.000-006",166,"Килограмм",4214.83]
[null,52,"01.13.19","Овощи листовые или стебельные прочие. Пояснение по требуемой продукции: кориандр свежий (кинза)","01.13.19.000-007",166,"Килограмм",934.49]
[null,53,"01.13.21","Арбузы","01.13.21.000-001",166,"Килограмм",148.1]
[null,54,"01.13.29","Культуры бахчевые прочие. Пояснение по требуемой продукции: дыня","01.13.29.000-001",166,"Килограмм",388.96]
[null,55,"01.13.32","Огурцы","01.13.32.000-002",166,"Килограмм",199.62]
[{"$nulls":4},"01.13.32.000-004",166,"Килограмм",199.62]
[{"$nulls":4},"01.13.32.000-005",166,"Килограмм",199.62]
[{"$nulls":4},"01.13.32.000-003",166,"Килограмм",220.75]
[{"$nulls":4},"01.13.32.000-006",166,"Килограмм",220.75]
[{"$nulls":4},"01.13.32.000-007",166,"Килограмм",220.75]
[null,56,"01.13.33","Баклажаны","01.13.33.000-001",166,"Килограмм",273.11]
[null,57,"01.13.34","Томаты (помидоры)","01.13.34.000-001",166,"Килограмм",280.97000000000003]
[{"$nulls":4},"01.13.34.000-003",166,"Килограмм",280.97000000000003]
[{"$nulls":4},"01.13.34.000-002",166,"Килограмм",249.66]
[{"$nulls":4},"01.13.34.000-004",166,"Килограмм",249.66]
[null,58,"01.13.39","Культуры овощные плодовые прочие, не включенные в другие группировки. Пояснение по требуемой продукции: кабачки","01.13.39.110-001",166,"Килограмм",298.11]
[{"$nulls":4},"01.13.39.110-002",166,"Килограмм",235.72]
[null,59,"01.13.39","Культуры овощные плодовые прочие, не включенные в другие группировки. Пояснение по требуемой продукции: перец сладкий","01.13.39.190-001",166,"Килограмм",305.20999999999998]
[null,60,"01.13.39","Культуры овощные плодовые прочие, не включенные в другие группировки. Пояснение по требуемой продукции: тыква продовольственная","01.13.39.130-001",166,"Килограмм",96.63]
[null,61,"01.13.41","Морковь, репа, брюква. Пояснение по требуемой продукции: брюква столовая","01.13.41.130-001",166,"Килограмм",128.63999999999999]
[null,62,"01.13.41","Морковь, репа, брюква. Пояснение по требуемой продукции: морковь столовая","01.13.41.110-001",166,"Килограмм",66.739999999999995]
[{"$nulls":4},"01.13.41.110-003",166,"Килограмм",38.880000000000003]
[null,63,"01.13.41","Морковь, репа, брюква. Пояснение по требуемой продукции: репа столовая","01.13.41.120-001",166,"Килограмм",98.55]
[{"$nulls":4},"01.13.41.120-002",166,"Килограмм",154.26]
[null,64,"01.13.41","Морковь, репа, брюква. Пояснение по требуемой продукции: морковь","01.13.41.110-005",166,"Килограмм",169.93]
[null,65,"01.13.42","Чеснок","01.13.42.000-001",166,"Килограмм",335.04]
[{"$nulls":4},"01.13.42.000-002",166,"Килограмм",291.73]
[null,66,"01.13.43","Культуры овощные луковичные. Пояснение по требуемой продукции: лук репчатый","01.13.43.110-001",166,"Килограмм",42.57]
[{"$nulls":4},"01.13.43.110-002",166,"Килограмм",204.62]
[null,67,"01.13.43","Культуры овощные луковичные. Пояснение по требуемой продукции: лук свежий зеленый","01.13.43.190-001",166,"Килограмм",582.78]
[null,68,"01.13.44","Лук-порей и прочие культуры овощные луковичные. Пояснение по требуемой продукции: лук-порей","01.13.44.000-001",166,"Килограмм",573.21]
[null,69,"01.13.49","Корнеплоды и клубнеплоды овощные, культуры овощные луковичные (без высокого содержания крахмала или инулина), прочие. Пояснение по требуемой продукции: редис","01.13.49.130-001",166,"Килограмм",261.36]
[null,70,"01.13.49","Корнеплоды и клубнеплоды овощные, культуры овощные луковичные (без высокого содержания крахмала или инулина), прочие. Пояснение по требуемой продукции: редька","01.13.49.120-001",166,"Килограмм",103.93]
[{"$nulls":4},"01.13.49.120-002",166,"Килограмм",103.93]
[null,71,"01.13.49","Корнеплоды и клубнеплоды овощные, культуры овощные луковичные (без высокого содержания крахмала или инулина), прочие. Пояснение по требуемой продукции: свекла столовая","01.13.49.110-001",166,"Килограмм",42.59]
[{"$nulls":4},"01.13.49.110-002",166,"Килограмм",37.840000000000003]
[null,72,"01.13.49","Корнеплоды и клубнеплоды овощные, культуры овощные луковичные (без высокого содержания крахмала или инулина), прочие. Пояснение по требуемой продукции: сельдерей","01.13.49.190-001",166,"Килограмм",339.76]
[null,73,"01.13.49","Корнеплоды и клубнеплоды овощные, культуры овощные луковичные (без высокого содержания крахмала или инулина), прочие. Пояснение по требуемой продукции: свекла столовая (в вакуумной упаковке)","01.13.49.110-004",166,"Килограмм",194.53]
[null,74,"01.13.51","Картофель. Пояснение по требуемой продукции: картофель продовольственный","01.13.51.120-001",166,"Килограмм",26.17]
[{"$nulls":4},"01.13.51.110-001",166,"Килограмм",67.45]
[{"$nulls":4},"01.13.51.120-002",166,"Килограмм",172.58]
[null,75,"01.21.11","Виноград свежий столовых сортов","01.21.11.000-001",166,"Килограмм",312.60000000000002]
[null,76,"01.22.12","Бананы","01.22.12.000-001",166,"Килограмм",137.93]
[null,77,"01.23.12","Лимоны и лаймы. Пояснение по требуемой продукции: лимоны","01.23.12.000-001",166,"Килограмм",145.30000000000001]
[{"$nulls":4},"01.23.12.000-002",166,"Килограмм",155.38999999999999]
[null,78,"01.23.13","Апельсины","01.23.13.000-001",166,"Килограмм",138.9]
[{"$nulls":4},"01.23.13.000-002",166,"Килограмм",167.25]
[null,79,"01.23.14","Мандарины, включая танжерины, клементины и аналогичные гибриды цитрусовых культур. Пояснение по требуемой продукции: мандарины","01.23.14.000-001",166,"Килограмм",180.77]
[{"$nulls":4},"01.23.14.000-002",166,"Килограмм",236]
[null,80,"01.24.10","Яблоки","01.24.10.000-003",166,"Килограмм",136.33000000000001]
[{"$nulls":4},"01.24.10.000-004",166,"Килограмм",113.79]
[null,81,"01.24.21","Груши","01.24.21.000-001",166,"Килограмм",262]
[{"$nulls":4},"01.24.21.000-002",166,"Килограмм",244.3]
[null,82,"01.24.23","Абрикосы","01.24.23.000-001",166,"Килограмм",431.16]
[null,83,"01.24.24","Вишня","01.24.24.000-001",166,"Килограмм",571.52]
[null,84,"01.24.25","Персики","01.24.25.000-001",166,"Килограмм",398.05]
[{"$nulls":4},"01.24.25.000-002",166,"Килограмм",398.05]
[null,85,"01.24.26","Нектарины","01.24.26.000-001",166,"Килограмм",420.28]
[{"$nulls":4},"01.24.26.000-002",166,"Килограмм",378.7]
[null,86,"01.24.27","Сливы","01.24.27.000-001",166,"Килограмм",283.39999999999998]
[{"$nulls":4},"01.24.27.000-003",166,"Килограмм",283.39999999999998]
[{"$nulls":4},"01.24.27.000-002",166,"Килограмм",236.53]
[{"$nulls":4},"01.24.27.000-004",166,"Килограмм",236.53]
[null,87,"01.24.29","Плоды семечковых и косточковых культур прочие, не включенные в другие группировки. Пояснение по требуемой продукции: черешня","01.24.29.110-001",166,"Килограмм",645.23]
[null,88,"01.25.11","Киви","01.25.11.000-001",166,"Килограмм",176.35]
[null,89,"01.25.19","Ягоды, плоды растений вида Vaccinium прочие, не включенные в другие группировки. Пояснение по требуемой продукции: брусника","01.25.19.160-001",166,"Килограмм",711.75]
[null,90,"01.25.19","Ягоды, плоды растений вида Vaccinium прочие, не включенные в другие группировки. Пояснение по требуемой продукции: клюква","01.25.19.150-001",166,"Килограмм",653.49]
[null,91,"01.25.19","Ягоды, плоды растений вида Vaccinium прочие, не включенные в другие группировки. Пояснение по требуемой продукции: плоды шиповника","01.25.19.190-001",166,"Килограмм",358.75]
[{"$nulls":4},"01.25.19.190-002",166,"Килограмм",450.65]
[null,92,"01.25.19","Ягоды, плоды растений вида Vaccinium прочие, не включенные в другие группировки. Пояснение по требуемой продукции: виноград","01.25.19.190-003",166,"Килограмм",403.76]
[{"$nulls":4},"01.25.19.190-006",166,"Килограмм",403.76]
[{"$nulls":4},"01.25.19.190-004",166,"Килограмм",416.19]
[{"$nulls":4},"01.25.19.190-005",166,"Килограмм",416.19]
[null,93,"01.25.31","Миндаль","01.25.31.000-001",166,"Килограмм",1103.77]
[null,94,"01.25.33","Фундук","01.25.33.000-001",166,"Килограмм",1022.16]
[null,95,"01.25.35","Орехи грецкие","01.25.35.000-001",166,"Килограмм",1282.17]
[null,96,"01.25.39","Орехи прочие, не включенные в другие группировки. Пояснение по требуемой продукции: кешью","01.25.39.000-001",166,"Килограмм",848.67]
[null,97,"01.47.21","Яйца куриные в скорлупе свежие","01.47.21.000-001",796,"Штука",12.6]
[{"$nulls":4},"01.47.21.000-002",796,"Штука",13.33]
[null,98,"01.49.21","Мед натуральный. Пояснение по требуемой продукции: мед натуральный пчелиный","01.49.21.110-001",166,"Килограмм",459.98]
[{"$nulls":4},"01.49.21.110-002",166,"Килограмм",459.98]
[null,99,"03.11.63","Водоросли морские и прочие, не являющиеся продукцией рыбоводства. Пояснение по требуемой продукции: капуста морская","03.11.63.120-002",166,"Килограмм",2511.75]
[{"$nulls":4},"03.11.63.120-001",166,"Килограмм",315.3]
[null,100,"10.11.31","Мясо крупного рогатого скота (говядина и телятина) замороженное, в том числе для детского питания. Пояснение по требуемой продукции: говядина замороженная","10.11.31.110-001",166,"Килограмм",764.66]
[{"$nulls":4},"10.11.31.110-002",166,"Килограмм",761.12]
[{"$nulls":4},"10.11.31.110-005",166,"Килограмм",867.28]
[{"$nulls":4},"10.11.31.110-003",166,"Килограмм",538.98]
[{"$nulls":4},"10.11.31.110-004",166,"Килограмм",576.22]
[null,101,"10.11.31","Мясо крупного рогатого скота (говядина и телятина) замороженное, в том числе для детского питания. Пояснение по требуемой продукции: субпродукты пищевые крупного рогатого скота замороженные","10.11.31.140-001",166,"Килограмм",377.59]
[{"$nulls":4},"10.11.31.140-002",166,"Килограмм",426.09]
[{"$nulls":4},"10.11.31.140-003",166,"Килограмм",929.5]
[null,102,"10.11.31","Мясо крупного рогатого скота (говядина и телятина) замороженное, в том числе для детского питания. Пояснение по требуемой продукции: телятина замороженная","10.11.31.120-001",166,"Килограмм",1266.55]
[null,103,"10.11.32","Свинина замороженная, в том числе для детского питания. Пояснение по требуемой продукции: свинина замороженная","10.11.32.110-002",166,"Килограмм",455.47]
[{"$nulls":4},"10.11.32.110-003",166,"Килограмм",427.05]
[{"$nulls":4},"10.11.32.110-001",166,"Килограмм",328.42]
[{"$nulls":4},"10.11.32.110-004",166,"Килограмм",328.42]
[null,104,"10.11.32","Свинина замороженная, в том числе для детского питания. Пояснение по требуемой продукции: субпродукты пищевые свиные замороженные","10.11.32.140-001",166,"Килограмм",390.86]
[{"$nulls":4},"10.11.32.140-002",166,"Килограмм",600.28]
[null,105,"10.11.39","Мясо и субпродукты пищевые прочие парные, остывшие, охлажденные или замороженные. Пояснение по требуемой продукции: мясо кролика","10.11.39.110-001",166,"Килограмм",679.33]
[null,106,"10.12.10","Мясо птицы охлажденное, в том числе для детского питания","10.12.10.110-003",166,"Килограмм",307.33]
[{"$nulls":4},"10.12.10.110-001",166,"Килограмм",334.93]
[{"$nulls":4},"10.12.10.110-002",166,"Килограмм",240.76]
[{"$nulls":4},"10.12.10.170-001",166,"Килограмм",530.05999999999995]
[{"$nulls":4},"10.12.10.120-001",166,"Килограмм",595.66]
[null,107,"10.12.20","Мясо сельскохозяйственной птицы замороженное, в том числе для детского питания","10.12.20.110-005",166,"Килограмм",301.74]
[{"$nulls":4},"10.12.20.110-004",166,"Килограмм",360.1]
[{"$nulls":4},"10.12.20.110-003",166,"Килограмм",273.81]
[{"$nulls":4},"10.12.20.110-001",166,"Килограмм",268.52999999999997]
[{"$nulls":4},"10.12.20.170-001",166,"Килограмм",574.33000000000004]
[{"$nulls":4},"10.12.20.120-001",166,"Килограмм",570.95000000000005]
[null,108,"10.13.14","Изделия колбасные и аналогичная пищевая продукция из мяса, субпродуктов или крови животных, из мяса и субпродуктов птицы. Пояснение по требуемой продукции: ветчина","10.13.14.529-001",166,"Килограмм",592.89]
[{"$nulls":4},"10.13.14.529-002",166,"Килограмм",639.08000000000004]
[{"$nulls":4},"10.13.14.529-003",166,"Килограмм",889.73]
[{"$nulls":4},"10.13.14.529-004",166,"Килограмм",703.47]
[null,109,"10.13.14","Изделия колбасные и аналогичная пищевая продукция из мяса, субпродуктов или крови животных, из мяса и субпродуктов птицы. Пояснение по требуемой продукции: изделия колбасные вареные, в том числе фаршированные мясные, сосиски, колбаса","10.13.14.111-001",166,"Килограмм",592.4]
[{"$nulls":4},"10.13.14.111-002",166,"Килограмм",838.68]
[{"$nulls":4},"10.13.14.112-004",166,"Килограмм",662.54]
[{"$nulls":4},"10.13.14.112-008",166,"Килограмм",662.54]
[{"$nulls":4},"10.13.14.112-007",166,"Килограмм",771.48]
[{"$nulls":4},"10.13.14.113-001",166,"Килограмм",616.07000000000005]
[null,110,"10.13.14","Изделия колбасные и аналогичная пищевая продукция из мяса, субпродуктов или крови животных, из мяса и субпродуктов птицы. Пояснение по требуемой продукции: колбаса (колбаска) полукопченая мясная, колбаса (колбаска) варено-копченая мясная","10.13.14.411-001",166,"Килограмм",700.18]
[{"$nulls":4},"10.13.14.412-001",166,"Килограмм",787.66]
[null,111,"10.13.14","Изделия колбасные и аналогичная пищевая продукция из мяса, субпродуктов или крови животных, из мяса и субпродуктов птицы. Пояснение по требуемой продукции: продукт из свинины","10.13.14.612-005",166,"Килограмм",819.1]
[{"$nulls":4},"10.13.14.612-006",166,"Килограмм",819.1]
[{"$nulls":4},"10.13.14.612-003",166,"Килограмм",868.43]
[{"$nulls":4},"10.13.14.612-004",166,"Килограмм",881.15]
[{"$nulls":4},"10.13.14.612-001",166,"Килограмм",946.66]
[{"$nulls":4},"10.13.14.612-002",166,"Килограмм",835.99]
[null,112,"10.13.15","Продукты готовые и консервированные из мяса, субпродуктов или крови животных, из мяса и субпродуктов птицы прочие, кроме готовых блюд из мяса и субпродуктов. Пояснение по требуемой продукции: консервы мясные","10.13.15.111-001",166,"Килограмм",944.16]
[null,113,"10.13.15","Продукты готовые и консервированные из мяса, субпродуктов или крови животных, из мяса и субпродуктов птицы прочие, кроме готовых блюд из мяса и субпродуктов. Пояснение по требуемой продукции: консервы мясорастительные с использованием мяса и субпродуктов птицы","10.13.15.140-001",166,"Килограмм",800.36]
[null,114,"10.20.13","Рыба мороженая. Пояснение по требуемой продукции: рыба лососевая мороженая","10.20.13.110-001",166,"Килограмм",525.37]
[null,115,"10.20.13","Рыба мороженая. Пояснение по требуемой продукции: судак","10.20.13.122-007",166,"Килограмм",625.04]
[null,116,"10.20.13","Рыба мороженая. Пояснение по требуемой продукции: рыба трескообразная мороженая","10.20.13.122-003",166,"Килограмм",329.51]
[{"$nulls":4},"10.20.13.122-005",166,"Килограмм",388.59]
[{"$nulls":4},"10.20.13.122-002",166,"Килограмм",321.27]
[{"$nulls":4},"10.20.13.122-001",166,"Килограмм",579.05999999999995]
[{"$nulls":4},"10.20.13.122-006",166,"Килограмм",455.48]
[null,117,"10.20.14","Филе рыбное мороженое. Пояснение по требуемой продукции: филе лососевых рыб мороженое","10.20.14.110-084",166,"Килограмм",610.66999999999996]
[{"$nulls":4},"10.20.14.110-017",166,"Килограмм",610.66999999999996]
[null,118,"10.20.14","Филе рыбное мороженое. Пояснение по требуемой продукции: филе судака","10.20.14.120-004",166,"Килограмм",784.03]
[null,119,"10.20.14","Филе рыбное мороженое. Пояснение по требуемой продукции: филе тресковых рыб мороженое","10.20.14.120-007",166,"Килограмм",519.15]
[{"$nulls":4},"10.20.14.120-009",166,"Килограмм",519.15]
[{"$nulls":4},"10.20.14.120-003",166,"Килограмм",1000.14]
[{"$nulls":4},"10.20.14.120-010",166,"Килограмм",1000.14]
[{"$nulls":4},"10.20.14.120-005",166,"Килограмм",560.87]
[{"$nulls":4},"10.20.14.120-011",166,"Килограмм",560.87]
[{"$nulls":4},"10.20.14.120-002",166,"Килограмм",671]
[{"$nulls":4},"10.20.14.120-012",166,"Килограмм",671]
[{"$nulls":4},"10.20.14.120-006",166,"Килограмм",686.25]
[{"$nulls":4},"10.20.14.120-013",166,"Килограмм",686.25]
[null,120,"10.20.23","Рыба вяленая, соленая и несоленая или в рассоле. Пояснение по требуемой продукции: рыба лососевая соленая","10.20.23.121-003",166,"Килограмм",1318.57]
[{"$nulls":4},"10.20.23.121-001",166,"Килограмм",1318.57]
[{"$nulls":4},"10.20.23.121-004",166,"Килограмм",1775]
[{"$nulls":4},"10.20.23.121-002",166,"Килограмм",1775]
[null,121,"10.20.23","Рыба вяленая, соленая и несоленая или в рассоле. Пояснение по требуемой продукции: сельдь соленая","10.20.23.122-001",166,"Килограмм",274.14]
[null,122,"10.20.25","Рыба, приготовленная или консервированная другим способом, кроме готовых блюд из рыбы. Пояснение по требуемой продукции: консервы рыбные натуральные","10.20.25.111-001",166,"Килограмм",662.04]
[{"$nulls":4},"10.20.25.111-002",166,"Килограмм",653.76]
[{"$nulls":4},"10.20.25.115-001",166,"Килограмм",1573.58]
[null,123,"10.20.25","Рыба, приготовленная или консервированная другим способом, кроме готовых блюд из рыбы. Пояснение по требуемой продукции: шпроты в масле","10.20.25.113-001",166,"Килограмм",682.79]
[null,124,"10.20.26","Икра и заменители икры. Пояснение по требуемой продукции: икра зернистая","10.20.26.112-001",166,"Килограмм",6186.21]
[null,125,"10.20.32","Моллюски мороженые, сушеные, соленые или в рассоле, копченые. Пояснение по требуемой продукции: кальмар мороженый","10.20.32.110-001",166,"Килограмм",510.85]
[null,126,"10.20.34","Ракообразные, приготовленные или консервированные другим способом; моллюски и прочие беспозвоночные водные, приготовленные или консервированные другим способом. Пояснение по требуемой продукции: палочки «крабовые» (имитация)","10.20.34.110-001",166,"Килограмм",296]
[{"$nulls":4},"10.20.34.110-002",166,"Килограмм",574.24]
[null,127,"10.31.13","Мука, хлопья и гранулы из картофеля, в том числе из сушеного картофеля. Пояснение по требуемой продукции: продукция из сушеного картофеля","10.31.13.110-001",166,"Килограмм",1196.19]
[null,128,"10.32.11","Сок томатный. Пояснение по требуемой продукции: сок из фруктов и (или) овощей","10.32.11.110-001",112,"Литр; кубический дециметр",402.83]
[{"$nulls":4},"10.32.11.110-003",112,"Литр; кубический дециметр",168.34]
[{"$nulls":4},"10.32.11.120-001",112,"Литр; кубический дециметр",221.8]
[{"$nulls":4},"10.32.11.120-002",112,"Литр; кубический дециметр",134.66]
[null,129,"10.32.19","Соки из фруктов и овощей прочие. Пояснение по требуемой продукции: сок из фруктов и (или) овощей","10.32.19.111-006",112,"Литр; кубический дециметр",157.69999999999999]
[{"$nulls":4},"10.32.19.111-007",112,"Литр; кубический дециметр",120.32]
[{"$nulls":4},"10.32.19.112-001",112,"Литр; кубический дециметр",170.46]
[{"$nulls":4},"10.32.19.112-003",112,"Литр; кубический дециметр",121.31]
[null,130,"10.32.21","Нектары фруктовые и (или) овощные","10.32.21.110-003",112,"Литр; кубический дециметр",160.80000000000001]
[{"$nulls":4},"10.32.21.110-001",112,"Литр; кубический дециметр",130.72]
[null,131,"10.39.11","Овощи (кроме картофеля) и грибы замороженные. Пояснение по требуемой продукции: грибы замороженные","10.39.11.000-002",166,"Килограмм",381.94]
[null,132,"10.39.11","Овощи (кроме картофеля) и грибы замороженные. Пояснение по требуемой продукции: овощи замороженные","10.39.11.000-001",166,"Килограмм",331.8]
[{"$nulls":4},"10.39.11.000-003",166,"Килограмм",331.8]
[null,133,"10.39.13","Овощи (кроме картофеля) и грибы сушеные. Пояснение по требуемой продукции: морковь столовая","10.39.13.000-001",166,"Килограмм",539.66999999999996]
[null,134,"10.39.13","Овощи (кроме картофеля) и грибы сушеные. Пояснение по требуемой продукции: свекла столовая","10.39.13.000-002",166,"Килограмм",659.43]
[{"$nulls":4},"10.39.13.000-003",166,"Килограмм",659.43]
[null,135,"10.39.15","Фасоль, консервированная без уксуса или уксусной кислоты (кроме готовых блюд из овощей). Пояснение по требуемой продукции: фасоль","10.39.15.000-001",166,"Килограмм",590.08000000000004]
[null,136,"10.39.16","Горох, консервированный без уксуса или уксусной кислоты (кроме готовых блюд из овощей). Пояснение по требуемой продукции: горох, консервированный без уксуса или уксусной кислоты (кроме готовых блюд из овощей)","10.39.16.000-001",166,"Килограмм",232.74]
[{"$nulls":4},"10.39.16.000-002",166,"Килограмм",261.55]
[null,137,"10.39.17","Овощи (кроме картофеля) и грибы, консервированные без уксуса или уксусной кислоты, прочие (кроме готовых овощных блюд). Пояснение по требуемой продукции: грибы","10.39.17.200-001",166,"Килограмм",332.15]
[null,138,"10.39.17","Овощи (кроме картофеля) и грибы, консервированные без уксуса или уксусной кислоты, прочие (кроме готовых овощных блюд). Пояснение по требуемой продукции: капуста белокочанная","10.39.17.190-001",166,"Килограмм",200.05]
[{"$nulls":4},"10.39.17.190-010",166,"Килограмм",200.05]
[null,139,"10.39.17","Овощи (кроме картофеля) и грибы, консервированные без уксуса или уксусной кислоты, прочие (кроме готовых овощных блюд). Пояснение по требуемой продукции: кукуруза консервированная","10.39.17.190-006",166,"Килограмм",230.91]
[null,140,"10.39.17","Овощи (кроме картофеля) и грибы, консервированные без уксуса или уксусной кислоты, прочие (кроме готовых овощных блюд). Пояснение по требуемой продукции: овощи консервированные","10.39.17.190-005",166,"Килограмм",210.08]
[null,141,"10.39.17","Овощи (кроме картофеля) и грибы, консервированные без уксуса или уксусной кислоты, прочие (кроме готовых овощных блюд). Пояснение по требуемой продукции: огурцы","10.39.17.190-004",166,"Килограмм",283.19]
[{"$nulls":4},"10.39.17.190-007",166,"Килограмм",274.67]
[{"$nulls":4},"10.39.17.190-002",166,"Килограмм",197.96]
[null,142,"10.39.17","Овощи (кроме картофеля) и грибы, консервированные без уксуса или уксусной кислоты, прочие (кроме готовых овощных блюд). Пояснение по требуемой продукции: томат- паста и томатное пюре","10.39.17.111-002",166,"Килограмм",420.16]
[{"$nulls":4},"10.39.17.112-001",166,"Килограмм",297.39999999999998]
[null,143,"10.39.17","Овощи (кроме картофеля) и грибы, консервированные без уксуса или уксусной кислоты, прочие (кроме готовых овощных блюд). Пояснение по требуемой продукции: томаты","10.39.17.190-008",166,"Килограмм",261.22000000000003]
[{"$nulls":4},"10.39.17.190-009",166,"Килограмм",221.3]
[null,144,"10.39.18","Овощи (кроме картофеля), фрукты, орехи и прочие съедобные части растений, переработанные или консервированные с уксусом или уксусной кислотой. Пояснение по требуемой продукции: икра из кабачков, икра из баклажанов","10.39.18.110-002",166,"Килограмм",258.49]
[{"$nulls":4},"10.39.18.110-005",166,"Килограмм",193.42]
[null,145,"10.39.18","Овощи (кроме картофеля), фрукты, орехи и прочие съедобные части растений, переработанные или консервированные с уксусом или уксусной кислотой. Пояснение по требуемой продукции: овощи маринованные","10.39.18.110-004",166,"Килограмм",198.03]
[{"$nulls":4},"10.39.18.110-003",166,"Килограмм",198.03]
[null,146,"10.39.21","Фрукты, ягоды и орехи, свежие или предварительно подвергнутые тепловой обработке, замороженные. Пояснение по требуемой продукции: ягоды замороженные","10.39.21.120-001",166,"Килограмм",752.9]
[{"$nulls":4},"10.39.21.120-002",166,"Килограмм",614.42999999999995]
[{"$nulls":4},"10.39.21.120-003",166,"Килограмм",532.23]
[{"$nulls":4},"10.39.21.120-004",166,"Килограмм",740.88]
[{"$nulls":4},"10.39.21.120-005",166,"Килограмм",1305.58]
[{"$nulls":4},"10.39.21.120-006",166,"Килограмм",666.1]
[{"$nulls":4},"10.39.21.120-007",166,"Килограмм",707.72]
[null,147,"10.39.22","Джемы, фруктовые желе, пюре и пасты фруктовые или ореховые. Пояснение по требуемой продукции: брусника","10.39.22.130-003",166,"Килограмм",533.45000000000005]
[null,148,"10.39.22","Джемы, фруктовые желе, пюре и пасты фруктовые или ореховые. Пояснение по требуемой продукции: варенье","10.39.22.130-004",166,"Килограмм",513.07000000000005]
[null,149,"10.39.22","Джемы, фруктовые желе, пюре и пасты фруктовые или ореховые. Пояснение по требуемой продукции: джем","10.39.22.110-001",166,"Килограмм",445.72]
[{"$nulls":4},"10.39.22.110-003",166,"Килограмм",1081.6199999999999]
[null,150,"10.39.22","Джемы, фруктовые желе, пюре и пасты фруктовые или ореховые. Пояснение по требуемой продукции: клюква","10.39.22.130-005",166,"Килограмм",411.2]
[null,151,"10.39.22","Джемы, фруктовые желе, пюре и пасты фруктовые или ореховые. Пояснение по требуемой продукции: компот","10.39.22.120-001",112,"Литр; кубический дециметр",193.06]
[null,152,"10.39.22","Джемы, фруктовые желе, пюре и пасты фруктовые или ореховые. Пояснение по требуемой продукции: конфитюр","10.39.22.110-002",166,"Килограмм",689.47]
[null,153,"10.39.22","Джемы, фруктовые желе, пюре и пасты фруктовые или ореховые. Пояснение по требуемой продукции: повидло","10.39.22.130-001",166,"Килограмм",329.01]
[{"$nulls":4},"10.39.22.130-002",166,"Килограмм",218.59]
[null,154,"10.39.25","Фрукты переработанные и консервированные. Пояснение по требуемой продукции: абрикосы сушеные","10.39.25.132-003",166,"Килограмм",693.51]
[{"$nulls":4},"10.39.25.132-006",166,"Килограмм",693.51]
[{"$nulls":4},"10.39.25.132-010",166,"Килограмм",693.51]
[{"$nulls":4},"10.39.25.132-004",166,"Килограмм",693.51]
[{"$nulls":4},"10.39.25.132-007",166,"Килограмм",693.51]
[null,155,"10.39.25","Фрукты переработанные и консервированные. Пояснение по требуемой продукции: смесь сушеных фруктов (сухой компот)","10.39.25.134-002",166,"Килограмм",196.71]
[null,156,"10.39.25","Фрукты переработанные и консервированные. Пояснение по требуемой продукции: сливы сушеные","10.39.25.132-005",166,"Килограмм",462.05]
[{"$nulls":4},"10.39.25.132-008",166,"Килограмм",462.05]
[{"$nulls":4},"10.39.25.132-009",166,"Килограмм",462.05]
[null,157,"10.41.53","Масло оливковое и его фракции рафинированные, но не подвергнутые химической модификации. Пояснение по требуемой продукции: масло оливковое","10.41.53.000-001",166,"Килограмм",1154.5]
[null,158,"10.41.54","Масло подсолнечное и его фракции рафинированные, но не подвергнутые химической модификации. Пояснение по требуемой продукции: масло подсолнечное рафинированное","10.41.54.110-001",112,"Литр; кубический дециметр",144.93]
[{"$nulls":4},"10.41.54.110-002",112,"Литр; кубический дециметр",144.93]
[null,159,"10.42.10","Маргарин, спреды растительно-сливочные и растительно-жировые, смеси топленые растительно-сливочные и растительно-жировые, жиры специального назначения, заменители молочного жира, эквиваленты, улучшители, заменители масла какао. Пояснение по требуемой продукции: маргарин","10.42.10.112-001",166,"Килограмм",259.12]
[{"$nulls":4},"10.42.10.112-002",166,"Килограмм",259.12]
[{"$nulls":4},"10.42.10.111-001",166,"Килограмм",202.57]
[{"$nulls":4},"10.42.10.111-002",166,"Килограмм",150.19999999999999]
[null,160,"10.51.11","Молоко, кроме сырого. Пояснение по требуемой продукции: молоко питьевое","10.51.11.111-001",112,"Литр; кубический дециметр",83.83]
[{"$nulls":4},"10.51.11.111-003",112,"Литр; кубический дециметр",89.95]
[{"$nulls":4},"10.51.11.111-005",112,"Литр; кубический дециметр",106.74]
[{"$nulls":4},"10.51.11.121-001",112,"Литр; кубический дециметр",95.98]
[{"$nulls":4},"10.51.11.141-001",112,"Литр; кубический дециметр",122.94]
[null,161,"10.51.12","Сливки. Пояснение по требуемой продукции: сливки питьевые из коровьего молока","10.51.12.111-001",166,"Килограмм",300.8]
[{"$nulls":4},"10.51.12.111-003",166,"Килограмм",410.8]
[{"$nulls":4},"10.51.12.112-001",166,"Килограмм",389.66]
[null,162,"10.51.22","Молоко и сливки сухие, сублимированные, в том числе цельные. Пояснение по требуемой продукции: молоко сухое коровье","10.51.22.112-004",166,"Килограмм",557.1]
[{"$nulls":4},"10.51.22.112-005",166,"Килограмм",557.1]
[null,163,"10.51.22","Молоко и сливки сухие, сублимированные, в том числе цельные. Пояснение по требуемой продукции: молоко сухое","10.51.22.112-003",166,"Килограмм",3563.33]
[null,164,"10.51.30","Масло сливочное, пасты масляные, масло топленое, жир молочный, спреды и смеси топленые сливочно-растительные. Пояснение по требуемой продукции: масло сливочное","10.51.30.111-001",166,"Килограмм",1075.43]
[{"$nulls":4},"10.51.30.111-007",166,"Килограмм",1075.43]
[{"$nulls":4},"10.51.30.111-008",166,"Килограмм",1075.43]
[{"$nulls":4},"10.51.30.111-009",166,"Килограмм",1075.43]
[{"$nulls":4},"10.51.30.111-005",166,"Килограмм",1075.43]
[{"$nulls":4},"10.51.30.111-004",166,"Килограмм",1075.43]
[null,165,"10.51.40","Сыры; молокосодержащие продукты с заменителем молочного жира, произведенные по технологии сыра; творог. Пояснение по требуемой продукции: сыры мягкие","10.51.40.111-001",166,"Килограмм",836]
[null,166,"10.51.40","Сыры; молокосодержащие продукты с заменителем молочного жира, произведенные по технологии сыра; творог. Пояснение по требуемой продукции: сыры полутвердые","10.51.40.121-002",166,"Килограмм",849.65]
[{"$nulls":4},"10.51.40.121-004",166,"Килограмм",849.65]
[{"$nulls":4},"10.51.40.121-001",166,"Килограмм",849.65]
[{"$nulls":4},"10.51.40.121-003",166,"Килограмм",849.65]
[null,167,"10.51.40","Сыры; молокосодержащие продукты с заменителем молочного жира, произведенные по технологии сыра; творог. Пояснение по требуемой продукции: творог","10.51.40.313-001",166,"Килограмм",477.17]
[{"$nulls":4},"10.51.40.313-002",166,"Килограмм",477.17]
[{"$nulls":4},"10.51.40.313-003",166,"Килограмм",376.04]
[{"$nulls":4},"10.51.40.313-004",166,"Килограмм",376.04]
[{"$nulls":4},"10.51.40.313-005",166,"Килограмм",386.65]
[{"$nulls":4},"10.51.40.313-006",166,"Килограмм",386.65]
[{"$nulls":4},"10.51.40.313-007",166,"Килограмм",578.54999999999995]
[{"$nulls":4},"10.51.40.313-008",166,"Килограмм",578.54999999999995]
[{"$nulls":4},"10.51.40.314-003",166,"Килограмм",790]
[{"$nulls":4},"10.51.40.314-004",166,"Килограмм",790]
[null,168,"10.51.51","Молоко и сливки, сгущенные или с добавками сахара или других подслащивающих веществ, не сухие. Пояснение по требуемой продукции: молоко сгущенное","10.51.51.113-001",166,"Килограмм",377.78]
[null,169,"10.51.52","Продукты кисломолочные (кроме творога и продуктов из творога). Пояснение по требуемой продукции: йогурт","10.51.52.111-001",166,"Килограмм",279.36]
[{"$nulls":4},"10.51.52.111-012",166,"Килограмм",279.36]
[{"$nulls":4},"10.51.52.112-004",166,"Килограмм",267.94]
[{"$nulls":4},"10.51.52.112-009",166,"Килограмм",175.81]
[{"$nulls":4},"10.51.52.112-006",166,"Килограмм",267.94]
[{"$nulls":4},"10.51.52.111-002",166,"Килограмм",393.7]
[{"$nulls":4},"10.51.52.111-013",166,"Килограмм",393.7]
[{"$nulls":4},"10.51.52.111-003",166,"Килограмм",389.58]
[{"$nulls":4},"10.51.52.112-003",166,"Килограмм",311.76]
[{"$nulls":4},"10.51.52.112-002",166,"Килограмм",264.79000000000002]
[{"$nulls":4},"10.51.52.112-010",166,"Килограмм",283.82]
[null,170,"10.51.52","Продукты кисломолочные (кроме творога и продуктов из творога). Пояснение по требуемой продукции: кефир","10.51.52.140-006",166,"Килограмм",98.49]
[{"$nulls":4},"10.51.52.140-009",166,"Килограмм",98.49]
[{"$nulls":4},"10.51.52.140-007",166,"Килограмм",120.52]
[{"$nulls":4},"10.51.52.140-010",166,"Килограмм",120.52]
[{"$nulls":4},"10.51.52.140-008",166,"Килограмм",225.52]
[{"$nulls":4},"10.51.52.140-011",166,"Килограмм",225.52]
[null,171,"10.51.52","Продукты кисломолочные (кроме творога и продуктов из творога). Пояснение по требуемой продукции: кисломолочные продукты","10.51.52.190-001",166,"Килограмм",139.88999999999999]
[{"$nulls":4},"10.51.52.190-004",166,"Килограмм",230.7]
[{"$nulls":4},"10.51.52.190-008",166,"Килограмм",110.42]
[{"$nulls":4},"10.51.52.190-005",166,"Килограмм",230.7]
[null,172,"10.51.52","Продукты кисломолочные (кроме творога и продуктов из творога). Пояснение по требуемой продукции: ряженка","10.51.52.130-002",166,"Килограмм",123.06]
[{"$nulls":4},"10.51.52.130-006",166,"Килограмм",142.41999999999999]
[{"$nulls":4},"10.51.52.130-001",166,"Килограмм",137.99]
[{"$nulls":4},"10.51.52.130-005",166,"Килограмм",157.56]
[null,173,"10.51.52","Продукты кисломолочные (кроме творога и продуктов из творога). Пояснение по требуемой продукции: сметана","10.51.52.211-001",166,"Килограмм",246.62]
[{"$nulls":4},"10.51.52.212-001",166,"Килограмм",264.32]
[null,174,"10.51.56","Продукция молочная, не включенная в другие группировки. Пояснение по требуемой продукции: сырки творожные","10.51.56.152-085",166,"Килограмм",1021]
[null,175,"10.52.10","Мороженое","10.52.10.123-001",166,"Килограмм",812.27]
[null,176,"10.61.12","Рис полуобрушенный или полностью обрушенный, или дробленый. Пояснение по требуемой продукции: рис","10.61.12.000-001",166,"Килограмм",136.91]
[{"$nulls":4},"10.61.12.000-003",166,"Килограмм",136.91]
[{"$nulls":4},"10.61.12.000-005",166,"Килограмм",136.91]
[{"$nulls":4},"10.61.12.000-004",166,"Килограмм",105.23]
[{"$nulls":4},"10.61.12.000-002",166,"Килограмм",105.23]
[null,177,"10.61.21","Мука пшеничная и пшенично-ржаная. Пояснение по требуемой продукции: мука пшеничная","10.61.21.113-001",166,"Килограмм",63.18]
[{"$nulls":4},"10.61.21.113-002",166,"Килограмм",50.01]
[null,178,"10.61.22","Мука из прочих зерновых культур. Пояснение по требуемой продукции: мука кукурузная","10.61.22.120-001",166,"Килограмм",166.59]
[{"$nulls":4},"10.61.22.120-002",166,"Килограмм",166.59]
[{"$nulls":4},"10.61.22.120-003",166,"Килограмм",166.59]
[null,179,"10.61.22","Мука из прочих зерновых культур. Пояснение по требуемой продукции: мука ржаная","10.61.22.111-001",166,"Килограмм",67.3]
[{"$nulls":4},"10.61.22.112-002",166,"Килограмм",67.3]
[null,180,"10.61.22","Мука из прочих зерновых культур. Пояснение по требуемой продукции: мука рисовая","10.61.22.130-001",166,"Килограмм",221.45]
[{"$nulls":4},"10.61.22.130-002",166,"Килограмм",249.87]
[null,181,"10.61.31","Крупа и мука грубого помола из пшеницы. Пояснение по требуемой продукции: крупа манная","10.61.31.111-001",166,"Килограмм",78.599999999999994]
[{"$nulls":4},"10.61.31.111-002",166,"Килограмм",58.25]
[null,182,"10.61.31","Крупа и мука грубого помола из пшеницы. Пояснение по требуемой продукции: крупа пшеничная","10.61.31.119-001",166,"Килограмм",82.39]
[{"$nulls":4},"10.61.31.119-002",166,"Килограмм",82.39]
[{"$nulls":4},"10.61.31.119-003",166,"Килограмм",82.39]
[{"$nulls":4},"10.61.31.119-004",166,"Килограмм",82.39]
[null,183,"10.61.32","Крупа, мука грубого помола и гранулы из зерновых культур, не включенные в другие группировки. Пояснение по требуемой продукции: крупа гречневая","10.61.32.113-001",166,"Килограмм",112.78]
[{"$nulls":4},"10.61.32.113-002",166,"Килограмм",78.02]
[null,184,"10.61.32","Крупа, мука грубого помола и гранулы из зерновых культур, не включенные в другие группировки. Пояснение по требуемой продукции: крупа кукурузная","10.61.32.117-002",166,"Килограмм",95.7]
[{"$nulls":4},"10.61.32.117-001",166,"Килограмм",95.7]
[{"$nulls":4},"10.61.32.117-003",166,"Килограмм",220.17]
[{"$nulls":4},"10.61.32.117-004",166,"Килограмм",220.17]
[{"$nulls":4},"10.61.32.117-005",166,"Килограмм",220.17]
[{"$nulls":4},"10.61.32.117-006",166,"Килограмм",220.17]
[null,185,"10.61.32","Крупа, мука грубого помола и гранулы из зерновых культур, не включенные в другие группировки. Пояснение по требуемой продукции: крупа перловая","10.61.32.116-001",166,"Килограмм",55.68]
[{"$nulls":4},"10.61.32.116-002",166,"Килограмм",56.57]
[null,186,"10.61.32","Крупа, мука грубого помола и гранулы из зерновых культур, не включенные в другие группировки. Пояснение по требуемой продукции: крупа ячневая","10.61.32.115-001",166,"Килограмм",64.459999999999994]
[{"$nulls":4},"10.61.32.115-002",166,"Килограмм",50.34]
[null,187,"10.61.32","Крупа, мука грубого помола и гранулы из зерновых культур, не включенные в другие группировки. Пояснение по требуемой продукции: пшено","10.61.32.114-001",166,"Килограмм",114.7]
[{"$nulls":4},"10.61.32.114-002",166,"Килограмм",114.7]
[{"$nulls":4},"10.61.32.114-003",166,"Килограмм",78.819999999999993]
[{"$nulls":4},"10.61.32.114-004",166,"Килограмм",78.819999999999993]
[null,188,"10.61.33","Продукты зерновые для завтрака и прочие продукты из зерновых культур. Пояснение по требуемой продукции: завтраки сухие","10.61.33.113-001",166,"Килограмм",336]
[{"$nulls":4},"10.61.33.115-001",166,"Килограмм",410.19]
[null,189,"10.61.33","Продукты зерновые для завтрака и прочие продукты из зерновых культур. Пояснение по требуемой продукции: мюсли","10.61.33.140-001",166,"Килограмм",350.09]
[null,190,"10.61.33","Продукты зерновые для завтрака и прочие продукты из зерновых культур. Пояснение по требуемой продукции: хлопья из круп (злаков)","10.61.33.119-001",166,"Килограмм",449]
[null,191,"10.61.33","Продукты зерновые для завтрака и прочие продукты из зерновых культур. Пояснение по требуемой продукции: хлопья овсяные","10.61.33.111-001",166,"Килограмм",143.62]
[{"$nulls":4},"10.61.33.111-004",166,"Килограмм",109.94]
[{"$nulls":4},"10.61.33.111-003",166,"Килограмм",149.5]
[{"$nulls":4},"10.61.33.111-002",166,"Килограмм",162.27000000000001]
[null,192,"10.62.11","Крахмалы; инулин; клейковина пшеничная; декстрины и прочие модифицированные крахмалы. Пояснение по требуемой продукции: крахмалы, кроме модифицированных","10.62.11.111-001",166,"Килограмм",319]
[{"$nulls":4},"10.62.11.111-002",166,"Килограмм",168.96]
[{"$nulls":4},"10.62.11.112-001",166,"Килограмм",233.45]
[{"$nulls":4},"10.62.11.112-002",166,"Килограмм",233.45]
[null,193,"10.62.13","Глюкоза и сироп из глюкозы; фруктоза и сироп из фруктозы; сахар инвертный; сахар и сиропы сахарные, не включенные в другие группировки. Пояснение по требуемой продукции: сироп шиповника","10.62.13.190-001",112,"Литр; кубический дециметр",610.53]
[null,194,"10.62.14","Масло кукурузное","10.62.14.120-001",166,"Килограмм",253.5]
[null,195,"10.71.11","Изделия хлебобулочные недлительного хранения. Пояснение по требуемой продукции: батон нарезной","10.71.11.121-001",166,"Килограмм",118.46]
[{"$nulls":4},"10.71.11.179-001",166,"Килограмм",189.01]
[null,196,"10.71.11","Изделия хлебобулочные недлительного хранения. Пояснение по требуемой продукции: кондитерские изделия","10.71.11.179-004",166,"Килограмм",333.91]
[{"$nulls":4},"10.71.11.179-003",166,"Килограмм",333.91]
[{"$nulls":4},"10.71.11.179-005",166,"Килограмм",357.58]
[{"$nulls":4},"10.71.11.179-006",166,"Килограмм",357.58]
[null,197,"10.71.11","Изделия хлебобулочные недлительного хранения. Пояснение по требуемой продукции: хлеб кукурузный","10.71.11.179-008",166,"Килограмм",337.68]
[null,198,"10.71.11","Изделия хлебобулочные недлительного хранения. Пояснение по требуемой продукции: хлеб недлительного хранения","10.71.11.112-002",166,"Килограмм",66.22]
[{"$nulls":4},"10.71.11.112-004",166,"Килограмм",103.95]
[{"$nulls":4},"10.71.11.112-001",166,"Килограмм",107.54]
[{"$nulls":4},"10.71.11.112-003",166,"Килограмм",86.72]
[null,199,"10.71.11","Изделия хлебобулочные недлительного хранения. Пояснение по требуемой продукции: хлеб рисовый","10.71.11.179-007",166,"Килограмм",1285.33]
[null,200,"10.72.11","Хлебцы хрустящие, сухари, гренки и аналогичные обжаренные продукты. Пояснение по требуемой продукции: изделия бараночные","10.72.11.110-001",166,"Килограмм",247.68]
[{"$nulls":4},"10.72.11.110-005",166,"Килограмм",247.68]
[{"$nulls":4},"10.72.11.110-006",166,"Килограмм",247.68]
[{"$nulls":4},"10.72.11.110-002",166,"Килограмм",247.68]
[{"$nulls":4},"10.72.11.110-007",166,"Килограмм",247.68]
[{"$nulls":4},"10.72.11.110-008",166,"Килограмм",247.68]
[{"$nulls":4},"10.72.11.110-003",166,"Килограмм",332.53]
[{"$nulls":4},"10.72.11.110-009",166,"Килограмм",332.53]
[{"$nulls":4},"10.72.11.110-010",166,"Килограмм",332.53]
[{"$nulls":4},"10.72.11.110-004",166,"Килограмм",332.53]
[{"$nulls":4},"10.72.11.110-011",166,"Килограмм",332.53]
[{"$nulls":4},"10.72.11.110-012",166,"Килограмм",332.53]
[null,201,"10.72.11","Хлебцы хрустящие, сухари, гренки и аналогичные обжаренные продукты. Пояснение по требуемой продукции: изделия сухарные","10.72.11.120-003",166,"Килограмм",219.17]
[{"$nulls":4},"10.72.11.120-002",166,"Килограмм",219.17]
[null,202,"10.72.11","Хлебцы хрустящие, сухари, гренки и аналогичные обжаренные продукты. Пояснение по требуемой продукции: палочки хлебные","10.72.11.150-001",166,"Килограмм",302.75]
[null,203,"10.72.11","Хлебцы хрустящие, сухари, гренки и аналогичные обжаренные продукты. Пояснение по требуемой продукции: сухари панировочные","10.72.11.120-001",166,"Килограмм",187.38]
[{"$nulls":4},"10.72.11.120-004",166,"Килограмм",1627.75]
[{"$nulls":4},"10.72.11.120-005",166,"Килограмм",187.38]
[{"$nulls":4},"10.72.11.120-006",166,"Килограмм",187.38]
[{"$nulls":4},"10.72.11.120-007",166,"Килограмм",187.38]
[null,204,"10.72.11","Хлебцы хрустящие, сухари, гренки и аналогичные обжаренные продукты. Пояснение по требуемой продукции: хлебцы хрустящие","10.72.11.130-001",166,"Килограмм",573.87]
[{"$nulls":4},"10.72.11.130-002",166,"Килограмм",840.27]
[{"$nulls":4},"10.72.11.130-003",166,"Килограмм",898.56]
[{"$nulls":4},"10.72.11.130-004",166,"Килограмм",835.83]
[{"$nulls":4},"10.72.11.130-005",166,"Килограмм",863.06]
[null,205,"10.72.12","Печенье и пряники имбирные и аналогичные изделия; печенье сладкое; вафли и вафельные облатки; торты и пирожные длительного хранения. Пояснение по требуемой продукции: вафли","10.72.12.130-003",166,"Килограмм",396.3]
[{"$nulls":4},"10.72.12.130-002",166,"Килограмм",477.95]
[{"$nulls":4},"10.72.12.130-004",166,"Килограмм",396.3]
[{"$nulls":4},"10.72.12.130-005",166,"Килограмм",477.95]
[{"$nulls":4},"10.72.12.130-007",166,"Килограмм",725.91]
[null,206,"10.72.12","Печенье и пряники имбирные и аналогичные изделия; печенье сладкое; вафли и вафельные облатки; торты и пирожные длительного хранения. Пояснение по требуемой продукции: вафли без глютена","10.72.12.130-006",166,"Килограмм",3682.91]
[null,207,"10.72.12","Печенье и пряники имбирные и аналогичные изделия; печенье сладкое; вафли и вафельные облатки; торты и пирожные длительного хранения. Пояснение по требуемой продукции: вафли витаминизированные","10.72.12.130-001",166,"Килограмм",477.95]
[null,208,"10.72.12","Печенье и пряники имбирные и аналогичные изделия; печенье сладкое; вафли и вафельные облатки; торты и пирожные длительного хранения. Пояснение по требуемой продукции: кекс","10.72.12.114-001",166,"Килограмм",582.33000000000004]
[null,209,"10.72.12","Печенье и пряники имбирные и аналогичные изделия; печенье сладкое; вафли и вафельные облатки; торты и пирожные длительного хранения. Пояснение по требуемой продукции: крекеры","10.72.12.140-001",166,"Килограмм",325.74]
[{"$nulls":4},"10.72.12.140-003",166,"Килограмм",325.74]
[{"$nulls":4},"10.72.12.140-004",166,"Килограмм",325.74]
[{"$nulls":4},"10.72.12.140-002",166,"Килограмм",325.74]
[{"$nulls":4},"10.72.12.140-005",166,"Килограмм",325.74]
[{"$nulls":4},"10.72.12.140-006",166,"Килограмм",325.74]
[null,210,"10.72.12","Печенье и пряники имбирные и аналогичные изделия; печенье сладкое; вафли и вафельные облатки; торты и пирожные длительного хранения. Пояснение по требуемой продукции: печенье без глютена","10.72.12.120-010",166,"Килограмм",891.11]
[{"$nulls":4},"10.72.12.120-011",166,"Килограмм",891.11]
[null,211,"10.72.12","Печенье и пряники имбирные и аналогичные изделия; печенье сладкое; вафли и вафельные облатки; торты и пирожные длительного хранения. Пояснение по требуемой продукции: печенье витаминизированное","10.72.12.120-001",166,"Килограмм",435.6]
[null,212,"10.72.12","Печенье и пряники имбирные и аналогичные изделия; печенье сладкое; вафли и вафельные облатки; торты и пирожные длительного хранения. Пояснение по требуемой продукции: печенье сладкое","10.72.12.120-002",166,"Килограмм",360.82]
[{"$nulls":4},"10.72.12.120-009",166,"Килограмм",360.82]
[{"$nulls":4},"10.72.12.120-004",166,"Килограмм",334.75]
[{"$nulls":4},"10.72.12.120-003",166,"Килограмм",334.75]
[{"$nulls":4},"10.72.12.120-005",166,"Килограмм",297.37]
[{"$nulls":4},"10.72.12.120-006",166,"Килограмм",297.37]
[{"$nulls":4},"10.72.12.120-007",166,"Килограмм",454.52]
[{"$nulls":4},"10.72.12.120-008",166,"Килограмм",454.52]
[null,213,"10.72.12","Печенье и пряники имбирные и аналогичные изделия; печенье сладкое; вафли и вафельные облатки; торты и пирожные длительного хранения. Пояснение по требуемой продукции: печенье без добавления сахара","10.72.12.120-012",166,"Килограмм",359.79]
[{"$nulls":4},"10.72.12.120-013",166,"Килограмм",376.5]
[null,214,"10.72.12","Печенье и пряники имбирные и аналогичные изделия; печенье сладкое; вафли и вафельные облатки; торты и пирожные длительного хранения. Пояснение по требуемой продукции: пряники","10.72.12.112-001",166,"Килограмм",282.77]
[{"$nulls":4},"10.72.12.112-002",166,"Килограмм",282.77]
[{"$nulls":4},"10.72.12.112-003",166,"Килограмм",289.89999999999998]
[{"$nulls":4},"10.72.12.112-006",166,"Килограмм",289.89999999999998]
[null,215,"10.72.19","Изделия хлебобулочные сухие прочие или хлебобулочные изделия длительного хранения. Пояснение по требуемой продукции: изделия хлебобулочные","10.72.19.119-001",166,"Килограмм",911.44]
[{"$nulls":4},"10.72.19.119-002",166,"Килограмм",911.44]
[{"$nulls":4},"10.72.19.111-004",166,"Килограмм",241.71]
[{"$nulls":4},"10.72.19.111-002",166,"Килограмм",412.78]
[{"$nulls":4},"10.72.19.111-005",166,"Килограмм",235.88]
[{"$nulls":4},"10.72.19.111-006",166,"Килограмм",534.78]
[null,216,"10.73.11","Изделия макаронные и аналогичные мучные изделия. Пояснение по требуемой продукции: изделия макаронные","10.73.11.110-001",166,"Килограмм",149.87]
[{"$nulls":4},"10.73.11.110-005",166,"Килограмм",149.87]
[{"$nulls":4},"10.73.11.110-006",166,"Килограмм",149.87]
[{"$nulls":4},"10.73.11.110-007",166,"Килограмм",149.87]
[{"$nulls":4},"10.73.11.110-002",166,"Килограмм",120.75]
[{"$nulls":4},"10.73.11.110-008",166,"Килограмм",120.75]
[{"$nulls":4},"10.73.11.110-009",166,"Килограмм",120.75]
[null,217,"10.73.11","Изделия макаронные и аналогичные мучные изделия. Пояснение по требуемой продукции: изделия макаронные без глютена","10.73.11.500-001",166,"Килограмм",461.23]
[{"$nulls":4},"10.73.11.500-002",166,"Килограмм",461.23]
[{"$nulls":4},"10.73.11.500-003",166,"Килограмм",599.26]
[null,218,"10.73.11","Изделия макаронные и аналогичные мучные изделия. Пояснение по требуемой продукции: изделия макаронные быстрого приготовления","10.73.11.400-001",166,"Килограмм",675.64]
[{"$nulls":4},"10.73.11.400-002",166,"Килограмм",299.64999999999998]
[null,219,"10.81.12","Сахар белый свекловичный или тростниковый и химически чистая сахароза в твердом состоянии без вкусоароматических или красящих добавок. Пояснение по требуемой продукции: сахар белый свекловичный в твердом состоянии без вкусоароматических или красящих добавок","10.81.12.110-005",166,"Килограмм",64.290000000000006]
[{"$nulls":4},"10.81.12.110-006",166,"Килограмм",65.97]
[{"$nulls":4},"10.81.12.110-003",166,"Килограмм",210.24]
[{"$nulls":4},"10.81.12.110-007",166,"Килограмм",200.11]
[null,220,"10.82.13","Порошок какао без добавок сахара или других подслащивающих веществ. Пояснение по требуемой продукции: какао-порошок","10.82.13.000-001",166,"Килограмм",641.48]
[null,221,"10.82.22","Шоколад и пищевые продукты, содержащие какао (кроме подслащенного какао-порошка), в упакованном виде. Пояснение по требуемой продукции: конфеты","10.82.22.134-001",166,"Килограмм",559.19000000000005]
[{"$nulls":4},"10.82.22.134-002",166,"Килограмм",762.24]
[null,222,"10.82.22","Шоколад и пищевые продукты, содержащие какао (кроме подслащенного какао-порошка), в упакованном виде. Пояснение по требуемой продукции: шоколад в упакованном виде","10.82.22.111-003",166,"Килограмм",1247.8800000000001]
[{"$nulls":4},"10.82.22.111-004",166,"Килограмм",1247.8800000000001]
[{"$nulls":4},"10.82.22.111-001",166,"Килограмм",1247.8800000000001]
[{"$nulls":4},"10.82.22.111-002",166,"Килограмм",1247.8800000000001]
[null,223,"10.82.23","Изделия кондитерские сахаристые (включая белый шоколад), не содержащие какао. Пояснение по требуемой продукции: зефир","10.82.23.210-001",166,"Килограмм",374.23]
[{"$nulls":4},"10.82.23.210-002",166,"Килограмм",374.23]
[{"$nulls":4},"10.82.23.210-003",166,"Килограмм",946.32]
[null,224,"10.82.23","Изделия кондитерские сахаристые (включая белый шоколад), не содержащие какао. Пояснение по требуемой продукции: ирис","10.82.23.153-001",166,"Килограмм",458.13]
[{"$nulls":4},"10.82.23.153-002",166,"Килограмм",564.74]
[null,225,"10.82.23","Изделия кондитерские сахаристые (включая белый шоколад), не содержащие какао. Пояснение по требуемой продукции: конфеты","10.82.23.290-001",166,"Килограмм",374.08]
[null,226,"10.82.23","Изделия кондитерские сахаристые (включая белый шоколад), не содержащие какао. Пояснение по требуемой продукции: мармелад","10.82.23.171-002",166,"Килограмм",397.1]
[{"$nulls":4},"10.82.23.171-001",166,"Килограмм",399.69]
[{"$nulls":4},"10.82.23.172-001",166,"Килограмм",397.1]
[{"$nulls":4},"10.82.23.172-002",166,"Килограмм",399.69]
[{"$nulls":4},"10.82.23.172-003",166,"Килограмм",399.69]
[{"$nulls":4},"10.82.23.172-004",166,"Килограмм",397.1]
[null,227,"10.82.23","Изделия кондитерские сахаристые (включая белый шоколад), не содержащие какао. Пояснение по требуемой продукции: пастила","10.82.23.180-001",166,"Килограмм",503.55]
[{"$nulls":4},"10.82.23.180-002",166,"Килограмм",503.55]
[{"$nulls":4},"10.82.23.180-003",166,"Килограмм",503.55]
[null,228,"10.83.11","Кофе без кофеина и кофе жареный. Пояснение по требуемой продукции: кофе жареный","10.83.11.120-001",166,"Килограмм",1498.62]
[{"$nulls":4},"10.83.11.120-002",166,"Килограмм",1406.37]
[null,229,"10.83.12","Заменители кофе; экстракты, эссенции и концентраты кофе или заменителей кофе; шелуха кофейная и оболочки зерен кофе. Пояснение по требуемой продукции: кофе растворимый","10.83.12.120-001",166,"Килограмм",3344.51]
[null,230,"10.83.12","Заменители кофе; экстракты, эссенции и концентраты кофе или заменителей кофе; шелуха кофейная и оболочки зерен кофе. Пояснение по требуемой продукции: кофейный напиток","10.83.12.120-004",166,"Килограмм",563.95000000000005]
[{"$nulls":4},"10.83.12.120-002",166,"Килограмм",584.76]
[{"$nulls":4},"10.83.12.120-003",166,"Килограмм",866.27]
[{"$nulls":4},"10.83.12.120-005",166,"Килограмм",1157.9000000000001]
[null,231,"10.83.13","Чай зеленый (неферментированный), чай черный (ферментированный) и чай частично ферментированный, в упаковках массой не более 3 кг","10.83.13.110-001",166,"Килограмм",2427.6799999999998]
[{"$nulls":4},"10.83.13.120-006",166,"Килограмм",2132.8200000000002]
[{"$nulls":4},"10.83.13.120-001",166,"Килограмм",1358.9]
[{"$nulls":4},"10.83.13.120-002",166,"Килограмм",817.2]
[{"$nulls":4},"10.83.13.120-003",166,"Килограмм",1358.9]
[null,232,"10.83.14","Экстракты, эссенции, концентраты и готовые продукты на основе чая или мате. Пояснение по требуемой продукции: фиточай","10.83.14.140-001",166,"Килограмм",1110.67]
[null,233,"10.84.11","Уксус и его заменители, получаемые из уксусной кислоты. Пояснение по требуемой продукции: уксус пищевой","10.84.11.000-001",112,"Литр; кубический дециметр",59.48]
[null,234,"10.84.12","Соусы; приправы и пряности смешанные; мука и порошок горчичные; горчица готовая. Пояснение по требуемой продукции: майонез","10.84.12.130-003",166,"Килограмм",251.42]
[null,235,"10.84.12","Соусы; приправы и пряности смешанные; мука и порошок горчичные; горчица готовая. Пояснение по требуемой продукции: соусы","10.84.12.140-001",166,"Килограмм",327.98]
[{"$nulls":4},"10.84.12.190-001",166,"Килограмм",373.04]
[{"$nulls":4},"10.84.12.120-001",166,"Килограмм",340.24]
[null,236,"10.84.21","Перец обработанный","10.84.21.000-001",166,"Килограмм",942.75]
[null,237,"10.84.23","Корица обработанная; прочие обработанные пряности. Пояснение по требуемой продукции: зелень сушеная","10.84.23.190-003",166,"Килограмм",612.79999999999995]
[{"$nulls":4},"10.84.23.190-006",166,"Килограмм",687.94]
[null,238,"10.84.23","Корица обработанная; прочие обработанные пряности. Пояснение по требуемой продукции: лист лавровый сушеный","10.84.23.164-001",166,"Килограмм",879.31]
[null,239,"10.84.30","Соль пищевая","10.84.30.140-001",166,"Килограмм",20.16]
[{"$nulls":4},"10.84.30.140-002",166,"Килограмм",20.16]
[{"$nulls":4},"10.84.30.140-003",166,"Килограмм",100.94]
[{"$nulls":4},"10.84.30.140-004",166,"Килограмм",100.94]
[{"$nulls":4},"10.84.30.140-005",166,"Килограмм",20.16]
[{"$nulls":4},"10.84.30.140-006",166,"Килограмм",20.16]
[{"$nulls":4},"10.84.30.140-007",166,"Килограмм",20.9]
[{"$nulls":4},"10.84.30.140-008",166,"Килограмм",20.9]
[{"$nulls":4},"10.84.30.140-009",166,"Килограмм",100.94]
[{"$nulls":4},"10.84.30.140-010",166,"Килограмм",100.94]
[{"$nulls":4},"10.84.30.140-011",166,"Килограмм",20.9]
[{"$nulls":4},"10.84.30.140-012",166,"Килограмм",20.9]
[null,240,"10.86.10","Продукция детского питания и диетическая. Пояснение по требуемой продукции: смесь сухая белковая композитная","10.86.10.910-001",166,"Килограмм",3681]
[null,241,"10.86.10","Продукция детского питания и диетическая. Пояснение по требуемой продукции: изделия колбасные вареные для детского питания","10.86.10.612-001",166,"Килограмм",681.66]
[null,242,"10.86.10","Продукция детского питания и диетическая. Пояснение по требуемой продукции: каши","10.86.10.136-001",166,"Килограмм",874.02]
[{"$nulls":4},"10.86.10.191-001",166,"Килограмм",874.02]
[null,243,"10.86.10","Продукция детского питания и диетическая. Пояснение по требуемой продукции: консервы мясные для детского питания","10.86.10.661-001",166,"Килограмм",1171.5999999999999]
[{"$nulls":4},"10.86.10.661-002",166,"Килограмм",1171.5999999999999]
[{"$nulls":4},"10.86.10.662-001",166,"Килограмм",1171.5999999999999]
[null,244,"10.86.10","Продукция детского питания и диетическая. Пояснение по требуемой продукции: консервы птичьи для детского питания","10.86.10.669-002",166,"Килограмм",1046.55]
[null,245,"10.86.10","Продукция детского питания и диетическая. Пояснение по требуемой продукции: консервы овощные для детского питания","10.86.10.211-001",166,"Килограмм",636.66999999999996]
[{"$nulls":4},"10.86.10.211-002",166,"Килограмм",636.66999999999996]
[{"$nulls":4},"10.86.10.211-003",166,"Килограмм",636.66999999999996]
[null,246,"10.86.10","Продукция детского питания и диетическая. Пояснение по требуемой продукции: консервы фруктовые для детского питания","10.86.10.241-001",166,"Килограмм",624.04]
[{"$nulls":4},"10.86.10.241-002",166,"Килограмм",624.04]
[null,247,"10.86.10","Продукция детского питания и диетическая. Пояснение по требуемой продукции: молоко питьевое для детского питания","10.86.10.110-003",112,"Литр; кубический дециметр",224.14]
[{"$nulls":4},"10.86.10.110-002",112,"Литр; кубический дециметр",224.14]
[{"$nulls":4},"10.86.10.110-011",112,"Литр; кубический дециметр",224.14]
[{"$nulls":4},"10.86.10.110-006",112,"Литр; кубический дециметр",224.14]
[null,248,"10.86.10","Продукция детского питания и диетическая. Пояснение по требуемой продукции: сок фруктовый для детского питания","10.86.10.243-001",112,"Литр; кубический дециметр",174.54]
[{"$nulls":4},"10.86.10.243-002",112,"Литр; кубический дециметр",174.54]
[null,249,"10.86.10","Продукция детского питания и диетическая. Пояснение по требуемой продукции: сок овощной для детского питания","10.86.10.231-001",112,"Литр; кубический дециметр",137.83000000000001]
[null,250,"10.86.10","Продукция детского питания и диетическая. Пояснение по требуемой продукции: сухая смесь, последующая молочная смесь для детского питания","10.86.10.139-001",166,"Килограмм",5174.58]
[{"$nulls":4},"10.86.10.133-001",166,"Килограмм",2165]
[null,251,"10.86.10","Продукция детского питания и диетическая. Пояснение по требуемой продукции: творог для детского питания","10.86.10.126-003",166,"Килограмм",449.65]
[{"$nulls":4},"10.86.10.126-001",166,"Килограмм",432.67]
[{"$nulls":4},"10.86.10.126-002",166,"Килограмм",432.67]
[{"$nulls":4},"10.86.10.144-003",166,"Килограмм",449.65]
[{"$nulls":4},"10.86.10.144-001",166,"Килограмм",432.67]
[{"$nulls":4},"10.86.10.144-002",166,"Килограмм",432.67]
[null,252,"10.86.10","Продукция детского питания и диетическая. Пояснение по требуемой продукции: ветчина для детского питания","10.86.10.614-001",166,"Килограмм",1281.58]
[null,253,"10.86.10","Продукция детского питания и диетическая. Пояснение по требуемой продукции: подсластитель","10.86.10.910-002",166,"Килограмм",2338.54]
[{"$nulls":4},"10.86.10.910-003",166,"Килограмм",6702.43]
[null,254,"10.89.11","Супы; бульоны и заготовки для их приготовления. Пояснение по требуемой продукции: суп быстрого приготовления","10.89.11.119-001",166,"Килограмм",908.9]
[null,255,"10.89.12","Яйца без скорлупы и желтки яичные, свежие или консервированные; яйца в скорлупе консервированные или вареные; белок яичный. Пояснение по требуемой продукции: меланж яичный","10.89.12.111-001",112,"Литр; кубический дециметр",397.77]
[null,256,"10.89.13","Дрожжи (активные и неактивные), прочие микроорганизмы одноклеточные мертвые; порошки пекарные готовые. Пояснение по требуемой продукции: дрожжи хлебопекарные прессованные","10.89.13.111-004",166,"Килограмм",210.62]
[{"$nulls":4},"10.89.13.111-002",166,"Килограмм",210.62]
[{"$nulls":4},"10.89.13.111-001",166,"Килограмм",210.62]
[null,257,"10.89.13","Дрожжи (активные и неактивные), прочие микроорганизмы одноклеточные мертвые; порошки пекарные готовые. Пояснение по требуемой продукции: дрожжи хлебопекарные сушеные","10.89.13.112-001",166,"Килограмм",956.03]
[null,258,"10.89.19","Продукты пищевые прочие, не включенные в другие группировки. Пояснение по требуемой продукции: ванилин","10.89.19.150-001",166,"Килограмм",2405]
[null,259,"10.89.19","Продукты пищевые прочие, не включенные в другие группировки. Пояснение по требуемой продукции: витаминно-минеральные премиксы","10.89.19.150-005",166,"Килограмм",4532.0600000000004]
[null,260,"10.89.19","Продукты пищевые прочие, не включенные в другие группировки. Пояснение по требуемой продукции: гематоген","10.89.19.290-001",166,"Килограмм",508.81]
[{"$nulls":4},"10.89.19.290-002",166,"Килограмм",508.81]
[null,261,"10.89.19","Продукты пищевые прочие, не включенные в другие группировки. Пояснение по требуемой продукции: кисель сухой","10.89.19.231-005",166,"Килограмм",325.24]
[{"$nulls":4},"10.89.19.231-001",166,"Килограмм",325.24]
[{"$nulls":4},"10.89.19.231-003",166,"Килограмм",325.24]
[{"$nulls":4},"10.89.19.231-002",166,"Килограмм",1941.19]
[{"$nulls":4},"10.89.19.231-004",166,"Килограмм",1941.19]
[null,262,"10.89.19","Продукты пищевые прочие, не включенные в другие группировки. Пояснение по требуемой продукции: сода","10.89.19.150-004",166,"Килограмм",81.180000000000007]
[null,263,"10.89.19","Продукты пищевые прочие, не включенные в другие группировки. Пояснение по требуемой продукции: каша быстрого приготовления","10.89.19.110-001",166,"Килограмм",361.81]
[null,264,"11.07.11","Воды минеральные природные упакованные, воды питьевые упакованные, не содержащие сахара, подсластителей, ароматизаторов и других пищевых веществ. Пояснение по требуемой продукции: вода минеральная природная питьевая упакованная","11.07.11.111-001",796,"Штука",44.33]
[{"$nulls":4},"11.07.11.111-003",796,"Штука",407.75]
[{"$nulls":4},"11.07.11.111-002",796,"Штука",31.59]
[{"$nulls":4},"11.07.11.111-004",796,"Штука",31.59]
[{"$nulls":4},"11.07.11.112-001",796,"Штука",59.59]
[{"$nulls":4},"11.07.11.112-002",796,"Штука",115.66]
[null,265,"11.07.11","Воды минеральные природные упакованные, воды питьевые упакованные, не содержащие сахара, подсластителей, ароматизаторов и других пищевых веществ. Пояснение по требуемой продукции: вода питьевая упакованная","11.07.11.121-001",796,"Штука",407.75]
[{"$nulls":4},"11.07.11.121-002",796,"Штука",407.75]
[{"$nulls":4},"11.07.11.121-003",796,"Штука",25.33]
[{"$nulls":4},"11.07.11.121-004",796,"Штука",42.16]
[{"$nulls":4},"11.07.11.121-005",796,"Штука",97.6]
[{"$nulls":4},"11.07.11.121-006",796,"Штука",23.97]
[{"$nulls":4},"11.07.11.122-001",796,"Штука",28.63]
[null,266,"11.07.19","Напитки безалкогольные прочие. Пояснение по требуемой продукции: напитки сухие инстантные (быстрорастворимые)","11.07.19.159-002",166,"Килограмм",690.97]
[null,267,"20.14.34","Кислоты поликарбоновые ароматические и кислоты карбоновые с дополнительными кислородсодержащими функциональными группами, их производные, кроме кислоты салициловой и ее солей. Пояснение по требуемой продукции: кислота лимонная пищевая","20.14.34.231-001",166,"Килограмм",661.13]
[null,268,"20.59.60","Желатин и его производные. Пояснение по требуемой продукции: желатин","20.59.60.111-001",166,"Килограмм",2810.87]
[null,"2.2. Перечень товарных позиций части «Канцелярские товары и офисные принадлежности»"]
[{"$nulls":4},"В соответствии с кодом конечного каталожного наименования (ККН)",null,null,"Предельная цена (руб. с НДС)"]
[null,269,"13.92.29","Изделия текстильные готовые прочие (включая тряпки для мытья полов, посуды, удаления пыли и аналогичные текстильные изделия, спасательные жилеты и пояса). Пояснение по требуемой продукции: флаг Российской Федерации","13.92.29.190-001",796,"Штука",1264.78]
[{"$nulls":4},"13.92.29.190-014",839,"Комплект",3058.8]
[{"$nulls":4},"13.92.29.190-017",839,"Комплект",135.4]
[{"$nulls":4},"13.92.29.190-018",839,"Комплект",247.33]
[{"$nulls":4},"13.92.29.190-022",796,"Штука",3909.18]
[{"$nulls":4},"13.92.29.190-023",796,"Штука",387.33]
[{"$nulls":4},"13.92.29.190-024",796,"Штука",4125.6099999999997]
[null,270,"13.92.29","Изделия текстильные готовые прочие (включая тряпки для мытья полов, посуды, удаления пыли и аналогичные текстильные изделия, спасательные жилеты и пояса). Пояснение по требуемой продукции: флаг                        Санкт-Петербурга","13.92.29.190-025",796,"Штука",1211.77]
[null,271,"13.94.11","Шпагат, канаты, веревки и шнуры из джута или прочих текстильных лубяных материалов. Пояснение по требуемой продукции: шпагат","13.94.11.110-001",616,"Бобина",1035.8699999999999]
[{"$nulls":4},"13.94.11.110-077",616,"Бобина",209.1]
[{"$nulls":4},"13.94.11.110-007",616,"Бобина",1040.33]
[null,272,"13.94.12","Сети и сетки, плетеные из бечевок, шнуров или веревок, готовые сети из текстильных материалов; изделия из пряжи, лент, не включенные в другие группировки. Пояснение по требуемой продукции: лента обвязочная","13.94.12.130-001",616,"Бобина",175.93]
[null,273,"13.95.10","Материалы нетканые и изделия из них (кроме одежды). Пояснение по требуемой продукции: салфетки сменные для губок-стирателей","13.95.10.190-001",778,"Упаковка",723.19]
[null,274,"16.29.14","Рамы деревянные для картин, фотографий, зеркал или аналогичных предметов и прочие изделия из дерева. Пояснение по требуемой продукции: древко для флага","16.29.14.199-004",796,"Штука",343]
[null,275,"16.29.14","Рамы деревянные для картин, фотографий, зеркал или аналогичных предметов и прочие изделия из дерева. Пояснение по требуемой продукции: рамка для документов","16.29.14.110-001",796,"Штука",230.77]
[null,276,"17.12.14","Бумага прочая и картон для графических целей. Пояснение по требуемой продукции: бумага для офисной техники (марка бумаги не ниже А, В, С, Сэ)","17.12.14.129-001",728,"Пачка",368.47]
[{"$nulls":4},"17.12.14.129-002",728,"Пачка",700.76]
[{"$nulls":4},"17.12.14.129-005",728,"Пачка",384.53]
[{"$nulls":4},"17.12.14.129-006",728,"Пачка",881.96]
[{"$nulls":4},"17.12.14.129-011",728,"Пачка",508.7]
[{"$nulls":4},"17.12.14.129-012",728,"Пачка",1002.25]
[{"$nulls":4},"17.12.14.129-029",728,"Пачка",315.02999999999997]
[null,277,"17.12.14","Бумага прочая и картон для графических целей. Пояснение по требуемой продукции: бумага для офисной техники (марка бумаги не ниже А+)","17.12.14.129-009",728,"Пачка",1388.66]
[{"$nulls":4},"17.12.14.129-010",728,"Пачка",3550.6]
[null,278,"17.12.14","Бумага прочая и картон для графических целей. Пояснение по требуемой продукции: бумага для офисной техники (для полноцветной лазерной печати)","17.12.14.129-014",728,"Пачка",538.9]
[{"$nulls":4},"17.12.14.129-015",728,"Пачка",2789.27]
[{"$nulls":4},"17.12.14.129-016",728,"Пачка",4594.26]
[{"$nulls":4},"17.12.14.129-017",728,"Пачка",1047.83]
[{"$nulls":4},"17.12.14.129-018",728,"Пачка",3180.21]
[{"$nulls":4},"17.12.14.129-023",728,"Пачка",3256.9]
[{"$nulls":4},"17.12.14.129-024",728,"Пачка",6566.67]
[{"$nulls":4},"17.12.14.129-025",728,"Пачка",5391.36]
[{"$nulls":4},"17.12.14.129-030",728,"Пачка",2548.3000000000002]
[{"$nulls":4},"17.12.14.129-032",728,"Пачка",5574.74]
[{"$nulls":4},"17.12.14.129-033",728,"Пачка",6330]
[{"$nulls":4},"17.12.14.129-034",728,"Пачка",3836.56]
[{"$nulls":4},"17.12.14.129-035",728,"Пачка",4650.3999999999996]
[null,279,"17.12.14","Бумага прочая и картон для графических целей. Пояснение по требуемой продукции: бумага для офисной техники (цветная)","17.12.14.129-019",728,"Пачка",417.08]
[{"$nulls":4},"17.12.14.129-020",728,"Пачка",911.09]
[{"$nulls":4},"17.12.14.129-021",728,"Пачка",1863.31]
[{"$nulls":4},"17.12.14.129-026",728,"Пачка",2036.11]
[{"$nulls":4},"17.12.14.129-027",728,"Пачка",2062.7600000000002]
[{"$nulls":4},"17.12.14.129-028",728,"Пачка",1199.33]
[{"$nulls":4},"17.12.14.129-031",728,"Пачка",770.49]
[null,280,"17.12.14","Бумага прочая и картон для графических целей. Пояснение по требуемой продукции: бумага для плоттеров","17.12.14.160-022",736,"Рулон",1307.18]
[{"$nulls":4},"17.12.14.160-020",736,"Рулон",2715.1]
[{"$nulls":4},"17.12.14.160-025",736,"Рулон",13721.71]
[{"$nulls":4},"17.12.14.160-026",736,"Рулон",4218.33]
[{"$nulls":4},"17.12.14.160-027",736,"Рулон",4019.61]
[{"$nulls":4},"17.12.14.160-021",736,"Рулон",2818.69]
[{"$nulls":4},"17.12.14.160-023",736,"Рулон",2254.23]
[{"$nulls":4},"17.12.14.160-024",736,"Рулон",5409.76]
[{"$nulls":4},"17.12.14.160-028",736,"Рулон",2000.78]
[null,281,"17.12.14","Бумага прочая и картон для графических целей. Пояснение по требуемой продукции: бумага для сертификатов","17.12.14.126-001",778,"Упаковка",880.33]
[null,282,"17.12.14","Бумага прочая и картон для графических целей. Пояснение по требуемой продукции: бумага микалентная","17.12.14.141-001",166,"Килограмм",10404.540000000001]
[{"$nulls":4},"17.12.14.141-002",166,"Килограмм",11237.32]
[null,283,"17.12.14","Бумага прочая и картон для графических целей. Пояснение по требуемой продукции: бумага писчая","17.12.14.121-016",728,"Пачка",507.89]
[{"$nulls":4},"17.12.14.121-019",728,"Пачка",266.01]
[{"$nulls":4},"17.12.14.121-020",728,"Пачка",266.08999999999997]
[null,284,"17.12.14","Бумага прочая и картон для графических целей. Пояснение по требуемой продукции: бумага самоклеящаяся","17.12.14.160-001",778,"Упаковка",661.49]
[{"$nulls":4},"17.12.14.160-002",778,"Упаковка",1969.75]
[null,285,"17.12.14","Бумага прочая и картон для графических целей. Пояснение по требуемой продукции: бумага для офисной техники (формат A5)","17.12.14.129-013",728,"Пачка",422.99]
[{"$nulls":4},"17.12.14.129-022",728,"Пачка",3556.67]
[null,286,"17.12.14","Бумага прочая и картон для графических целей. Пояснение по требуемой продукции: бумага чертежная","17.12.14.122-001",778,"Упаковка",4414.09]
[{"$nulls":4},"17.12.14.122-004",778,"Упаковка",2686.15]
[{"$nulls":4},"17.12.14.122-005",778,"Упаковка",1262.1600000000001]
[null,287,"17.12.14","Бумага прочая и картон для графических целей. Пояснение по требуемой продукции: бумага для факса","17.12.14.160-017",736,"Рулон",234.67]
[{"$nulls":4},"17.12.14.160-019",736,"Рулон",333.42]
[null,288,"17.12.14","Бумага прочая и картон для графических целей. Пояснение по требуемой продукции: бумага для аппаратов и приборов, кроме факса","17.12.14.160-003",736,"Рулон",934]
[{"$nulls":4},"17.12.14.160-009",736,"Рулон",206.82]
[{"$nulls":4},"17.12.14.160-010",736,"Рулон",62.22]
[{"$nulls":4},"17.12.14.160-011",736,"Рулон",753.64]
[{"$nulls":4},"17.12.14.160-018",736,"Рулон",46.96]
[null,289,"17.12.14","Бумага прочая и картон для графических целей. Пояснение по требуемой продукции: этикетки самоклеящиеся для папок","17.12.14.160-012",778,"Упаковка",1971.49]
[{"$nulls":4},"17.12.14.160-029",778,"Упаковка",520.62]
[null,290,"17.12.14","Бумага прочая и картон для графических целей. Пояснение по требуемой продукции: бумага для флипчарта","17.12.14.121-018",778,"Упаковка",524.75]
[{"$nulls":4},"17.12.14.121-021",778,"Упаковка",1413.54]
[{"$nulls":4},"17.12.14.121-022",778,"Упаковка",297.27]
[null,291,"17.12.41","Крафт-лайнер немелованный; крафт-бумага мешочная крепированная или гофрированная. Пояснение по требуемой продукции: крафт-бумага","17.12.41.120-001",736,"Рулон",2106.4]
[{"$nulls":4},"17.12.41.120-002",736,"Рулон",2111.85]
[null,292,"17.12.60","Пергамент растительный, бумага жиронепроницаемая, калька, пергамин и прочая бумага глазированная прозрачная или полупрозрачная. Пояснение по требуемой продукции: калька бумажная (в рулоне)","17.12.60.130-001",736,"Рулон",376.84]
[null,293,"17.12.60","Пергамент растительный, бумага жиронепроницаемая, калька, пергамин и прочая бумага глазированная прозрачная или полупрозрачная. Пояснение по требуемой продукции: калька бумажная (листовая)","17.12.60.130-002",778,"Упаковка",2990.35]
[{"$nulls":4},"17.12.60.130-003",778,"Упаковка",7906.68]
[null,294,"17.12.72","Бумага и картон крепированные, гофрированные, тисненые или перфорированные. Пояснение по требуемой продукции: бумага гофрированная","17.12.72.110-001",736,"Рулон",374.06]
[null,295,"17.21.13","Ящики и коробки из гофрированной бумаги или гофрированного картона. Пояснение по требуемой продукции: коробка (короб) из гофрированного материала (короб архивный)","17.21.13.000-003",796,"Штука",450.15]
[{"$nulls":4},"17.21.13.000-004",796,"Штука",457]
[{"$nulls":4},"17.21.13.000-005",796,"Штука",536.94000000000005]
[{"$nulls":4},"17.21.13.000-006",796,"Штука",235.47]
[{"$nulls":4},"17.21.13.000-007",796,"Штука",108.53]
[null,296,"17.23.11","Бумага копировальная, бумага самокопировальная и прочая копировальная или переводная бумага; трафареты для копировальных аппаратов и формы офсетные (пластины) из бумаги; бумага клейкая или гуммированная. Пояснение по требуемой продукции: бумага копировальная","17.23.11.110-001",778,"Упаковка",314]
[null,297,"17.23.12","Конверты, письма-секретки, карточки почтовые, карточки для переписки из бумаги или картона, коробки, сумки, футляры, наборы почтовые из бумаги или картона, содержащие наборы бумажных канцелярских принадлежностей. Пояснение по требуемой продукции: конверт почтовый бумажный","17.23.12.110-001",796,"Штука",91.64]
[{"$nulls":4},"17.23.12.110-008",796,"Штука",3.44]
[{"$nulls":4},"17.23.12.110-003",796,"Штука",4.8099999999999996]
[{"$nulls":4},"17.23.12.110-004",796,"Штука",11.87]
[{"$nulls":4},"17.23.12.110-007",796,"Штука",4.32]
[{"$nulls":4},"17.23.12.110-009",796,"Штука",18.600000000000001]
[{"$nulls":4},"17.23.12.110-010",796,"Штука",34.65]
[{"$nulls":4},"17.23.12.110-011",796,"Штука",2.74]
[{"$nulls":4},"17.23.12.110-012",796,"Штука",102.09]
[{"$nulls":4},"17.23.12.110-013",796,"Штука",46.59]
[{"$nulls":4},"17.23.12.110-014",796,"Штука",9.1]
[null,298,"17.23.12","Конверты, письма-секретки, карточки почтовые, карточки для переписки из бумаги или картона, коробки, сумки, футляры, наборы почтовые из бумаги или картона, содержащие наборы бумажных канцелярских принадлежностей. Пояснение по требуемой продукции: конверты для хранения CD-дисков","17.23.12.110-005",778,"Упаковка",145.35]
[{"$nulls":4},"17.23.12.110-006",778,"Упаковка",808.23]
[null,299,"17.23.13","Журналы регистрационные, книги бухгалтерские, скоросшиватели (папки), бланки и прочие канцелярские принадлежности из бумаги или картона. Пояснение по требуемой продукции: альбом для рисования","17.23.13.192-001",796,"Штука",166.76]
[{"$nulls":4},"17.23.13.192-002",796,"Штука",165.76]
[{"$nulls":4},"17.23.13.192-003",796,"Штука",292.13]
[{"$nulls":4},"17.23.13.192-004",796,"Штука",75.900000000000006]
[{"$nulls":4},"17.23.13.192-010",796,"Штука",337.1]
[null,300,"17.23.13","Журналы регистрационные, книги бухгалтерские, скоросшиватели (папки), бланки и прочие канцелярские принадлежности из бумаги или картона. Пояснение по требуемой продукции: бланк из бумаги или картона (бланк документа об образовании)","17.23.13.141-003",796,"Штука",256.77999999999997]
[{"$nulls":4},"17.23.13.141-004",796,"Штука",73.319999999999993]
[{"$nulls":4},"17.23.13.141-012",796,"Штука",253.23]
[{"$nulls":4},"17.23.13.141-013",796,"Штука",73.77]
[{"$nulls":4},"17.23.13.141-014",796,"Штука",140.88]
[{"$nulls":4},"17.23.13.141-015",796,"Штука",121.72]
[{"$nulls":4},"17.23.13.141-016",796,"Штука",254.6]
[{"$nulls":4},"17.23.13.141-017",796,"Штука",73.930000000000007]
[{"$nulls":4},"17.23.13.141-020",796,"Штука",252.97]
[{"$nulls":4},"17.23.13.141-021",796,"Штука",73.900000000000006]
[null,301,"17.23.13","Журналы регистрационные, книги бухгалтерские, скоросшиватели (папки), бланки и прочие канцелярские принадлежности из бумаги или картона. Пояснение по требуемой продукции: блоки для записей (без клейкого края)","17.23.13.199-014",796,"Штука",136.94]
[{"$nulls":4},"17.23.13.199-015",796,"Штука",178.03]
[{"$nulls":4},"17.23.13.199-016",796,"Штука",87.32]
[{"$nulls":4},"17.23.13.199-017",796,"Штука",127.96]
[{"$nulls":4},"17.23.13.199-018",796,"Штука",256.32]
[{"$nulls":4},"17.23.13.199-019",796,"Штука",326.58]
[{"$nulls":4},"17.23.13.199-020",796,"Штука",153.59]
[{"$nulls":4},"17.23.13.199-021",796,"Штука",241.1]
[{"$nulls":4},"17.23.13.199-029",796,"Штука",266.85000000000002]
[{"$nulls":4},"17.23.13.199-030",796,"Штука",192.47]
[{"$nulls":4},"17.23.13.199-031",796,"Штука",86.29]
[{"$nulls":4},"17.23.13.199-032",796,"Штука",139.5]
[null,302,"17.23.13","Журналы регистрационные, книги бухгалтерские, скоросшиватели (папки), бланки и прочие канцелярские принадлежности из бумаги или картона. Пояснение по требуемой продукции: блоки для записей (с клейким краем)","17.23.13.199-008",796,"Штука",146.5]
[{"$nulls":4},"17.23.13.199-009",796,"Штука",58.33]
[{"$nulls":4},"17.23.13.199-010",796,"Штука",493.82]
[{"$nulls":4},"17.23.13.199-011",796,"Штука",34.380000000000003]
[{"$nulls":4},"17.23.13.199-012",796,"Штука",238.92]
[{"$nulls":4},"17.23.13.199-013",796,"Штука",159.71]
[{"$nulls":4},"17.23.13.199-022",796,"Штука",172.71]
[null,303,"17.23.13","Журналы регистрационные, книги бухгалтерские, скоросшиватели (папки), бланки и прочие канцелярские принадлежности из бумаги или картона. Пояснение по требуемой продукции: блокнот","17.23.13.191-005",796,"Штука",243.33]
[{"$nulls":4},"17.23.13.191-011",796,"Штука",44.69]
[{"$nulls":4},"17.23.13.191-012",796,"Штука",186.54]
[{"$nulls":4},"17.23.13.191-017",796,"Штука",674.81]
[null,304,"17.23.13","Журналы регистрационные, книги бухгалтерские, скоросшиватели (папки), бланки и прочие канцелярские принадлежности из бумаги или картона. Пояснение по требуемой продукции: бумага для квиллинга","17.23.13.199-005",704,"Набор",112.24]
[{"$nulls":4},"17.23.13.199-007",704,"Набор",139.36000000000001]
[null,305,"17.23.13","Журналы регистрационные, книги бухгалтерские, скоросшиватели (папки), бланки и прочие канцелярские принадлежности из бумаги или картона. Пояснение по требуемой продукции: бумага цветная для творчества","17.23.13.192-012",704,"Набор",67.17]
[{"$nulls":4},"17.23.13.192-013",704,"Набор",117.49]
[{"$nulls":4},"17.23.13.192-014",704,"Набор",212.2]
[{"$nulls":4},"17.23.13.192-015",704,"Набор",286.44]
[null,306,"17.23.13","Журналы регистрационные, книги бухгалтерские, скоросшиватели (папки), бланки и прочие канцелярские принадлежности из бумаги или картона. Пояснение по требуемой продукции: ежедневник","17.23.13.191-001",796,"Штука",762.47]
[{"$nulls":4},"17.23.13.191-004",796,"Штука",942.67]
[{"$nulls":4},"17.23.13.191-010",796,"Штука",280.60000000000002]
[{"$nulls":4},"17.23.13.191-016",796,"Штука",245.03]
[null,307,"17.23.13","Журналы регистрационные, книги бухгалтерские, скоросшиватели (папки), бланки и прочие канцелярские принадлежности из бумаги или картона. Пояснение по требуемой продукции: еженедельник","17.23.13.191-015",796,"Штука",449.15]
[null,308,"17.23.13","Журналы регистрационные, книги бухгалтерские, скоросшиватели (папки), бланки и прочие канцелярские принадлежности из бумаги или картона. Пояснение по требуемой продукции: журнал (книга) регистрации и учета специализированный","17.23.13.110-002",796,"Штука",395.13]
[{"$nulls":4},"17.23.13.110-032",796,"Штука",363.08]
[{"$nulls":4},"17.23.13.110-033",796,"Штука",312.83]
[{"$nulls":4},"17.23.13.110-021",796,"Штука",519.61]
[{"$nulls":4},"17.23.13.110-022",796,"Штука",84.61]
[{"$nulls":4},"17.23.13.110-023",796,"Штука",125.6]
[{"$nulls":4},"17.23.13.110-024",796,"Штука",510.48]
[{"$nulls":4},"17.23.13.110-025",796,"Штука",145.1]
[{"$nulls":4},"17.23.13.110-028",796,"Штука",155.62]
[{"$nulls":4},"17.23.13.110-037",796,"Штука",132.53]
[{"$nulls":4},"17.23.13.110-036",796,"Штука",163.99]
[{"$nulls":4},"17.23.13.110-019",796,"Штука",213.35]
[{"$nulls":4},"17.23.13.110-018",796,"Штука",297]
[{"$nulls":4},"17.23.13.110-020",796,"Штука",279.02]
[{"$nulls":4},"17.23.13.110-041",796,"Штука",184.33]
[{"$nulls":4},"17.23.13.110-052",796,"Штука",212.67]
[null,309,"17.23.13","Журналы регистрационные, книги бухгалтерские, скоросшиватели (папки), бланки и прочие канцелярские принадлежности из бумаги или картона. Пояснение по требуемой продукции: клейкие закладки бумажные","17.23.13.199-023",778,"Упаковка",203.03]
[null,310,"17.23.13","Журналы регистрационные, книги бухгалтерские, скоросшиватели (папки), бланки и прочие канцелярские принадлежности из бумаги или картона. Пояснение по требуемой продукции: книга алфавитная","17.23.13.191-003",796,"Штука",313.58999999999997]
[{"$nulls":4},"17.23.13.191-013",796,"Штука",454.02]
[null,311,"17.23.13","Журналы регистрационные, книги бухгалтерские, скоросшиватели (папки), бланки и прочие канцелярские принадлежности из бумаги или картона. Пояснение по требуемой продукции: книга отзывов и предложений","17.23.13.110-039",796,"Штука",273.97000000000003]
[{"$nulls":4},"17.23.13.110-040",796,"Штука",137.27000000000001]
[null,312,"17.23.13","Журналы регистрационные, книги бухгалтерские, скоросшиватели (папки), бланки и прочие канцелярские принадлежности из бумаги или картона. Пояснение по требуемой продукции: книга учета материальных ценностей","17.23.13.120-001",796,"Штука",452.3]
[{"$nulls":4},"17.23.13.120-005",796,"Штука",558]
[null,313,"17.23.13","Журналы регистрационные, книги бухгалтерские, скоросшиватели (папки), бланки и прочие канцелярские принадлежности из бумаги или картона. Пояснение по требуемой продукции: книга учета универсальная","17.23.13.120-003",796,"Штука",256.49]
[{"$nulls":4},"17.23.13.120-004",796,"Штука",369.21]
[null,314,"17.23.13","Журналы регистрационные, книги бухгалтерские, скоросшиватели (папки), бланки и прочие канцелярские принадлежности из бумаги или картона. Пояснение по требуемой продукции: лоток для бумаги картонный вертикальный","17.23.13.199-024",796,"Штука",265.14999999999998]
[{"$nulls":4},"17.23.13.199-025",796,"Штука",86.09]
[null,315,"17.23.13","Журналы регистрационные, книги бухгалтерские, скоросшиватели (папки), бланки и прочие канцелярские принадлежности из бумаги или картона. Пояснение по требуемой продукции: обложка для переплета картонная","17.23.13.199-026",778,"Упаковка",1359.3]
[{"$nulls":4},"17.23.13.199-027",778,"Упаковка",3277.84]
[{"$nulls":4},"17.23.13.199-033",778,"Упаковка",1871.25]
[null,316,"17.23.13","Журналы регистрационные, книги бухгалтерские, скоросшиватели (папки), бланки и прочие канцелярские принадлежности из бумаги или картона. Пояснение по требуемой продукции: папка для рисования","17.23.13.192-009",796,"Штука",353.93]
[{"$nulls":4},"17.23.13.192-011",796,"Штука",287.85000000000002]
[null,317,"17.23.13","Журналы регистрационные, книги бухгалтерские, скоросшиватели (папки), бланки и прочие канцелярские принадлежности из бумаги или картона. Пояснение по требуемой продукции: папка для черчения с листами","17.23.13.192-005",796,"Штука",375.62]
[{"$nulls":4},"17.23.13.192-006",796,"Штука",268.11]
[null,318,"17.23.13","Журналы регистрационные, книги бухгалтерские, скоросшиватели (папки), бланки и прочие канцелярские принадлежности из бумаги или картона. Пояснение по требуемой продукции: папка картонная (адресная)","17.23.13.130-007",796,"Штука",612.14]
[{"$nulls":4},"17.23.13.130-008",796,"Штука",1720.4]
[null,319,"17.23.13","Журналы регистрационные, книги бухгалтерские, скоросшиватели (папки), бланки и прочие канцелярские принадлежности из бумаги или картона. Пояснение по требуемой продукции: папка картонная (папка архивная для переплета)","17.23.13.193-016",796,"Штука",197.43]
[{"$nulls":4},"17.23.13.193-015",796,"Штука",296.16000000000003]
[null,320,"17.23.13","Журналы регистрационные, книги бухгалтерские, скоросшиватели (папки), бланки и прочие канцелярские принадлежности из бумаги или картона. Пояснение по требуемой продукции: папка картонная (папка архивная)","17.23.13.193-011",796,"Штука",24.84]
[{"$nulls":4},"17.23.13.193-012",796,"Штука",41.94]
[{"$nulls":4},"17.23.13.193-013",796,"Штука",195.76]
[{"$nulls":4},"17.23.13.193-014",796,"Штука",343.47]
[{"$nulls":4},"17.23.13.193-028",796,"Штука",252.9]
[{"$nulls":4},"17.23.13.193-029",796,"Штука",477.63]
[null,321,"17.23.13","Журналы регистрационные, книги бухгалтерские, скоросшиватели (папки), бланки и прочие канцелярские принадлежности из бумаги или картона. Пояснение по требуемой продукции: папка картонная (папка-обложка без скоросшивателя)","17.23.13.130-024",796,"Штука",7.52]
[{"$nulls":4},"17.23.13.130-025",796,"Штука",13]
[{"$nulls":4},"17.23.13.130-026",796,"Штука",19.68]
[null,322,"17.23.13","Журналы регистрационные, книги бухгалтерские, скоросшиватели (папки), бланки и прочие канцелярские принадлежности из бумаги или картона. Пояснение по требуемой продукции: папка картонная (папка-планшет)","17.23.13.130-004",796,"Штука",280.91000000000003]
[{"$nulls":4},"17.23.13.130-005",796,"Штука",384.26]
[null,323,"17.23.13","Журналы регистрационные, книги бухгалтерские, скоросшиватели (папки), бланки и прочие канцелярские принадлежности из бумаги или картона. Пояснение по требуемой продукции: папка картонная (папка-регистратор)","17.23.13.193-006",796,"Штука",375.51]
[{"$nulls":4},"17.23.13.193-007",796,"Штука",1312.13]
[{"$nulls":4},"17.23.13.193-008",796,"Штука",406.1]
[{"$nulls":4},"17.23.13.193-009",796,"Штука",323.17]
[{"$nulls":4},"17.23.13.193-031",796,"Штука",524.59]
[{"$nulls":4},"17.23.13.193-010",796,"Штука",601.51]
[{"$nulls":4},"17.23.13.193-030",796,"Штука",564.34]
[null,324,"17.23.13","Журналы регистрационные, книги бухгалтерские, скоросшиватели (папки), бланки и прочие канцелярские принадлежности из бумаги или картона. Пояснение по требуемой продукции: папка картонная (папка-скоросшиватель)","17.23.13.130-003",796,"Штука",17.82]
[{"$nulls":4},"17.23.13.130-017",796,"Штука",32.64]
[{"$nulls":4},"17.23.13.130-018",796,"Штука",100.75]
[null,325,"17.23.13","Журналы регистрационные, книги бухгалтерские, скоросшиватели (папки), бланки и прочие канцелярские принадлежности из бумаги или картона. Пояснение по требуемой продукции: папка подвесная","17.23.13.130-023",796,"Штука",161.53]
[null,326,"17.23.13","Журналы регистрационные, книги бухгалтерские, скоросшиватели (папки), бланки и прочие канцелярские принадлежности из бумаги или картона. Пояснение по требуемой продукции: переплетные крышки","17.23.13.193-001",778,"Упаковка",2283.27]
[null,327,"17.23.13","Журналы регистрационные, книги бухгалтерские, скоросшиватели (папки), бланки и прочие канцелярские принадлежности из бумаги или картона. Пояснение по требуемой продукции: планинг","17.23.13.191-002",796,"Штука",653.32000000000005]
[{"$nulls":4},"17.23.13.191-006",796,"Штука",494.28]
[{"$nulls":4},"17.23.13.191-007",796,"Штука",1805.47]
[{"$nulls":4},"17.23.13.191-008",796,"Штука",622.86]
[{"$nulls":4},"17.23.13.191-009",796,"Штука",835.35]
[null,328,"17.23.13","Журналы регистрационные, книги бухгалтерские, скоросшиватели (папки), бланки и прочие канцелярские принадлежности из бумаги или картона. Пояснение по требуемой продукции: разделитель листов картонный","17.23.13.199-002",778,"Упаковка",350.44]
[null,329,"17.23.13","Журналы регистрационные, книги бухгалтерские, скоросшиватели (папки), бланки и прочие канцелярские принадлежности из бумаги или картона. Пояснение по требуемой продукции: тетрадь различного назначения","17.23.13.196-001",796,"Штука",145.59]
[{"$nulls":4},"17.23.13.196-002",796,"Штука",302.02999999999997]
[{"$nulls":4},"17.23.13.196-003",796,"Штука",186.63]
[{"$nulls":4},"17.23.13.196-004",796,"Штука",278.45]
[{"$nulls":4},"17.23.13.196-005",796,"Штука",401.07]
[{"$nulls":4},"17.23.13.196-006",796,"Штука",610.34]
[{"$nulls":4},"17.23.13.196-007",796,"Штука",157.5]
[null,330,"17.23.13","Журналы регистрационные, книги бухгалтерские, скоросшиватели (папки), бланки и прочие канцелярские принадлежности из бумаги или картона. Пояснение по требуемой продукции: тетрадь ученическая общая","17.23.13.195-002",796,"Штука",48.07]
[{"$nulls":4},"17.23.13.195-003",796,"Штука",83.03]
[{"$nulls":4},"17.23.13.195-008",796,"Штука",55.41]
[{"$nulls":4},"17.23.13.195-009",796,"Штука",100.41]
[null,331,"17.23.13","Журналы регистрационные, книги бухгалтерские, скоросшиватели (папки), бланки и прочие канцелярские принадлежности из бумаги или картона. Пояснение по требуемой продукции: тетрадь ученическая школьная","17.23.13.194-001",796,"Штука",30.15]
[{"$nulls":4},"17.23.13.194-002",796,"Штука",25.25]
[{"$nulls":4},"17.23.13.194-003",796,"Штука",29.8]
[{"$nulls":4},"17.23.13.194-004",796,"Штука",23.36]
[{"$nulls":4},"17.23.13.194-005",796,"Штука",16.55]
[{"$nulls":4},"17.23.13.194-006",796,"Штука",17.16]
[null,332,"17.23.13","Журналы регистрационные, книги бухгалтерские, скоросшиватели (папки), бланки и прочие канцелярские принадлежности из бумаги или картона. Пояснение по требуемой продукции: трудовая книжка","17.23.13.141-001",796,"Штука",566.04]
[null,333,"17.23.13","Журналы регистрационные, книги бухгалтерские, скоросшиватели (папки), бланки и прочие канцелярские принадлежности из бумаги или картона. Пояснение по требуемой продукции: вкладыш в трудовую книжку","17.23.13.141-002",796,"Штука",562.75]
[null,334,"17.23.13","Журналы регистрационные, книги бухгалтерские, скоросшиватели (папки), бланки и прочие канцелярские принадлежности из бумаги или картона. Пояснение по требуемой продукции: личная карточка учащегося","17.23.13.141-009",796,"Штука",12.55]
[null,335,"17.23.14","Бумага и картон прочие, используемые для письма или печати или прочих графических целей, тисненые, гофрированные или перфорированные. Пояснение по требуемой продукции: бумага миллиметровая (в упаковке)","17.23.14.110-010",778,"Упаковка",321.81]
[null,336,"17.23.14","Бумага и картон прочие, используемые для письма или печати или прочих графических целей, тисненые, гофрированные или перфорированные. Пояснение по требуемой продукции: бумага миллиметровая (в рулоне)","17.23.14.110-011",736,"Рулон",433.61]
[null,337,"17.23.14","Бумага и картон прочие, используемые для письма или печати или прочих графических целей, тисненые, гофрированные или перфорированные. Пояснение по требуемой продукции: картон канцелярский (белый)","17.23.14.120-001",778,"Упаковка",1522.35]
[{"$nulls":4},"17.23.14.120-003",778,"Упаковка",115.71]
[{"$nulls":4},"17.23.14.120-006",778,"Упаковка",1079.25]
[null,338,"17.23.14","Бумага и картон прочие, используемые для письма или печати или прочих графических целей, тисненые, гофрированные или перфорированные. Пояснение по требуемой продукции: картон канцелярский (цветной)","17.23.14.120-002",778,"Упаковка",166.84]
[{"$nulls":4},"17.23.14.120-004",778,"Упаковка",251.73]
[{"$nulls":4},"17.23.14.120-005",778,"Упаковка",154.31]
[{"$nulls":4},"17.23.14.120-007",778,"Упаковка",216.69]
[null,339,"17.29.11","Ярлыки и этикетки из бумаги или картона. Пояснение по требуемой продукции: этикетки термотрансферные","17.29.11.110-001",736,"Рулон",1616.25]
[{"$nulls":4},"17.29.11.110-002",736,"Рулон",477.67]
[{"$nulls":4},"17.29.11.110-003",736,"Рулон",402.76]
[{"$nulls":4},"17.29.11.110-004",736,"Рулон",388.75]
[{"$nulls":4},"17.29.11.110-005",736,"Рулон",469.42]
[null,340,"20.30.23","Краски для художников, учащихся или оформителей вывесок; красители оттеночные, краски любительские и аналогичные продукты. Пояснение по требуемой продукции: краска для рисования","20.30.23.110-001",796,"Штука",248.67]
[{"$nulls":4},"20.30.23.110-002",796,"Штука",464.37]
[{"$nulls":4},"20.30.23.110-003",796,"Штука",154.87]
[{"$nulls":4},"20.30.23.110-004",796,"Штука",767]
[{"$nulls":4},"20.30.23.110-005",796,"Штука",489.33]
[{"$nulls":4},"20.30.23.110-006",796,"Штука",232.08]
[{"$nulls":4},"20.30.23.110-007",796,"Штука",1021.41]
[{"$nulls":4},"20.30.23.110-008",796,"Штука",251.83]
[{"$nulls":4},"20.30.23.110-009",796,"Штука",107.65]
[{"$nulls":4},"20.30.23.110-010",796,"Штука",536.78]
[{"$nulls":4},"20.30.23.110-011",796,"Штука",367.38]
[{"$nulls":4},"20.30.23.110-012",796,"Штука",444.4]
[{"$nulls":4},"20.30.23.110-013",796,"Штука",687.07]
[{"$nulls":4},"20.30.23.110-014",796,"Штука",653.80999999999995]
[{"$nulls":4},"20.30.23.110-015",796,"Штука",374.92]
[{"$nulls":4},"20.30.23.110-016",796,"Штука",1205.17]
[{"$nulls":4},"20.30.23.110-017",796,"Штука",135.81]
[{"$nulls":4},"20.30.23.110-018",796,"Штука",233.67]
[{"$nulls":4},"20.30.23.110-019",796,"Штука",244.39]
[{"$nulls":4},"20.30.23.110-020",796,"Штука",240.33]
[{"$nulls":4},"20.30.23.110-021",796,"Штука",732.67]
[{"$nulls":4},"20.30.23.110-022",796,"Штука",739]
[{"$nulls":4},"20.30.23.110-023",796,"Штука",635.79999999999995]
[{"$nulls":4},"20.30.23.110-024",796,"Штука",223.86]
[{"$nulls":4},"20.30.23.110-025",796,"Штука",1590.41]
[{"$nulls":4},"20.30.23.110-026",796,"Штука",204.72]
[{"$nulls":4},"20.30.23.110-027",796,"Штука",120]
[{"$nulls":4},"20.30.23.110-028",796,"Штука",1189.5]
[{"$nulls":4},"20.30.23.110-029",796,"Штука",387.12]
[{"$nulls":4},"20.30.23.110-030",796,"Штука",2958.69]
[{"$nulls":4},"20.30.23.110-031",796,"Штука",2545.75]
[{"$nulls":4},"20.30.23.110-032",796,"Штука",542.33000000000004]
[{"$nulls":4},"20.30.23.110-033",796,"Штука",2370.67]
[null,341,"20.41.44","Пасты чистящие, порошки и прочие чистящие средства. Пояснение по требуемой продукции: салфетки для оргтехники","20.41.44.190-014",778,"Упаковка",449.39]
[{"$nulls":4},"20.41.44.190-015",778,"Упаковка",187.71]
[null,342,"20.41.44","Пасты чистящие, порошки и прочие чистящие средства. Пояснение по требуемой продукции: спрей для чистки поверхностей","20.41.44.190-001",796,"Штука",307.52]
[{"$nulls":4},"20.41.44.190-002",796,"Штука",220.18]
[null,343,"20.41.44","Пасты чистящие, порошки и прочие чистящие средства. Пояснение по требуемой продукции: средство для удаления этикеток","20.41.44.190-007",796,"Штука",2175.27]
[null,344,"20.52.10","Клеи. Пояснение по требуемой продукции: клей канцелярский","20.52.10.190-001",796,"Штука",64.739999999999995]
[{"$nulls":4},"20.52.10.190-002",796,"Штука",98.07]
[{"$nulls":4},"20.52.10.190-003",796,"Штука",67.790000000000006]
[{"$nulls":4},"20.52.10.190-008",796,"Штука",98.66]
[{"$nulls":4},"20.52.10.190-010",796,"Штука",38.979999999999997]
[{"$nulls":4},"20.52.10.190-011",796,"Штука",78.64]
[{"$nulls":4},"20.52.10.190-012",796,"Штука",163.69999999999999]
[{"$nulls":4},"20.52.10.190-009",796,"Штука",136.41]
[{"$nulls":4},"20.52.10.190-020",796,"Штука",94.29]
[{"$nulls":4},"20.52.10.190-041",796,"Штука",46.26]
[null,345,"20.52.10","Клеи. Пояснение по требуемой продукции: клей полимерный","20.52.10.190-032",166,"Килограмм",4592.6000000000004]
[{"$nulls":4},"20.52.10.190-033",166,"Килограмм",28428.43]
[{"$nulls":4},"20.52.10.190-034",166,"Килограмм",2422]
[{"$nulls":4},"20.52.10.190-035",166,"Килограмм",1925.24]
[{"$nulls":4},"20.52.10.190-036",166,"Килограмм",489.72]
[null,346,"20.52.10","Клеи. Пояснение по требуемой продукции: клей поливинилацетатный","20.52.10.190-026",112,"Литр; кубический дециметр",974.66]
[{"$nulls":4},"20.52.10.190-027",112,"Литр; кубический дециметр",475.43]
[{"$nulls":4},"20.52.10.190-028",112,"Литр; кубический дециметр",1107.69]
[{"$nulls":4},"20.52.10.190-029",112,"Литр; кубический дециметр",470.53]
[null,347,"20.59.11","Фотопластинки и фотопленки, фотопленки для моментальных фотоснимков, светочувствительные, неэкспонированные; фотобумаги. Пояснение по требуемой продукции: фотобумага для офисной техники (листовая)","20.59.11.130-001",778,"Упаковка",803.51]
[{"$nulls":4},"20.59.11.130-002",778,"Упаковка",1224.21]
[{"$nulls":4},"20.59.11.130-003",778,"Упаковка",1444]
[{"$nulls":4},"20.59.11.130-004",778,"Упаковка",2291.5700000000002]
[null,348,"20.59.11","Фотопластинки и фотопленки, фотопленки для моментальных фотоснимков, светочувствительные, неэкспонированные; фотобумаги. Пояснение по требуемой продукции: фотобумага для офисной техники (в рулоне)","20.59.11.130-009",736,"Рулон",7690.36]
[null,349,"20.59.30","Чернила для письма или рисования и прочие чернила. Пояснение по требуемой продукции: картридж с чернилами","20.59.30.110-001",796,"Штука",117.88]
[null,350,"20.59.30","Чернила для письма или рисования и прочие чернила. Пояснение по требуемой продукции: краска штемпельная","20.59.30.190-001",796,"Штука",252.59]
[{"$nulls":4},"20.59.30.190-002",796,"Штука",2420.3000000000002]
[{"$nulls":4},"20.59.30.190-003",796,"Штука",105.49]
[{"$nulls":4},"20.59.30.190-004",796,"Штука",992.05]
[null,351,"20.59.30","Чернила для письма или рисования и прочие чернила. Пояснение по требуемой продукции: тушь чертежная","20.59.30.110-003",796,"Штука",61.37]
[null,352,"20.59.30","Чернила для письма или рисования и прочие чернила. Пояснение по требуемой продукции: чернила для ручек","20.59.30.110-002",796,"Штука",66.37]
[null,353,"20.59.52","Пасты для лепки; зуботехнический воск и прочие материалы на основе гипса, используемые в стоматологии; составы и заряды для огнетушителей; готовые питательные среды для выращивания микроорганизмов; сложные диагностические или лабораторные реагенты, не включенные в другие группировки. Пояснение по требуемой продукции: пластилин для детского творчества","20.59.52.110-001",778,"Упаковка",191.03]
[{"$nulls":4},"20.59.52.110-002",778,"Упаковка",243.98]
[{"$nulls":4},"20.59.52.110-003",778,"Упаковка",123.47]
[{"$nulls":4},"20.59.52.110-005",778,"Упаковка",393]
[{"$nulls":4},"20.59.52.110-009",778,"Упаковка",248.82]
[{"$nulls":4},"20.59.52.110-010",778,"Упаковка",531.52]
[null,354,"20.59.52","Пасты для лепки; зуботехнический воск и прочие материалы на основе гипса, используемые в стоматологии; составы и заряды для огнетушителей; готовые питательные среды для выращивания микроорганизмов; сложные диагностические или лабораторные реагенты, не включенные в другие группировки. Пояснение по требуемой продукции: пластилин для опечатывания","20.59.52.110-004",778,"Упаковка",502.83]
[null,355,"20.59.59","Продукты разные химические, не включенные в другие группировки. Пояснение по требуемой продукции: разбавитель средства корректирующего канцелярского","20.59.59.900-091",796,"Штука",67.459999999999994]
[null,356,"20.59.59","Продукты разные химические, не включенные в другие группировки. Пояснение по требуемой продукции: средство корректирующее канцелярское (жидкость)","20.59.59.900-094",796,"Штука",83.71]
[null,357,"20.59.59","Продукты разные химические, не включенные в другие группировки. Пояснение по требуемой продукции: средство корректирующее канцелярское (карандаш/ручка)","20.59.59.900-093",796,"Штука",153.57]
[{"$nulls":4},"20.59.59.900-016",796,"Штука",118.14]
[null,358,"20.59.59","Продукты разные химические, не включенные в другие группировки. Пояснение по требуемой продукции: средство корректирующее канцелярское (лента)","20.59.59.900-092",796,"Штука",233.29]
[{"$nulls":4},"20.59.59.900-015",796,"Штука",229.74]
[null,359,"20.60.12","Нити полиамидные и полиэфирные высокопрочные. Пояснение по требуемой продукции: нить прошивная","20.60.12.120-001",616,"Бобина",260.87]
[null,360,"22.19.60","Предметы одежды и ее аксессуары из вулканизированной резины, кроме твердой резины (эбонита). Пояснение по требуемой продукции: напальчник для бумаги","22.19.60.190-001",796,"Штука",30.9]
[{"$nulls":4},"22.19.60.190-002",796,"Штука",47.37]
[null,361,"22.19.73","Изделия из вулканизированной резины прочие, не включенные в другие группировки; твердая резина во всех формах и изделия из нее; напольные покрытия и коврики из вулканизированной пористой резины. Пояснение по требуемой продукции: банковская резинка","22.19.73.120-007",166,"Килограмм",1544.9]
[{"$nulls":4},"22.19.73.120-008",166,"Килограмм",1091.94]
[null,362,"22.19.73","Изделия из вулканизированной резины прочие, не включенные в другие группировки; твердая резина во всех формах и изделия из нее; напольные покрытия и коврики из вулканизированной пористой резины. Пояснение по требуемой продукции: клише печати","22.19.73.120-005",796,"Штука",1052.72]
[{"$nulls":4},"22.19.73.120-006",796,"Штука",3216.67]
[{"$nulls":4},"22.19.73.120-009",796,"Штука",1220]
[null,363,"22.19.73","Изделия из вулканизированной резины прочие, не включенные в другие группировки; твердая резина во всех формах и изделия из нее; напольные покрытия и коврики из вулканизированной пористой резины. Пояснение по требуемой продукции: стирательная резинка","22.19.73.120-001",796,"Штука",34.93]
[{"$nulls":4},"22.19.73.120-002",796,"Штука",22.8]
[{"$nulls":4},"22.19.73.120-003",796,"Штука",70.63]
[{"$nulls":4},"22.19.73.120-004",796,"Штука",93.7]
[null,364,"22.21.30","Плиты, листы, пленка и полосы (ленты) полимерные, неармированные или не комбинированные с другими материалами. Пояснение по требуемой продукции: лента упаковочная","22.21.30.130-002",616,"Бобина",261.67]
[null,365,"22.21.42","Плиты, листы, пленка и полосы (ленты) прочие пластмассовые непористые. Пояснение по требуемой продукции: лента сигнальная","22.21.42.130-001",736,"Рулон",438.63]
[{"$nulls":4},"22.21.42.130-002",736,"Рулон",360]
[null,366,"22.21.42","Плиты, листы, пленка и полосы (ленты) прочие пластмассовые непористые. Пояснение по требуемой продукции: пленка для ламинирования","22.21.42.129-003",778,"Упаковка",2266.02]
[{"$nulls":4},"22.21.42.129-004",778,"Упаковка",7829.2]
[{"$nulls":4},"22.21.42.129-006",778,"Упаковка",534.4]
[{"$nulls":4},"22.21.42.129-007",778,"Упаковка",3519.33]
[{"$nulls":4},"22.21.42.129-008",778,"Упаковка",4474.47]
[{"$nulls":4},"22.21.42.129-010",778,"Упаковка",790.58]
[{"$nulls":4},"22.21.42.129-011",778,"Упаковка",1999.75]
[null,367,"22.22.19","Изделия упаковочные пластмассовые прочие. Пояснение по требуемой продукции: пакет почтовый пластиковый","22.22.19.190-002",796,"Штука",35.229999999999997]
[{"$nulls":4},"22.22.19.190-003",796,"Штука",27.78]
[null,368,"22.29.21","Плиты, листы, пленка, лента и прочие плоские полимерные самоклеящиеся формы, в рулонах шириной не более 20 см. Пояснение по требуемой продукции: клейкая лента","22.29.21.000-003",796,"Штука",289.95]
[{"$nulls":4},"22.29.21.000-005",796,"Штука",15.73]
[{"$nulls":4},"22.29.21.000-009",796,"Штука",212.55]
[{"$nulls":4},"22.29.21.000-013",796,"Штука",36.75]
[{"$nulls":4},"22.29.21.000-020",796,"Штука",113.69]
[{"$nulls":4},"22.29.21.000-002",796,"Штука",163.24]
[{"$nulls":4},"22.29.21.000-007",796,"Штука",191.24]
[{"$nulls":4},"22.29.21.000-017",796,"Штука",97.4]
[null,369,"22.29.21","Плиты, листы, пленка, лента и прочие плоские полимерные самоклеящиеся формы, в рулонах шириной не более 20 см. Пояснение по требуемой продукции: лента техническая с липким слоем","22.29.21.000-001",736,"Рулон",342.04]
[{"$nulls":4},"22.29.21.000-004",736,"Рулон",235.74]
[{"$nulls":4},"22.29.21.000-008",736,"Рулон",208.42]
[{"$nulls":4},"22.29.21.000-015",736,"Рулон",811]
[{"$nulls":4},"22.29.21.000-018",736,"Рулон",1010]
[{"$nulls":4},"22.29.21.000-019",736,"Рулон",1852.5]
[null,370,"22.29.21","Плиты, листы, пленка, лента и прочие плоские полимерные самоклеящиеся формы, в рулонах шириной не более 20 см. Пояснение по требуемой продукции: наклейки для опечатывания документов","22.29.21.000-014",736,"Рулон",2006.47]
[{"$nulls":4},"22.29.21.000-022",778,"Упаковка",317.89999999999998]
[{"$nulls":4},"22.29.21.000-023",736,"Рулон",1212.02]
[null,371,"22.29.21","Плиты, листы, пленка, лента и прочие плоские полимерные самоклеящиеся формы, в рулонах шириной не более 20 см. Пояснение по требуемой продукции: наклейки пломбировочные","22.29.21.000-010",736,"Рулон",5870.15]
[null,372,"22.29.21","Плиты, листы, пленка, лента и прочие плоские полимерные самоклеящиеся формы, в рулонах шириной не более 20 см. Пояснение по требуемой продукции: подушечки клеевые","22.29.21.000-016",778,"Упаковка",349.35]
[null,373,"22.29.22","Плиты, листы, пленка, лента и прочие плоские пластмассовые самоклеящиеся формы, прочие. Пояснение по требуемой продукции: карман самоклеящийся для папки","22.29.22.000-005",796,"Штука",113.42]
[{"$nulls":4},"22.29.22.000-006",796,"Штука",21.77]
[{"$nulls":4},"22.29.22.000-007",796,"Штука",47.39]
[null,374,"22.29.22","Плиты, листы, пленка, лента и прочие плоские пластмассовые самоклеящиеся формы, прочие. Пояснение по требуемой продукции: наклейка","22.29.22.000-004",796,"Штука",322.33]
[null,375,"22.29.25","Принадлежности канцелярские или школьные пластмассовые. Пояснение по требуемой продукции: визитница","22.29.25.000-153",796,"Штука",559]
[null,376,"22.29.25","Принадлежности канцелярские или школьные пластмассовые. Пояснение по требуемой продукции: бейдж","22.29.25.000-065",796,"Штука",52.69]
[{"$nulls":4},"22.29.25.000-071",796,"Штука",57.53]
[{"$nulls":4},"22.29.25.000-090",796,"Штука",77.87]
[null,377,"22.29.25","Принадлежности канцелярские или школьные пластмассовые. Пояснение по требуемой продукции:\nбирка-брелок для ключей","22.29.25.000-066",778,"Упаковка",708.74]
[{"$nulls":4},"22.29.25.000-163",778,"Упаковка",251.32]
[null,378,"22.29.25","Принадлежности канцелярские или школьные пластмассовые. Пояснение по требуемой продукции: бокс для блок-кубика","22.29.25.000-040",796,"Штука",73.680000000000007]
[null,379,"22.29.25","Принадлежности канцелярские или школьные пластмассовые. Пояснение по требуемой продукции: губка для маркерной доски","22.29.25.000-044",796,"Штука",340.86]
[{"$nulls":4},"22.29.25.000-045",796,"Штука",463.53]
[null,380,"22.29.25","Принадлежности канцелярские или школьные пластмассовые. Пояснение по требуемой продукции: демосистема","22.29.25.000-072",796,"Штука",3797.04]
[{"$nulls":4},"22.29.25.000-073",796,"Штука",6778.74]
[{"$nulls":4},"22.29.25.000-074",796,"Штука",9884.9500000000007]
[null,381,"22.29.25","Принадлежности канцелярские или школьные пластмассовые. Пояснение по требуемой продукции: диспенсер для клейкой ленты","22.29.25.000-034",796,"Штука",541.15]
[null,382,"22.29.25","Принадлежности канцелярские или школьные пластмассовые. Пояснение по требуемой продукции: доска для лепки","22.29.25.000-111",796,"Штука",167.66]
[null,383,"22.29.25","Принадлежности канцелярские или школьные пластмассовые. Пояснение по требуемой продукции: клейкие закладки пластиковые","22.29.25.000-137",778,"Упаковка",104.2]
[{"$nulls":4},"22.29.25.000-138",778,"Упаковка",263.91000000000003]
[{"$nulls":4},"22.29.25.000-139",778,"Упаковка",96.34]
[{"$nulls":4},"22.29.25.000-140",778,"Упаковка",259.11]
[{"$nulls":4},"22.29.25.000-161",778,"Упаковка",173.09]
[null,384,"22.29.25","Принадлежности канцелярские или школьные пластмассовые. Пояснение по требуемой продукции: коврик на стол","22.29.25.000-043",796,"Штука",700.99]
[{"$nulls":4},"22.29.25.000-099",796,"Штука",1018.48]
[null,385,"22.29.25","Принадлежности канцелярские или школьные пластмассовые. Пояснение по требуемой продукции: лоток для бумаги пластиковый (веерный)","22.29.25.000-145",796,"Штука",869.61]
[null,386,"22.29.25","Принадлежности канцелярские или школьные пластмассовые. Пояснение по требуемой продукции: лоток для бумаги пластиковый (вертикальный)","22.29.25.000-016",796,"Штука",305.79000000000002]
[{"$nulls":4},"22.29.25.000-077",796,"Штука",354.08]
[{"$nulls":4},"22.29.25.000-102",796,"Штука",699.78]
[{"$nulls":4},"22.29.25.000-127",796,"Штука",1078.72]
[null,387,"22.29.25","Принадлежности канцелярские или школьные пластмассовые. Пояснение по требуемой продукции: лоток для бумаги пластиковый (горизонтальный)","22.29.25.000-019",796,"Штука",381.11]
[{"$nulls":4},"22.29.25.000-126",796,"Штука",1403.99]
[null,388,"22.29.25","Принадлежности канцелярские или школьные пластмассовые. Пояснение по требуемой продукции: лоток для рисования эбру","22.29.25.000-169",796,"Штука",221.37]
[null,389,"22.29.25","Принадлежности канцелярские или школьные пластмассовые. Пояснение по требуемой продукции: подставка для визиток настольная пластмассовая","22.29.25.000-124",796,"Штука",178.14]
[null,390,"22.29.25","Принадлежности канцелярские или школьные пластмассовые. Пояснение по требуемой продукции: подставка для подвесных папок","22.29.25.000-122",796,"Штука",4113.1000000000004]
[null,391,"22.29.25","Принадлежности канцелярские или школьные пластмассовые. Пояснение по требуемой продукции: разделитель для картотек","22.29.25.000-118",796,"Штука",634.77]
[null,392,"22.29.25","Принадлежности канцелярские или школьные пластмассовые. Пояснение по требуемой продукции: стакан-непроливайка для рисования","22.29.25.000-120",796,"Штука",69.75]
[{"$nulls":4},"22.29.25.000-168",796,"Штука",102.29]
[null,393,"22.29.25","Принадлежности канцелярские или школьные пластмассовые. Пояснение по требуемой продукции: бокс для бумаг","22.29.25.000-106",796,"Штука",3333.02]
[null,394,"22.29.25","Принадлежности канцелярские или школьные пластмассовые. Пояснение по требуемой продукции: индексное окно для картотек","22.29.25.000-119",796,"Штука",152.4]
[null,395,"22.29.25","Принадлежности канцелярские или школьные пластмассовые. Пояснение по требуемой продукции: коврик для резки","22.29.25.000-098",796,"Штука",1338.21]
[null,396,"22.29.25","Принадлежности канцелярские или школьные пластмассовые. Пояснение по требуемой продукции: набор для сшивания документов","22.29.25.000-060",704,"Набор",681.65]
[{"$nulls":4},"22.29.25.000-149",704,"Набор",903.33]
[null,397,"22.29.25","Принадлежности канцелярские или школьные пластмассовые. Пояснение по требуемой продукции: картотека","22.29.25.000-157",839,"Комплект",5406.77]
[null,398,"22.29.25","Принадлежности канцелярские или школьные пластмассовые. Пояснение по требуемой продукции: обложка для переплета пластиковая","22.29.25.000-003",778,"Упаковка",2783]
[{"$nulls":4},"22.29.25.000-004",778,"Упаковка",1493.04]
[{"$nulls":4},"22.29.25.000-129",778,"Упаковка",3885.73]
[null,399,"22.29.25","Принадлежности канцелярские или школьные пластмассовые. Пояснение по требуемой продукции: обложка для термопереплета","22.29.25.000-056",778,"Упаковка",4887.67]
[{"$nulls":4},"22.29.25.000-133",778,"Упаковка",5864.21]
[{"$nulls":4},"22.29.25.000-134",778,"Упаковка",6976.69]
[{"$nulls":4},"22.29.25.000-135",778,"Упаковка",2155.7800000000002]
[{"$nulls":4},"22.29.25.000-136",778,"Упаковка",5032]
[null,400,"22.29.25","Принадлежности канцелярские или школьные пластмассовые. Пояснение по требуемой продукции: обложка школьная","22.29.25.000-069",796,"Штука",47.28]
[{"$nulls":4},"22.29.25.000-091",796,"Штука",22.08]
[{"$nulls":4},"22.29.25.000-092",796,"Штука",7.98]
[{"$nulls":4},"22.29.25.000-152",796,"Штука",42.2]
[null,401,"22.29.25","Принадлежности канцелярские или школьные пластмассовые. Пояснение по требуемой продукции: палитра","22.29.25.000-167",796,"Штука",70.540000000000006]
[null,402,"22.29.25","Принадлежности канцелярские или школьные пластмассовые. Пояснение по требуемой продукции: папка пластиковая (папка архивная)","22.29.25.000-038",796,"Штука",90.28]
[{"$nulls":4},"22.29.25.000-130",796,"Штука",286.11]
[{"$nulls":4},"22.29.25.000-159",796,"Штука",336.5]
[{"$nulls":4},"22.29.25.000-154",796,"Штука",416.56]
[null,403,"22.29.25","Принадлежности канцелярские или школьные пластмассовые. Пояснение по требуемой продукции: папка пластиковая (папка файловая)","22.29.25.000-068",796,"Штука",129.47999999999999]
[{"$nulls":4},"22.29.25.000-078",796,"Штука",145.97]
[{"$nulls":4},"22.29.25.000-079",796,"Штука",324.64999999999998]
[{"$nulls":4},"22.29.25.000-080",796,"Штука",399.78]
[{"$nulls":4},"22.29.25.000-081",796,"Штука",516.39]
[null,404,"22.29.25","Принадлежности канцелярские или школьные пластмассовые. Пояснение по требуемой продукции: папка пластиковая (папка-конверт)","22.29.25.000-035",796,"Штука",38.53]
[{"$nulls":4},"22.29.25.000-036",796,"Штука",65]
[{"$nulls":4},"22.29.25.000-117",796,"Штука",405.5]
[{"$nulls":4},"22.29.25.000-089",796,"Штука",39.5]
[{"$nulls":4},"22.29.25.000-162",796,"Штука",50.89]
[{"$nulls":4},"22.29.25.000-165",796,"Штука",142.44999999999999]
[null,405,"22.29.25","Принадлежности канцелярские или школьные пластмассовые. Пояснение по требуемой продукции: папка пластиковая (папка-портфель)","22.29.25.000-109",796,"Штука",898.37]
[{"$nulls":4},"22.29.25.000-110",796,"Штука",1489.85]
[{"$nulls":4},"22.29.25.000-151",796,"Штука",550.25]
[null,406,"22.29.25","Принадлежности канцелярские или школьные пластмассовые. Пояснение по требуемой продукции: папка пластиковая (папка-регистратор)","22.29.25.000-037",796,"Штука",196.87]
[{"$nulls":4},"22.29.25.000-086",796,"Штука",244.05]
[{"$nulls":4},"22.29.25.000-039",796,"Штука",171.34]
[{"$nulls":4},"22.29.25.000-097",796,"Штука",237.93]
[null,407,"22.29.25","Принадлежности канцелярские или школьные пластмассовые. Пояснение по требуемой продукции: папка пластиковая (папка-скоросшиватель)","22.29.25.000-062",796,"Штука",249.93]
[{"$nulls":4},"22.29.25.000-063",796,"Штука",299.45]
[{"$nulls":4},"22.29.25.000-054",796,"Штука",19.95]
[{"$nulls":4},"22.29.25.000-055",796,"Штука",26.33]
[{"$nulls":4},"22.29.25.000-093",796,"Штука",21.26]
[{"$nulls":4},"22.29.25.000-096",796,"Штука",167.17]
[null,408,"22.29.25","Принадлежности канцелярские или школьные пластмассовые. Пояснение по требуемой продукции: папка пластиковая (папка-уголок)","22.29.25.000-023",796,"Штука",12.25]
[{"$nulls":4},"22.29.25.000-067",796,"Штука",34.340000000000003]
[{"$nulls":4},"22.29.25.000-143",796,"Штука",75.37]
[{"$nulls":4},"22.29.25.000-131",796,"Штука",70.39]
[{"$nulls":4},"22.29.25.000-166",796,"Штука",19.489999999999998]
[null,409,"22.29.25","Принадлежности канцелярские или школьные пластмассовые. Пояснение по требуемой продукции: подставка для канцелярских принадлежностей настольная (органайзер) пластиковая","22.29.25.000-046",796,"Штука",356.82]
[{"$nulls":4},"22.29.25.000-076",796,"Штука",132.32]
[{"$nulls":4},"22.29.25.000-160",796,"Штука",285.33]
[null,410,"22.29.25","Принадлежности канцелярские или школьные пластмассовые. Пояснение по требуемой продукции: подставка для перекидного календаря","22.29.25.000-061",796,"Штука",350.76]
[null,411,"22.29.25","Принадлежности канцелярские или школьные пластмассовые. Пояснение по требуемой продукции: подставка для презентаций","22.29.25.000-047",796,"Штука",368.08]
[{"$nulls":4},"22.29.25.000-123",796,"Штука",601.71]
[null,412,"22.29.25","Принадлежности канцелярские или школьные пластмассовые. Пояснение по требуемой продукции: подставка для рекламных буклетов","22.29.25.000-115",796,"Штука",482.15]
[{"$nulls":4},"22.29.25.000-125",796,"Штука",1513.64]
[null,413,"22.29.25","Принадлежности канцелярские или школьные пластмассовые. Пояснение по требуемой продукции: подушка для смачивания пальцев","22.29.25.000-112",796,"Штука",196.26]
[{"$nulls":4},"22.29.25.000-147",796,"Штука",65.52]
[null,414,"22.29.25","Принадлежности канцелярские или школьные пластмассовые. Пояснение по требуемой продукции: пружина для переплета пластмассовая","22.29.25.000-005",778,"Упаковка",663.94]
[{"$nulls":4},"22.29.25.000-006",778,"Упаковка",866.72]
[{"$nulls":4},"22.29.25.000-008",778,"Упаковка",1214.57]
[{"$nulls":4},"22.29.25.000-009",778,"Упаковка",1223.5999999999999]
[{"$nulls":4},"22.29.25.000-010",778,"Упаковка",1398.85]
[{"$nulls":4},"22.29.25.000-012",778,"Упаковка",1481.29]
[{"$nulls":4},"22.29.25.000-021",778,"Упаковка",1398.5]
[{"$nulls":4},"22.29.25.000-025",778,"Упаковка",686.52]
[{"$nulls":4},"22.29.25.000-028",778,"Упаковка",1580.5]
[{"$nulls":4},"22.29.25.000-029",778,"Упаковка",1329.47]
[{"$nulls":4},"22.29.25.000-030",778,"Упаковка",1613.38]
[{"$nulls":4},"22.29.25.000-031",778,"Упаковка",1780.31]
[{"$nulls":4},"22.29.25.000-032",778,"Упаковка",2040.28]
[{"$nulls":4},"22.29.25.000-033",778,"Упаковка",2191.1999999999998]
[null,415,"22.29.25","Принадлежности канцелярские или школьные пластмассовые. Пояснение по требуемой продукции: разделитель листов пластиковый","22.29.25.000-048",778,"Упаковка",245.07]
[{"$nulls":4},"22.29.25.000-049",778,"Упаковка",391.95]
[null,416,"22.29.25","Принадлежности канцелярские или школьные пластмассовые. Пояснение по требуемой продукции: скрепочница","22.29.25.000-053",796,"Штука",312.06]
[null,417,"22.29.25","Принадлежности канцелярские или школьные пластмассовые. Пояснение по требуемой продукции: трафарет","22.29.25.000-116",796,"Штука",63.11]
[{"$nulls":4},"22.29.25.000-148",796,"Штука",189.33]
[null,418,"22.29.25","Принадлежности канцелярские или школьные пластмассовые. Пояснение по требуемой продукции: тубус","22.29.25.000-156",796,"Штука",886]
[null,419,"22.29.25","Принадлежности канцелярские или школьные пластмассовые. Пояснение по требуемой продукции:\nфайл-вкладыш","22.29.25.000-022",778,"Упаковка",590.79999999999995]
[{"$nulls":4},"22.29.25.000-158",778,"Упаковка",343.41]
[{"$nulls":4},"22.29.25.000-058",778,"Упаковка",326.23]
[{"$nulls":4},"22.29.25.000-070",778,"Упаковка",764.1]
[{"$nulls":4},"22.29.25.000-082",778,"Упаковка",402.66]
[{"$nulls":4},"22.29.25.000-083",778,"Упаковка",547.76]
[{"$nulls":4},"22.29.25.000-084",778,"Упаковка",313.32]
[{"$nulls":4},"22.29.25.000-103",796,"Штука",186.7]
[{"$nulls":4},"22.29.25.000-155",778,"Упаковка",855.61]
[null,420,"22.29.25","Принадлежности канцелярские или школьные пластмассовые. Пояснение по требуемой продукции:\nфайл-вкладыш (для визиток)","22.29.25.000-141",778,"Упаковка",647.54]
[null,421,"22.29.25","Принадлежности канцелярские или школьные пластмассовые. Пояснение по требуемой продукции:\nфайл-вкладыш (для компакт-дисков)","22.29.25.000-142",796,"Штука",16.88]
[null,422,"22.29.26","Фурнитура для мебели, транспортных средств и аналогичные пластмассовые изделия; статуэтки и прочие декоративные изделия пластмассовые. Пояснение по требуемой продукции: рамка для документов","22.29.26.190-001",796,"Штука",509.01]
[{"$nulls":4},"22.29.26.190-003",796,"Штука",342.34]
[null,423,"22.29.29","Изделия пластмассовые прочие. Пояснение по требуемой продукции: карман информационный","22.29.29.190-010",796,"Штука",679]
[{"$nulls":4},"22.29.29.190-117",796,"Штука",73.86]
[null,424,"22.29.29","Изделия пластмассовые прочие. Пояснение по требуемой продукции: пломба контрольная","22.29.29.190-008",796,"Штука",9.33]
[null,425,"22.29.29","Изделия пластмассовые прочие. Пояснение по требуемой продукции: подставка для паспорта","22.29.29.190-009",796,"Штука",385.05]
[null,426,"22.29.29","Изделия пластмассовые прочие. Пояснение по требуемой продукции: специализированные указатели направления движения для инвалидов и других маломобильных групп населения","22.29.29.190-108",796,"Штука",141]
[{"$nulls":4},"22.29.29.190-109",796,"Штука",141]
[{"$nulls":4},"22.29.29.190-110",796,"Штука",141]
[{"$nulls":4},"22.29.29.190-111",796,"Штука",141]
[{"$nulls":4},"22.29.29.190-112",796,"Штука",134.33000000000001]
[{"$nulls":4},"22.29.29.190-113",796,"Штука",134.33000000000001]
[{"$nulls":4},"22.29.29.190-114",796,"Штука",134.33000000000001]
[null,427,"22.29.29","Изделия пластмассовые прочие. Пояснение по требуемой продукции: специализированный знак для инвалидов","22.29.29.190-105",796,"Штука",163.5]
[{"$nulls":4},"22.29.29.190-106",796,"Штука",161.53]
[{"$nulls":4},"22.29.29.190-107",796,"Штука",155.19999999999999]
[{"$nulls":4},"22.29.29.190-012",796,"Штука",801.13]
[{"$nulls":4},"22.29.29.190-013",796,"Штука",1427]
[{"$nulls":4},"22.29.29.190-014",796,"Штука",1386.56]
[null,428,"22.29.29","Изделия пластмассовые прочие. Пояснение по требуемой продукции: табличка информационная","22.29.29.190-011",796,"Штука",645.66999999999996]
[null,429,"25.71.11","Ножи (кроме ножей для машин) и ножницы; лезвия для них. Пояснение по требуемой продукции: лезвия для канцелярских ножей","25.71.11.130-001",778,"Упаковка",164.7]
[null,430,"25.71.11","Ножи (кроме ножей для машин) и ножницы; лезвия для них. Пояснение по требуемой продукции: ножницы канцелярские","25.71.11.120-001",796,"Штука",305.07]
[{"$nulls":4},"25.71.11.120-003",796,"Штука",313.33]
[{"$nulls":4},"25.71.11.120-004",796,"Штука",114.56]
[null,431,"25.71.13","Изделия ножевые прочие; наборы и инструменты маникюрные или педикюрные. Пояснение по требуемой продукции: нож канцелярский","25.71.13.110-005",796,"Штука",253.76]
[{"$nulls":4},"25.71.13.110-006",796,"Штука",43.93]
[null,432,"25.71.13","Изделия ножевые прочие; наборы и инструменты маникюрные или педикюрные. Пояснение по требуемой продукции: точилка канцелярская для карандашей","25.71.13.110-001",796,"Штука",12.06]
[{"$nulls":4},"25.71.13.110-002",796,"Штука",40]
[{"$nulls":4},"25.71.13.110-003",796,"Штука",101.96]
[{"$nulls":4},"25.71.13.110-004",796,"Штука",909.96]
[{"$nulls":4},"25.71.13.110-105",796,"Штука",212.85]
[null,433,"25.93.14","Гвозди, кнопки, кнопки чертежные, скобы и аналогичные изделия. Пояснение по требуемой продукции: кнопка канцелярская","25.93.14.130-001",778,"Упаковка",164.5]
[{"$nulls":4},"25.93.14.130-002",778,"Упаковка",48.59]
[null,434,"25.93.18","Иглы швейные, вязальные спицы, штопальные иглы, вязальные крючки, иглы для вышивания и аналогичные изделия для ручной работы из черных металлов; английские булавки и прочие булавки из черных металлов, не включенные в другие группировки. Пояснение по требуемой продукции: игла для прошивки документов","25.93.18.120-001",796,"Штука",23.03]
[null,435,"25.99.22","Лотки для бумаг, подставки для бумаг, лотки для ручек, подставки для печатей и аналогичное офисное или канцелярское оборудование из недрагоценных металлов, кроме офисной мебели. Пояснение по требуемой продукции: расшиватель для скоб","25.99.22.130-032",796,"Штука",103.29]
[null,436,"25.99.22","Лотки для бумаг, подставки для бумаг, лотки для ручек, подставки для печатей и аналогичное офисное или канцелярское оборудование из недрагоценных металлов, кроме офисной мебели. Пояснение по требуемой продукции: дырокол","25.99.22.130-026",796,"Штука",10723.5]
[{"$nulls":4},"25.99.22.130-027",796,"Штука",5354.22]
[{"$nulls":4},"25.99.22.130-029",796,"Штука",531.38]
[{"$nulls":4},"25.99.22.130-028",796,"Штука",1477.35]
[{"$nulls":4},"25.99.22.130-030",796,"Штука",534.6]
[{"$nulls":4},"25.99.22.130-031",796,"Штука",1482.15]
[{"$nulls":4},"25.99.22.130-041",796,"Штука",1369.01]
[{"$nulls":4},"25.99.22.130-042",796,"Штука",6321.67]
[null,437,"25.99.22","Лотки для бумаг, подставки для бумаг, лотки для ручек, подставки для печатей и аналогичное офисное или канцелярское оборудование из недрагоценных металлов, кроме офисной мебели. Пояснение по требуемой продукции: лоток для бумаги металлический (вертикальный)","25.99.22.110-001",796,"Штука",1246.82]
[{"$nulls":4},"25.99.22.110-002",796,"Штука",1346.25]
[null,438,"25.99.22","Лотки для бумаг, подставки для бумаг, лотки для ручек, подставки для печатей и аналогичное офисное или канцелярское оборудование из недрагоценных металлов, кроме офисной мебели. Пояснение по требуемой продукции: лоток для бумаги металлический (горизонтальный)","25.99.22.110-003",796,"Штука",3190.04]
[null,439,"25.99.22","Лотки для бумаг, подставки для бумаг, лотки для ручек, подставки для печатей и аналогичное офисное или канцелярское оборудование из недрагоценных металлов, кроме офисной мебели. Пояснение по требуемой продукции: подставка для канцелярских принадлежностей настольная (органайзер) металлическая","25.99.22.130-001",796,"Штука",871.19]
[{"$nulls":4},"25.99.22.130-002",796,"Штука",339.29]
[null,440,"25.99.22","Лотки для бумаг, подставки для бумаг, лотки для ручек, подставки для печатей и аналогичное офисное или канцелярское оборудование из недрагоценных металлов, кроме офисной мебели. Пояснение по требуемой продукции: подставка для книг","25.99.22.130-043",796,"Штука",295.8]
[null,441,"25.99.22","Лотки для бумаг, подставки для бумаг, лотки для ручек, подставки для печатей и аналогичное офисное или канцелярское оборудование из недрагоценных металлов, кроме офисной мебели. Пояснение по требуемой продукции: степлер","25.99.22.130-034",796,"Штука",2422.36]
[{"$nulls":4},"25.99.22.130-035",796,"Штука",240.11]
[{"$nulls":4},"25.99.22.130-036",796,"Штука",3493.58]
[{"$nulls":4},"25.99.22.130-037",796,"Штука",3819.01]
[{"$nulls":4},"25.99.22.130-038",796,"Штука",675.25]
[{"$nulls":4},"25.99.22.130-039",796,"Штука",5355.71]
[{"$nulls":4},"25.99.22.130-040",796,"Штука",2528.91]
[null,442,"25.99.23","Детали для скоросшивателей или папок, канцелярские зажимы и аналогичные канцелярские изделия и скобы в виде полос из недрагоценных металлов. Пояснение по требуемой продукции: механизм для скоросшивателя","25.99.23.000-033",796,"Штука",9.98]
[{"$nulls":4},"25.99.23.000-034",796,"Штука",41.43]
[null,443,"25.99.23","Детали для скоросшивателей или папок, канцелярские зажимы и аналогичные канцелярские изделия и скобы в виде полос из недрагоценных металлов. Пояснение по требуемой продукции: пружина для переплета металлическая","25.99.23.000-026",778,"Упаковка",1567.01]
[{"$nulls":4},"25.99.23.000-027",778,"Упаковка",2072.33]
[{"$nulls":4},"25.99.23.000-028",778,"Упаковка",2699]
[{"$nulls":4},"25.99.23.000-029",778,"Упаковка",2989.47]
[{"$nulls":4},"25.99.23.000-039",778,"Упаковка",1419.55]
[{"$nulls":4},"25.99.23.000-040",778,"Упаковка",1808.98]
[null,444,"25.99.23","Детали для скоросшивателей или папок, канцелярские зажимы и аналогичные канцелярские изделия и скобы в виде полос из недрагоценных металлов. Пояснение по требуемой продукции: зажим для бумаг","25.99.23.000-005",778,"Упаковка",195.15]
[{"$nulls":4},"25.99.23.000-006",778,"Упаковка",386.54]
[{"$nulls":4},"25.99.23.000-016",778,"Упаковка",61.88]
[{"$nulls":4},"25.99.23.000-017",778,"Упаковка",95.55]
[{"$nulls":4},"25.99.23.000-018",778,"Упаковка",165.14]
[{"$nulls":4},"25.99.23.000-019",778,"Упаковка",318.39]
[null,445,"25.99.23","Детали для скоросшивателей или папок, канцелярские зажимы и аналогичные канцелярские изделия и скобы в виде полос из недрагоценных металлов. Пояснение по требуемой продукции: люверсы канцелярские","25.99.23.000-022",778,"Упаковка",409.07]
[null,446,"25.99.23","Детали для скоросшивателей или папок, канцелярские зажимы и аналогичные канцелярские изделия и скобы в виде полос из недрагоценных металлов. Пояснение по требуемой продукции: скобы для степлера","25.99.23.000-042",778,"Упаковка",46.88]
[{"$nulls":4},"25.99.23.000-043",778,"Упаковка",484.79]
[{"$nulls":4},"25.99.23.000-044",778,"Упаковка",83.15]
[{"$nulls":4},"25.99.23.000-045",778,"Упаковка",247.52]
[{"$nulls":4},"25.99.23.000-046",778,"Упаковка",205.01]
[{"$nulls":4},"25.99.23.000-047",778,"Упаковка",295.79000000000002]
[{"$nulls":4},"25.99.23.000-048",778,"Упаковка",286.01]
[{"$nulls":4},"25.99.23.000-049",778,"Упаковка",266.10000000000002]
[{"$nulls":4},"25.99.23.000-050",778,"Упаковка",54.33]
[{"$nulls":4},"25.99.23.000-053",778,"Упаковка",379.93]
[{"$nulls":4},"25.99.23.000-054",778,"Упаковка",793.33]
[{"$nulls":4},"25.99.23.000-056",778,"Упаковка",162.82]
[null,447,"25.99.23","Детали для скоросшивателей или папок, канцелярские зажимы и аналогичные канцелярские изделия и скобы в виде полос из недрагоценных металлов. Пояснение по требуемой продукции: скрепки металлические","25.99.23.000-051",778,"Упаковка",82.65]
[{"$nulls":4},"25.99.23.000-052",778,"Упаковка",73.87]
[null,448,"25.99.23","Детали для скоросшивателей или папок, канцелярские зажимы и аналогичные канцелярские изделия и скобы в виде полос из недрагоценных металлов. Пояснение по требуемой продукции: шило канцелярское","25.99.23.000-021",796,"Штука",117.75]
[{"$nulls":4},"25.99.23.000-055",796,"Штука",305.16000000000003]
[null,449,"25.99.29","Изделия из недрагоценных металлов прочие, не включенные в другие группировки. Пояснение по требуемой продукции: магниты для досок","25.99.29.110-001",778,"Упаковка",226.8]
[null,450,"26.51.33","Приборы для измерения линейных размеров ручные (включая микрометры и штангенциркули), не включенные в другие группировки. Пояснение по требуемой продукции: линейка","26.51.33.141-006",796,"Штука",40.58]
[{"$nulls":4},"26.51.33.141-007",796,"Штука",52.68]
[{"$nulls":4},"26.51.33.141-002",796,"Штука",27.99]
[{"$nulls":4},"26.51.33.141-001",796,"Штука",98.39]
[{"$nulls":4},"26.51.33.141-008",796,"Штука",122.81]
[{"$nulls":4},"26.51.33.141-003",796,"Штука",476.77]
[{"$nulls":4},"26.51.33.141-005",796,"Штука",142.47]
[{"$nulls":4},"26.51.33.141-010",796,"Штука",651.91]
[{"$nulls":4},"26.51.33.141-012",796,"Штука",140.87]
[{"$nulls":4},"26.51.33.141-013",796,"Штука",44.79]
[null,451,"26.70.23","Устройства на жидких кристаллах; лазеры, кроме лазерных диодов; оптические приборы и инструменты прочие, не включенные в другие группировки. Пояснение по требуемой продукции: лупа ручная, опорная, лупа с подсветкой с увеличением до 10 крат","26.70.23.190-001",796,"Штука",154.01]
[{"$nulls":4},"26.70.23.190-009",796,"Штука",723.8]
[null,452,"27.20.11","Элементы первичные и батареи первичных элементов. Пояснение по требуемой продукции: элемент первичный и батарея первичных элементов","27.20.11.000-001",796,"Штука",85.87]
[{"$nulls":4},"27.20.11.000-002",796,"Штука",80.98]
[{"$nulls":4},"27.20.11.000-003",796,"Штука",543.22]
[{"$nulls":4},"27.20.11.000-004",796,"Штука",441.19]
[{"$nulls":4},"27.20.11.000-005",796,"Штука",366]
[{"$nulls":4},"27.20.11.000-006",796,"Штука",304.87]
[{"$nulls":4},"27.20.11.000-007",796,"Штука",424.12]
[{"$nulls":4},"27.20.11.000-008",796,"Штука",319.85000000000002]
[null,453,"27.20.11","Элементы первичные и батареи первичных элементов. Пояснение по требуемой продукции: элемент первичный и батарея первичных элементов (миниатюрные)","27.20.11.000-009",796,"Штука",113]
[{"$nulls":4},"27.20.11.000-011",796,"Штука",166.67]
[{"$nulls":4},"27.20.11.000-013",796,"Штука",188.33]
[{"$nulls":4},"27.20.11.000-014",796,"Штука",36.200000000000003]
[{"$nulls":4},"27.20.11.000-017",796,"Штука",72.17]
[{"$nulls":4},"27.20.11.000-018",796,"Штука",66.8]
[{"$nulls":4},"27.20.11.000-019",796,"Штука",197.21]
[{"$nulls":4},"27.20.11.000-020",796,"Штука",656.95]
[{"$nulls":4},"27.20.11.000-021",796,"Штука",29.63]
[{"$nulls":4},"27.20.11.000-022",796,"Штука",890.27]
[{"$nulls":4},"27.20.11.000-023",796,"Штука",193]
[{"$nulls":4},"27.20.11.000-024",796,"Штука",312.17]
[null,454,"27.20.23","Батареи аккумуляторные никель-кадмиевые, никель- металл-гидридные, литий- ионные, литий-полимерные, никель-железные и прочие. Пояснение по требуемой продукции: батарея аккумуляторная","27.20.23.120-001",796,"Штука",300.7]
[{"$nulls":4},"27.20.23.120-002",796,"Штука",468.09]
[null,455,"28.23.12","Калькуляторы электронные и устройства записи, копирования и вывода данных с функциями счетных устройств карманные. Пояснение по требуемой продукции: калькулятор электронный","28.23.12.110-001",796,"Штука",1592.33]
[{"$nulls":4},"28.23.12.110-002",796,"Штука",2420.19]
[{"$nulls":4},"28.23.12.110-003",796,"Штука",1322.04]
[null,456,"28.23.25","Части и принадлежности прочих офисных машин. Пояснение по требуемой продукции: картридж для\nэтикет-принтера","28.23.25.000-002",736,"Рулон",3921.15]
[{"$nulls":4},"28.23.25.000-754",778,"Упаковка",903.14]
[null,457,"28.23.25","Части и принадлежности прочих офисных машин. Пояснение по требуемой продукции: лента термотрансферная","28.23.25.000-001",736,"Рулон",390.49]
[{"$nulls":4},"28.23.25.000-413",736,"Рулон",504.75]
[{"$nulls":4},"28.23.25.000-896",736,"Рулон",912.41]
[{"$nulls":4},"28.23.25.000-897",736,"Рулон",719.62]
[{"$nulls":4},"28.23.25.000-898",736,"Рулон",537.1]
[null,458,"28.24.11","Инструменты ручные электрические. Пояснение по требуемой продукции: пистолет клеевой электрический","28.24.11.000-041",796,"Штука",1009.17]
[null,459,"28.99.11","Оборудование переплетное, включая брошюровочные машины. Пояснение по требуемой продукции: брошюровщик (на пластиковую пружину)","28.99.11.190-002",796,"Штука",11840.5]
[null,460,"28.99.11","Оборудование переплетное, включая брошюровочные машины. Пояснение по требуемой продукции: брошюровщик (на металлическую пружину)","28.99.11.190-003",796,"Штука",10609.5]
[null,461,"28.99.11","Оборудование переплетное, включая брошюровочные машины. Пояснение по требуемой продукции: резак для бумаги","28.99.11.111-001",796,"Штука",5011.1899999999996]
[null,462,"28.99.11","Оборудование переплетное, включая брошюровочные машины. Пояснение по требуемой продукции: степлер брошюровочный","28.99.11.190-001",796,"Штука",12759.81]
[null,463,"32.13.10","Бижутерия и подобные изделия. Пояснение по требуемой продукции: медаль за особые успехи в учении","32.13.10.120-005",839,"Комплект",708.87]
[null,464,"32.40.42","Изделия и принадлежности для бильярда, изделия для увеселительных, настольных или комнатных игр; прочие игры, действующие при опускании монет или жетонов. Пояснение по требуемой продукции: мольберт детский","32.40.42.199-025",796,"Штука",8859.67]
[null,465,"32.40.42","Изделия и принадлежности для бильярда, изделия для увеселительных, настольных или комнатных игр; прочие игры, действующие при опускании монет или жетонов. Пояснение по требуемой продукции: набор для детского творчества (для выжигания)","32.40.42.199-027",704,"Набор",1947.67]
[null,466,"32.91.12","Зубные щетки, щетки для волос и прочие туалетные щетки для ухода за внешностью; художественные кисти, кисточки для письма, косметические кисточки. Пояснение по требуемой продукции: кисть художественная","32.91.12.140-002",796,"Штука",53.49]
[{"$nulls":4},"32.91.12.140-003",796,"Штука",63.77]
[{"$nulls":4},"32.91.12.140-004",796,"Штука",83.96]
[{"$nulls":4},"32.91.12.140-005",796,"Штука",195]
[{"$nulls":4},"32.91.12.140-006",796,"Штука",128.82]
[{"$nulls":4},"32.91.12.140-009",796,"Штука",227.33]
[{"$nulls":4},"32.91.12.140-010",796,"Штука",98.6]
[{"$nulls":4},"32.91.12.140-011",796,"Штука",120.31]
[{"$nulls":4},"32.91.12.140-012",796,"Штука",44.25]
[{"$nulls":4},"32.91.12.140-013",796,"Штука",15.05]
[{"$nulls":4},"32.91.12.140-014",796,"Штука",107.57]
[{"$nulls":4},"32.91.12.140-015",796,"Штука",187.33]
[{"$nulls":4},"32.91.12.140-016",796,"Штука",68.75]
[{"$nulls":4},"32.91.12.140-017",796,"Штука",219.9]
[{"$nulls":4},"32.91.12.140-018",796,"Штука",818.18]
[{"$nulls":4},"32.91.12.140-019",796,"Штука",106.88]
[{"$nulls":4},"32.91.12.140-020",796,"Штука",58.39]
[{"$nulls":4},"32.91.12.140-021",796,"Штука",272.58]
[{"$nulls":4},"32.91.12.140-022",796,"Штука",93.7]
[{"$nulls":4},"32.91.12.140-023",796,"Штука",173.89]
[{"$nulls":4},"32.91.12.140-024",796,"Штука",294.8]
[{"$nulls":4},"32.91.12.140-028",796,"Штука",541.51]
[{"$nulls":4},"32.91.12.140-031",796,"Штука",101.33]
[{"$nulls":4},"32.91.12.140-032",796,"Штука",673.05]
[{"$nulls":4},"32.91.12.140-034",796,"Штука",115.86]
[{"$nulls":4},"32.91.12.140-035",796,"Штука",188.73]
[{"$nulls":4},"32.91.12.140-036",796,"Штука",221.84]
[{"$nulls":4},"32.91.12.140-037",796,"Штука",116.91]
[{"$nulls":4},"32.91.12.140-038",796,"Штука",312]
[{"$nulls":4},"32.91.12.140-040",796,"Штука",125.86]
[{"$nulls":4},"32.91.12.140-041",796,"Штука",262.2]
[null,467,"32.99.12","Ручки шариковые; ручки и маркеры с наконечником из фетра и прочих пористых материалов; механические карандаши. Пояснение по требуемой продукции: карандаш механический","32.99.12.130-001",796,"Штука",81.540000000000006]
[{"$nulls":4},"32.99.12.130-003",796,"Штука",115.45]
[{"$nulls":4},"32.99.12.130-002",796,"Штука",651.66999999999996]
[null,468,"32.99.12","Ручки шариковые; ручки и маркеры с наконечником из фетра и прочих пористых материалов; механические карандаши. Пояснение по требуемой продукции: маркер","32.99.12.120-010",796,"Штука",109.73]
[{"$nulls":4},"32.99.12.120-017",796,"Штука",64.39]
[{"$nulls":4},"32.99.12.120-014",796,"Штука",313.62]
[{"$nulls":4},"32.99.12.120-011",796,"Штука",344.34]
[{"$nulls":4},"32.99.12.120-012",796,"Штука",184.27]
[{"$nulls":4},"32.99.12.120-013",796,"Штука",306]
[{"$nulls":4},"32.99.12.120-015",796,"Штука",372.55]
[{"$nulls":4},"32.99.12.120-016",796,"Штука",600.55999999999995]
[{"$nulls":4},"32.99.12.120-020",796,"Штука",85.11]
[{"$nulls":4},"32.99.12.120-021",796,"Штука",380.94]
[{"$nulls":4},"32.99.12.120-022",796,"Штука",294.33]
[null,469,"32.99.12","Ручки шариковые; ручки и маркеры с наконечником из фетра и прочих пористых материалов; механические карандаши. Пояснение по требуемой продукции: маркер (в наборе)","32.99.12.120-019",796,"Штука",105.88]
[{"$nulls":4},"32.99.12.120-018",796,"Штука",89.08]
[null,470,"32.99.12","Ручки шариковые; ручки и маркеры с наконечником из фетра и прочих пористых материалов; механические карандаши. Пояснение по требуемой продукции: ручка канцелярская (в наборе)","32.99.12.110-011",796,"Штука",57.85]
[{"$nulls":4},"32.99.12.110-013",796,"Штука",40.18]
[null,471,"32.99.12","Ручки шариковые; ручки и маркеры с наконечником из фетра и прочих пористых материалов; механические карандаши. Пояснение по требуемой продукции: ручка канцелярская (неавтоматическая)","32.99.12.110-009",796,"Штука",53.01]
[{"$nulls":4},"32.99.12.110-008",796,"Штука",38.47]
[{"$nulls":4},"32.99.12.110-010",796,"Штука",143.49]
[{"$nulls":4},"32.99.12.110-012",796,"Штука",17.54]
[null,472,"32.99.12","Ручки шариковые; ручки и маркеры с наконечником из фетра и прочих пористых материалов; механические карандаши. Пояснение по требуемой продукции: ручка канцелярская (ручка неавтоматическая на подставке)","32.99.12.110-007",796,"Штука",135.13999999999999]
[null,473,"32.99.13","Ручки чертежные для туши; авторучки, стилографы и прочие ручки. Пояснение по требуемой продукции: ручка канцелярская (автоматическая)","32.99.13.122-002",796,"Штука",100.56]
[{"$nulls":4},"32.99.13.122-001",796,"Штука",80.34]
[null,474,"32.99.13","Ручки чертежные для туши; авторучки, стилографы и прочие ручки. Пояснение по требуемой продукции: фломастер","32.99.13.123-001",704,"Набор",90.4]
[{"$nulls":4},"32.99.13.123-002",704,"Набор",223.72]
[{"$nulls":4},"32.99.13.123-003",704,"Набор",290.33999999999997]
[{"$nulls":4},"32.99.13.123-005",704,"Набор",496.55]
[{"$nulls":4},"32.99.13.123-006",704,"Набор",532.16999999999996]
[null,475,"32.99.14","Наборы пишущих принадлежностей, держатели для ручек и карандашей и аналогичные держатели; части пишущих принадлежностей. Пояснение по требуемой продукции: стержень для ручки канцелярской","32.99.14.130-001",796,"Штука",17.12]
[{"$nulls":4},"32.99.14.130-002",796,"Штука",29.95]
[null,476,"32.99.15","Карандаши, цветные карандаши, грифели для карандашей, пастели, угольные карандаши для рисования, мелки для письма и рисования, мелки для портных. Пояснение по требуемой продукции: грифель для карандаша механического","32.99.15.120-001",778,"Упаковка",60.35]
[{"$nulls":4},"32.99.15.120-002",778,"Упаковка",324.38]
[null,477,"32.99.15","Карандаши, цветные карандаши, грифели для карандашей, пастели, угольные карандаши для рисования, мелки для письма и рисования, мелки для портных. Пояснение по требуемой продукции: карандаш химический","32.99.15.110-006",796,"Штука",142.08000000000001]
[null,478,"32.99.15","Карандаши, цветные карандаши, грифели для карандашей, пастели, угольные карандаши для рисования, мелки для письма и рисования, мелки для портных. Пояснение по требуемой продукции: карандаш цветной в твердой оболочке","32.99.15.110-002",796,"Штука",239]
[{"$nulls":4},"32.99.15.110-003",796,"Штука",479.33]
[{"$nulls":4},"32.99.15.110-004",796,"Штука",122.49]
[{"$nulls":4},"32.99.15.110-005",796,"Штука",300.33]
[{"$nulls":4},"32.99.15.110-007",796,"Штука",625.07000000000005]
[{"$nulls":4},"32.99.15.110-008",796,"Штука",332]
[{"$nulls":4},"32.99.15.110-009",796,"Штука",840.67]
[{"$nulls":4},"32.99.15.110-010",796,"Штука",376.2]
[{"$nulls":4},"32.99.15.110-011",796,"Штука",609.61]
[null,479,"32.99.15","Карандаши, цветные карандаши, грифели для карандашей, пастели, угольные карандаши для рисования, мелки для письма и рисования, мелки для портных. Пояснение по требуемой продукции: карандаш чернографитный","32.99.15.110-001",796,"Штука",22.35]
[null,480,"32.99.15","Карандаши, цветные карандаши, грифели для карандашей, пастели, угольные карандаши для рисования, мелки для письма и рисования, мелки для портных. Пояснение по требуемой продукции: мел канцелярский","32.99.15.140-002",778,"Упаковка",49.42]
[{"$nulls":4},"32.99.15.140-003",778,"Упаковка",92.33]
[{"$nulls":4},"32.99.15.140-004",778,"Упаковка",262.67]
[{"$nulls":4},"32.99.15.140-005",778,"Упаковка",71.010000000000005]
[{"$nulls":4},"32.99.15.140-006",778,"Упаковка",369.49]
[null,481,"32.99.15","Карандаши, цветные карандаши, грифели для карандашей, пастели, угольные карандаши для рисования, мелки для письма и рисования, мелки для портных. Пояснение по требуемой продукции: набор карандашей цветных восковых (мелки)","32.99.15.140-001",796,"Штука",96.83]
[{"$nulls":4},"32.99.15.140-009",796,"Штука",147.52000000000001]
[{"$nulls":4},"32.99.15.140-008",796,"Штука",352.33]
[{"$nulls":4},"32.99.15.140-010",796,"Штука",203.33]
[null,482,"32.99.16","Доски грифельные; штемпели для датирования, запечатывания или нумерации и аналогичные изделия; ленты для пишущих машинок или аналогичные ленты; штемпельные подушки. Пояснение по требуемой продукции: оснастка для печати","32.99.16.120-015",796,"Штука",838.84]
[null,483,"32.99.16","Доски грифельные; штемпели для датирования, запечатывания или нумерации и аналогичные изделия; ленты для пишущих машинок или аналогичные ленты; штемпельные подушки. Пояснение по требуемой продукции: оснастка для штампа","32.99.16.120-016",796,"Штука",1192.94]
[null,484,"32.99.16","Доски грифельные; штемпели для датирования, запечатывания или нумерации и аналогичные изделия; ленты для пишущих машинок или аналогичные ленты; штемпельные подушки. Пояснение по требуемой продукции: подушка штемпельная (настольная)","32.99.16.140-002",796,"Штука",218.89]
[{"$nulls":4},"32.99.16.140-003",796,"Штука",322.81]
[{"$nulls":4},"32.99.16.140-011",796,"Штука",359.33]
[null,485,"32.99.16","Доски грифельные; штемпели для датирования, запечатывания или нумерации и аналогичные изделия; ленты для пишущих машинок или аналогичные ленты; штемпельные подушки. Пояснение по требуемой продукции: подушка штемпельная (сменная)","32.99.16.140-005",796,"Штука",267.02]
[{"$nulls":4},"32.99.16.140-006",796,"Штука",373.59]
[{"$nulls":4},"32.99.16.140-007",796,"Штука",245.39]
[{"$nulls":4},"32.99.16.140-008",796,"Штука",350.64]
[{"$nulls":4},"32.99.16.140-009",796,"Штука",469.36]
[{"$nulls":4},"32.99.16.140-010",796,"Штука",456.86]
[null,486,"32.99.16","Доски грифельные; штемпели для датирования, запечатывания или нумерации и аналогичные изделия; ленты для пишущих машинок или аналогичные ленты; штемпельные подушки. Пояснение по требуемой продукции: штемпель (датер автоматический)","32.99.16.120-007",796,"Штука",1303.1500000000001]
[{"$nulls":4},"32.99.16.120-003",796,"Штука",418.23]
[{"$nulls":4},"32.99.16.120-010",796,"Штука",889.1]
[null,487,"32.99.16","Доски грифельные; штемпели для датирования, запечатывания или нумерации и аналогичные изделия; ленты для пишущих машинок или аналогичные ленты; штемпельные подушки. Пояснение по требуемой продукции: штемпель (датер самонаборный)","32.99.16.120-002",796,"Штука",2868.4]
[{"$nulls":4},"32.99.16.120-006",796,"Штука",2845.49]
[{"$nulls":4},"32.99.16.120-008",796,"Штука",5222.53]
[{"$nulls":4},"32.99.16.120-009",796,"Штука",2785.51]
[null,488,"32.99.16","Доски грифельные; штемпели для датирования, запечатывания или нумерации и аналогичные изделия; ленты для пишущих машинок или аналогичные ленты; штемпельные подушки. Пояснение по требуемой продукции: штемпель (нумератор автоматический)","32.99.16.120-004",796,"Штука",6586.99]
[null,489,"32.99.16","Доски грифельные; штемпели для датирования, запечатывания или нумерации и аналогичные изделия; ленты для пишущих машинок или аналогичные ленты; штемпельные подушки. Пояснение по требуемой продукции: штемпель (штамп самонаборный)","32.99.16.120-001",796,"Штука",1620.95]
[{"$nulls":4},"32.99.16.120-005",796,"Штука",2515.77]
[{"$nulls":4},"32.99.16.120-011",796,"Штука",1637.67]
[{"$nulls":4},"32.99.16.120-012",796,"Штука",2071.69]
[{"$nulls":4},"32.99.16.120-013",796,"Штука",2226.66]
[{"$nulls":4},"32.99.16.120-014",796,"Штука",2824.62]
[null,490,"32.99.53","Приборы, аппаратура и модели, предназначенные для демонстрационных целей. Пояснение по требуемой продукции: доска магнитно-маркерная","32.99.53.139-017",796,"Штука",24223.52]
[{"$nulls":4},"32.99.53.139-018",796,"Штука",8520.67]
[{"$nulls":4},"32.99.53.139-019",796,"Штука",28727.53]
[{"$nulls":4},"32.99.53.139-022",796,"Штука",9058.64]
[{"$nulls":4},"32.99.53.139-030",796,"Штука",4185]
[{"$nulls":4},"32.99.53.139-032",796,"Штука",7186.42]
[{"$nulls":4},"32.99.53.139-035",796,"Штука",18895.3]
[null,491,"32.99.53","Приборы, аппаратура и модели, предназначенные для демонстрационных целей. Пояснение по требуемой продукции: доска магнитно-меловая","32.99.53.139-020",796,"Штука",15718.21]
[{"$nulls":4},"32.99.53.139-021",796,"Штука",27201.01]
[{"$nulls":4},"32.99.53.139-031",796,"Штука",22644.39]
[null,492,"32.99.53","Приборы, аппаратура и модели, предназначенные для демонстрационных целей. Пояснение по требуемой продукции: мольберт","32.99.53.139-027",796,"Штука",5910.71]
[{"$nulls":4},"32.99.53.139-028",796,"Штука",3314.97]
[{"$nulls":4},"32.99.53.139-033",796,"Штука",2747.44]
[{"$nulls":4},"32.99.53.139-034",796,"Штука",3399.74]
[null,493,"32.99.53","Приборы, аппаратура и модели, предназначенные для демонстрационных целей. Пояснение по требуемой продукции: стенд для поделок","32.99.53.199-015",796,"Штука",13010.67]
[null,494,"32.99.53","Приборы, аппаратура и модели, предназначенные для демонстрационных целей. Пояснение по требуемой продукции: стенд информационный","32.99.53.199-010",796,"Штука",7078.56]
[{"$nulls":4},"32.99.53.199-011",796,"Штука",8607.26]
[{"$nulls":4},"32.99.53.199-014",796,"Штука",5298.67]
[{"$nulls":4},"32.99.53.199-012",796,"Штука",6312.24]
[null,495,"58.11.13","Книги печатные для детей. Пояснение по требуемой продукции: раскраска","58.11.13.000-008",796,"Штука",50.19]
[{"$nulls":4},"58.11.13.000-005",796,"Штука",62.11]
[{"$nulls":4},"58.11.13.000-007",796,"Штука",63.77]
[null,496,"58.19.11","Открытки почтовые печатные, открытки поздравительные и прочая издательская продукция печатная. Пояснение по требуемой продукции: благодарность","58.19.11.200-001",796,"Штука",31.17]
[null,497,"58.19.11","Открытки почтовые печатные, открытки поздравительные и прочая издательская продукция печатная. Пояснение по требуемой продукции: благодарственное письмо","58.19.11.200-002",796,"Штука",59.28]
[null,498,"58.19.11","Открытки почтовые печатные, открытки поздравительные и прочая издательская продукция печатная. Пояснение по требуемой продукции: грамота","58.19.11.200-003",796,"Штука",34.82]
[null,499,"58.19.11","Открытки почтовые печатные, открытки поздравительные и прочая издательская продукция печатная. Пояснение по требуемой продукции: диплом наградной","58.19.11.200-004",796,"Штука",32.69]
[null,500,"58.19.11","Открытки почтовые печатные, открытки поздравительные и прочая издательская продукция печатная. Пояснение по требуемой продукции: почетная грамота исполнительного органа государственной власти Санкт-Петербурга","58.19.11.200-008",839,"Комплект",434.83]
[{"$nulls":4},"58.19.11.200-009",839,"Комплект",630]
[null,501,"58.19.11","Открытки почтовые печатные, открытки поздравительные и прочая издательская продукция печатная. Пояснение по требуемой продукции: открытка поздравительная","58.19.11.100-002",796,"Штука",62.88]
[null,502,"58.19.13","Картинки переводные (декалькомания) и календари печатные. Пояснение по требуемой продукции: календарь (трехблочный)","58.19.13.120-001",796,"Штука",258.77999999999997]
[null,503,"58.19.13","Картинки переводные (декалькомания) и календари печатные. Пояснение по требуемой продукции: календарь (настольный)","58.19.13.120-003",796,"Штука",128.66999999999999]
[{"$nulls":4},"58.19.13.120-005",796,"Штука",22.16]
[null,504,"58.19.13","Картинки переводные (декалькомания) и календари печатные. Пояснение по требуемой продукции: календарь (календарь-табель)","58.19.13.120-002",796,"Штука",24.57]
[null,505,"58.19.13","Картинки переводные (декалькомания) и календари печатные. Пояснение по требуемой продукции: календарь (перекидной)","58.19.13.120-004",796,"Штука",158.53]
[null,506,"58.19.14","Марки почтовые негашеные, гербовые и аналогичные марки; бумага гербовая; книжки чековые, банкноты, акции и аналогичные виды ценных бумаг. Пояснение по требуемой продукции: марка почтовая","58.19.14.110-001",796,"Штука",1]
[{"$nulls":4},"58.19.14.110-002",796,"Штука",2]
[{"$nulls":4},"58.19.14.110-003",796,"Штука",5]
[{"$nulls":4},"58.19.14.110-004",796,"Штука",10]
[{"$nulls":4},"58.19.14.110-005",796,"Штука",25]
[{"$nulls":4},"58.19.14.110-006",796,"Штука",3]
[{"$nulls":4},"58.19.14.110-007",796,"Штука",6]
[{"$nulls":4},"58.19.14.110-008",796,"Штука",4]
[{"$nulls":4},"58.19.14.110-009",796,"Штука",50]
[{"$nulls":4},"58.19.14.110-010",796,"Штука",67]
[{"$nulls":4},"58.19.14.110-011",796,"Штука",100]
[null,"2.3. Перечень товарных позиций части «Средства автотранспортные, прицепы и полуприцепы»"]
[{"$nulls":4},"В соответствии с кодом конечного каталожного наименования (ККН)",null,null,"Предельная цена (руб. с НДС)"]
[null,507,"29.10.21","Средства транспортные с двигателем с искровым зажиганием, с рабочим объемом цилиндров не более 1500 куб.см, новые. Пояснение по требуемой продукции: автомобили легковые","29.10.21.000-001",796,"Штука",1500000,null,"-"]
[{"$nulls":4},"29.10.21.000-002",796,"Штука","-",null,1500000]
[{"$nulls":4},"29.10.21.000-004",796,"Штука","-",null,1500000]
[null,508,"29.10.22","Средства транспортные с двигателем с искровым зажиганием, с рабочим объемом цилиндров более 1500 куб.см, новые. Пояснение по требуемой продукции: автомобили легковые","29.10.22.000-002",796,"Штука",1500000,null,1500000]
[{"$nulls":4},"29.10.22.000-003",796,"Штука",1500000,null,1500000]
[{"$nulls":4},"29.10.22.000-006",796,"Штука",1500000,null,1500000]
[null,509,"29.10.23","Средства транспортные с поршневым двигателем внутреннего сгорания с воспламенением от сжатия (дизелем или полудизелем), новые. Пояснение по требуемой продукции: автомобили легковые","29.10.23.000-004",796,"Штука",1500000,null,1500000]
[null,510,"29.10.24","Средства автотранспортные для перевозки людей прочие. Пояснение по требуемой продукции: микроавтобусы","29.10.24.190-001",796,"Штука",1500000]
[null,511,"29.10.24","Средства автотранспортные для перевозки людей прочие. Пояснение по требуемой продукции: автомобили легковые","29.10.24.110-001",796,"Штука",2990000]
[{"$nulls":4},"29.10.24.110-002",796,"Штука",3950000]
[null,512,"29.10.30","Средства автотранспортные для перевозки 10 или более человек. Пояснение по требуемой продукции: микроавтобусы","29.10.30.190-001",796,"Штука",3909028.34]
[{"$nulls":4},"29.10.30.190-002",796,"Штука",4229500]
[{"$nulls":4},"29.10.30.190-003",796,"Штука",4675000]
[{"$nulls":4},"29.10.30.190-004",796,"Штука","Не установлено"]
[{"$nulls":4},"29.10.30.190-005",796,"Штука",6517500]
[null,513,"29.10.30","Средства автотранспортные для перевозки 10 или более человек. Пояснение по требуемой продукции: автобусы городские","29.10.30.111-001",796,"Штука",14071333.33]
[{"$nulls":4},"29.10.30.111-003",796,"Штука",11750750]
[null,514,"29.10.30","Средства автотранспортные для перевозки 10 или более человек. Пояснение по требуемой продукции: автобусы для перевозки детей","29.10.30.111-004",796,"Штука",6738666.6699999999]
[null,515,"29.10.41","Средства автотранспортные грузовые с поршневым двигателем внутреннего сгорания с воспламенением от сжатия (дизелем или полудизелем), грузовые транспортные средства, приводимые в движение исключительно электрическим двигателем и заряжаемые с помощью внешнего источника электроэнергии, новые. Пояснение по требуемой продукции: автомобили грузовые с дизельным двигателем, имеющие технически допустимую максимальную массу не более 3,5 т","29.10.41.111-001",796,"Штука",4058250]
[{"$nulls":4},"29.10.41.111-002",796,"Штука",3633000]
[null,516,"29.10.41","Средства автотранспортные грузовые с поршневым двигателем внутреннего сгорания с воспламенением от сжатия (дизелем или полудизелем), грузовые транспортные средства, приводимые в движение исключительно электрическим двигателем и заряжаемые с помощью внешнего источника электроэнергии, новые. Пояснение по требуемой продукции: автомобили грузовые с дизельным двигателем, имеющие технически допустимую максимальную массу свыше 3,5 т и не более 12 т","29.10.41.112-001",796,"Штука",5406500]
[null,517,"29.10.41","Средства автотранспортные грузовые с поршневым двигателем внутреннего сгорания с воспламенением от сжатия (дизелем или полудизелем), грузовые транспортные средства, приводимые в движение исключительно электрическим двигателем и заряжаемые с помощью внешнего источника электроэнергии, новые. Пояснение по требуемой продукции: автомобили грузовые с дизельным двигателем, имеющие технически допустимую максимальную массу свыше 12 т","29.10.41.113-001",796,"Штука",5243500]
[null,518,"29.10.42","Средства автотранспортные грузовые с поршневым двигателем внутреннего сгорания с искровым зажиганием; прочие грузовые транспортные средства, новые. Пояснение по требуемой продукции: автомобили грузовые с бензиновым двигателем, имеющие технически допустимую максимальную массу не более 3,5 т","29.10.42.111-001",796,"Штука",3011000]
[{"$nulls":4},"29.10.42.111-002",796,"Штука",3661000]
[null,519,"29.10.43","Автомобили-тягачи седельные для полуприцепов. Пояснение по требуемой продукции: тягачи","29.10.43.000-001",796,"Штука",5014000]
[null,520,"29.10.44","Шасси с установленными двигателями для автотранспортных средств. Пояснение по требуемой продукции: шасси","29.10.44.000-001",796,"Штука",4832333.33]
[null,"2.4. Перечень товарных позиций части «Оборудование компьютерное, электронное и оптическое»"]
[{"$nulls":4},"В соответствии с кодом конечного каталожного наименования (ККН)",null,null,"Предельная цена (руб. с НДС)"]
[null,521,"26.20.11","Компьютеры портативные массой не более 10 кг, такие как ноутбуки, планшетные компьютеры, карманные компьютеры, в том числе совмещающие функции мобильного телефонного аппарата, электронные записные книжки и аналогичная компьютерная техника. Пояснение по требуемой продукции: ноутбук","26.20.11.110-001",796,"Штука","-",null,24953.360000000001]
[{"$nulls":4},"26.20.11.110-002",796,"Штука",75915,null,75915]
[{"$nulls":4},"26.20.11.110-005",796,"Штука",41117.160000000003,null,41117.160000000003]
[{"$nulls":4},"26.20.11.110-008",796,"Штука",85739.24,null,"-"]
[{"$nulls":4},"26.20.11.110-009",796,"Штука",72068.289999999994,null,"-"]
[{"$nulls":4},"26.20.11.110-010",796,"Штука",70337.66,null,"-"]
[{"$nulls":4},"26.20.11.110-011",796,"Штука","-",null,44953.89]
[{"$nulls":4},"26.20.11.110-101",796,"Штука","-",null,62748.25]
[{"$nulls":4},"26.20.11.110-102",796,"Штука",72554,null,72554]
[{"$nulls":4},"26.20.11.110-105",796,"Штука",72183.600000000006,null,72183.600000000006]
[{"$nulls":4},"26.20.11.110-108",796,"Штука",59487,null,59487]
[{"$nulls":4},"26.20.11.110-109",796,"Штука",83606.67,null,"-"]
[{"$nulls":4},"26.20.11.110-110",796,"Штука",81858.460000000006,null,"-"]
[{"$nulls":4},"26.20.11.110-111",796,"Штука","-",null,56180.33]
[null,522,"26.20.11","Компьютеры портативные массой не более 10 кг, такие как ноутбуки, планшетные компьютеры, карманные компьютеры, в том числе совмещающие функции мобильного телефонного аппарата, электронные записные книжки и аналогичная компьютерная техника. Пояснение по требуемой продукции: планшетный компьютер","26.20.11.110-003",796,"Штука","-",null,6862.67]
[{"$nulls":4},"26.20.11.110-004",796,"Штука",8471.75,null,"-"]
[{"$nulls":4},"26.20.11.110-006",796,"Штука","-",null,16792.43]
[{"$nulls":4},"26.20.11.110-007",796,"Штука",19188.07,null,"-"]
[{"$nulls":4},"26.20.11.110-106",796,"Штука","-",null,27021.200000000001]
[{"$nulls":4},"26.20.11.110-107",796,"Штука",33812.33,null,33812.33]
[null,523,"26.20.13","Машины вычислительные электронные цифровые, содержащие в одном корпусе центральный процессор и устройство ввода и вывода, объединенные или нет для автоматической обработки данных. Пояснение по требуемой продукции: интерактивный стол","26.20.13.000-001",796,"Штука",171166.67]
[{"$nulls":4},"26.20.13.000-002",796,"Штука",186005.77]
[{"$nulls":4},"26.20.13.000-101",796,"Штука",248005]
[{"$nulls":4},"26.20.13.000-102",796,"Штука",349333.33]
[null,524,"26.20.13","Машины вычислительные электронные цифровые, содержащие в одном корпусе центральный процессор и устройство ввода и вывода, объединенные или нет для автоматической обработки данных. Пояснение по требуемой продукции: интерактивная панель","26.20.13.000-003",796,"Штука",229516.67]
[{"$nulls":4},"26.20.13.000-004",796,"Штука",338237.75]
[{"$nulls":4},"26.20.13.000-005",796,"Штука",425284.96]
[{"$nulls":4},"26.20.13.000-007",796,"Штука",443442]
[{"$nulls":4},"26.20.13.000-103",796,"Штука",264054.75]
[{"$nulls":4},"26.20.13.000-104",796,"Штука",264627.56]
[{"$nulls":4},"26.20.13.000-105",796,"Штука",367499.76]
[{"$nulls":4},"26.20.13.000-107",796,"Штука",495748.87]
[null,525,"26.20.15","Машины вычислительные электронные цифровые прочие, содержащие или не содержащие в одном корпусе одно или два из следующих устройств для автоматической обработки данных: запоминающие устройства, устройства ввода, устройства вывода. Пояснение по требуемой продукции: компьютер персональный настольный (моноблок)","26.20.15.140-012",796,"Штука","-",null,74184.87]
[{"$nulls":4},"26.20.15.140-112",796,"Штука","-",null,92274.71]
[{"$nulls":4},"26.20.15.140-001",796,"Штука",40688,null,"-"]
[{"$nulls":4},"26.20.15.140-002",796,"Штука",49653.69,null,"-"]
[{"$nulls":4},"26.20.15.140-013",796,"Штука",67949.2,null,67949.2]
[{"$nulls":4},"26.20.15.140-101",796,"Штука",84242.33,null,"-"]
[{"$nulls":4},"26.20.15.140-102",796,"Штука",89913.11,null,"-"]
[{"$nulls":4},"26.20.15.140-313",796,"Штука",98170.53,null,98170.53]
[null,526,"26.20.15","Машины вычислительные электронные цифровые прочие, содержащие или не содержащие в одном корпусе одно или два из следующих устройств для автоматической обработки данных: запоминающие устройства, устройства ввода, устройства вывода. Пояснение по требуемой продукции: рабочая станция","26.20.15.150-007",796,"Штука",33820]
[{"$nulls":4},"26.20.15.150-008",796,"Штука",44404.97]
[{"$nulls":4},"26.20.15.150-010",796,"Штука",57560.01]
[{"$nulls":4},"26.20.15.150-011",796,"Штука",63799.35]
[{"$nulls":4},"26.20.15.150-015",796,"Штука",67653.33]
[{"$nulls":4},"26.20.15.150-016",796,"Штука",72172]
[{"$nulls":4},"26.20.15.150-018",796,"Штука",102505.5]
[{"$nulls":4},"26.20.15.150-107",796,"Штука",69622.039999999994]
[{"$nulls":4},"26.20.15.150-108",796,"Штука",85204.59]
[{"$nulls":4},"26.20.15.150-110",796,"Штука",90696.35]
[{"$nulls":4},"26.20.15.150-111",796,"Штука",114437.38]
[{"$nulls":4},"26.20.15.150-115",796,"Штука",115820.62]
[{"$nulls":4},"26.20.15.150-116",796,"Штука",119385.06]
[{"$nulls":4},"26.20.15.150-118",796,"Штука",185698.61]
[null,527,"26.20.15","Машины вычислительные электронные цифровые прочие, содержащие или не содержащие в одном корпусе одно или два из следующих устройств для автоматической обработки данных: запоминающие устройства, устройства ввода, устройства вывода. Пояснение по требуемой продукции: системный блок","26.20.15.120-017",796,"Штука",104246.33,null,"-"]
[{"$nulls":4},"26.20.15.120-103",796,"Штука","-",null,25679.200000000001]
[{"$nulls":4},"26.20.15.120-104",796,"Штука","-",null,34731.17]
[{"$nulls":4},"26.20.15.120-109",796,"Штука",41784.54,null,41784.54]
[{"$nulls":4},"26.20.15.120-113",796,"Штука",59108.6,null,"-"]
[{"$nulls":4},"26.20.15.120-114",796,"Штука",52428.56,null,52428.56]
[{"$nulls":4},"26.20.15.120-117",796,"Штука",122575.19,null,"-"]
[{"$nulls":4},"26.20.15.120-203",796,"Штука","-",null,45830.75]
[{"$nulls":4},"26.20.15.120-204",796,"Штука","-",null,61967.94]
[{"$nulls":4},"26.20.15.120-209",796,"Штука",69862.92,null,69862.92]
[{"$nulls":4},"26.20.15.120-213",796,"Штука",85194.35,null,"-"]
[{"$nulls":4},"26.20.15.120-214",796,"Штука",89914.7,null,89914.7]
[null,528,"26.20.16","Устройства ввода или вывода, содержащие или не содержащие в одном корпусе запоминающие устройства. Пояснение по требуемой продукции: принтер термотрансферный","26.20.16.125-007",796,"Штука",19307.330000000002]
[null,529,"26.20.16","Устройства ввода или вывода, содержащие или не содержащие в одном корпусе запоминающие устройства. Пояснение по требуемой продукции: принтер","26.20.16.123-001",796,"Штука",67468.25]
[{"$nulls":4},"26.20.16.123-002",796,"Штука",26616.41]
[{"$nulls":4},"26.20.16.122-003",796,"Штука",307384.37]
[{"$nulls":4},"26.20.16.122-004",796,"Штука",36301]
[{"$nulls":4},"26.20.16.122-005",796,"Штука",266638.5]
[{"$nulls":4},"26.20.16.122-006",796,"Штука",32280.91]
[{"$nulls":4},"26.20.16.122-010",796,"Штука",44550.879999999997]
[null,530,"26.20.16","Устройства ввода или вывода, содержащие или не содержащие в одном корпусе запоминающие устройства. Пояснение по требуемой продукции: сканер","26.20.16.151-001",796,"Штука",90425.2]
[{"$nulls":4},"26.20.16.151-002",796,"Штука",14744.25]
[{"$nulls":4},"26.20.16.151-003",796,"Штука",368210.08]
[{"$nulls":4},"26.20.16.151-004",796,"Штука",59359.27]
[null,531,"26.20.16","Устройства ввода или вывода, содержащие или не содержащие в одном корпусе запоминающие устройства. Пояснение по требуемой продукции: клавиатура","26.20.16.110-001",796,"Штука",492.33]
[{"$nulls":4},"26.20.16.110-101",796,"Штука",1991.25]
[{"$nulls":4},"26.20.16.110-003",796,"Штука",2932.67]
[{"$nulls":4},"26.20.16.110-002",796,"Штука",1844.33]
[null,532,"26.20.16","Устройства ввода или вывода, содержащие или не содержащие в одном корпусе запоминающие устройства. Пояснение по требуемой продукции: мышь компьютерная","26.20.16.170-002",796,"Штука",1117.33]
[{"$nulls":4},"26.20.16.170-001",796,"Штука",277.67]
[{"$nulls":4},"26.20.16.170-101",796,"Штука",1336]
[{"$nulls":4},"26.20.16.170-003",796,"Штука",412.67]
[null,533,"26.20.16","Устройства ввода или вывода, содержащие или не содержащие в одном корпусе запоминающие устройства. Пояснение по требуемой продукции: сканер штрих-кодов","26.20.16.154-005",796,"Штука",19452.330000000002]
[null,534,"26.20.16","Устройства ввода или вывода, содержащие или не содержащие в одном корпусе запоминающие устройства. Пояснение по требуемой продукции: интерактивная доска","26.20.16.161-001",796,"Штука",104398.33]
[null,535,"26.20.16","Устройства ввода или вывода, содержащие или не содержащие в одном корпусе запоминающие устройства. Пояснение по требуемой продукции: графический планшет","26.20.16.161-002",796,"Штука",7526]
[{"$nulls":4},"26.20.16.161-003",796,"Штука",27326.75]
[{"$nulls":4},"26.20.16.161-004",796,"Штука",40173.599999999999]
[null,536,"26.20.17","Мониторы и проекторы, преимущественно используемые в системах автоматической обработки данных. Пояснение по требуемой продукции: монитор, подключаемый к компьютеру","26.20.17.110-101",796,"Штука","-",null,10611.95]
[{"$nulls":4},"26.20.17.110-102",796,"Штука",13216.66,null,13216.66]
[{"$nulls":4},"26.20.17.110-103",796,"Штука",17323.14,null,17323.14]
[{"$nulls":4},"26.20.17.110-104",796,"Штука",18660.32,null,18660.32]
[{"$nulls":4},"26.20.17.110-202",796,"Штука","-",null,28282.44]
[{"$nulls":4},"26.20.17.110-105",796,"Штука",25816.26,null,"-"]
[{"$nulls":4},"26.20.17.110-106",796,"Штука",28876.67,null,"-"]
[{"$nulls":4},"26.20.17.110-107",796,"Штука",39493.42,null,"-"]
[{"$nulls":4},"26.20.17.110-205",796,"Штука",33967.25,null,33967.25]
[null,537,"26.20.17","Мониторы и проекторы, преимущественно используемые в системах автоматической обработки данных. Пояснение по требуемой продукции: проектор","26.20.17.120-001",796,"Штука",37422.46]
[{"$nulls":4},"26.20.17.120-002",796,"Штука",46695]
[{"$nulls":4},"26.20.17.120-003",796,"Штука",109867.25]
[null,538,"26.20.18","Устройства периферийные с двумя или более функциями: печать данных, копирование, сканирование, прием и передача факсимильных сообщений. Пояснение по требуемой продукции: многофункциональное устройство (МФУ) (лазерное)","26.20.18.120-003",796,"Штука",297741.67]
[{"$nulls":4},"26.20.18.120-006",796,"Штука",67594.740000000005]
[{"$nulls":4},"26.20.18.120-007",796,"Штука",103847.5]
[{"$nulls":4},"26.20.18.120-008",796,"Штука",51171.96]
[{"$nulls":4},"26.20.18.120-009",796,"Штука",64330]
[null,539,"26.20.18","Устройства периферийные с двумя или более функциями: печать данных, копирование, сканирование, прием и передача факсимильных сообщений. Пояснение по требуемой продукции: многофункциональное устройство (МФУ) (струйное)","26.20.18.120-001",796,"Штука",81763]
[{"$nulls":4},"26.20.18.120-002",796,"Штука",20466.330000000002]
[null,540,"26.20.21","Устройства запоминающие. Пояснение по требуемой продукции: накопитель данных (внешний жесткий диск)","26.20.21.120-008",796,"Штука",3862.33]
[{"$nulls":4},"26.20.21.120-006",796,"Штука",5664]
[{"$nulls":4},"26.20.21.120-007",796,"Штука",6929.8]
[{"$nulls":4},"26.20.21.120-009",796,"Штука",10269.33]
[{"$nulls":4},"26.20.21.120-010",796,"Штука",12440]
[{"$nulls":4},"26.20.21.120-011",796,"Штука",14310.33]
[{"$nulls":4},"26.20.21.120-012",796,"Штука",7779.67]
[{"$nulls":4},"26.20.21.120-013",796,"Штука",10826.75]
[{"$nulls":4},"26.20.21.120-014",796,"Штука",13429.33]
[{"$nulls":4},"26.20.21.120-015",796,"Штука",18329]
[{"$nulls":4},"26.20.21.120-018",796,"Штука",24341.75]
[null,541,"26.20.22","Устройства запоминающие полупроводниковые, сохраняющие информацию при выключении питания. Пояснение по требуемой продукции: накопитель USB","26.20.22.190-002",796,"Штука",327.33]
[{"$nulls":4},"26.20.22.190-003",796,"Штука",373]
[{"$nulls":4},"26.20.22.190-004",796,"Штука",393.67]
[{"$nulls":4},"26.20.22.190-026",796,"Штука",499.67]
[{"$nulls":4},"26.20.22.190-028",796,"Штука",1043.33]
[{"$nulls":4},"26.20.22.190-029",796,"Штука",2148.33]
[null,542,"26.20.22","Устройства запоминающие полупроводниковые, сохраняющие информацию при выключении питания. Пояснение по требуемой продукции: накопитель данных внешний твердотельный ","26.20.22.110-016",796,"Штука",3842.25]
[{"$nulls":4},"26.20.22.110-017",796,"Штука",5859.67]
[{"$nulls":4},"26.20.22.110-032",796,"Штука",13327.67]
[null,543,"26.20.40","Блоки, части и принадлежности вычислительных машин. Пояснение по требуемой продукции: источник бесперебойного питания (интерактивный)","26.20.40.111-014",796,"Штука",18041.599999999999]
[{"$nulls":4},"26.20.40.111-011",796,"Штука",10331.780000000001]
[{"$nulls":4},"26.20.40.111-013",796,"Штука",13187.4]
[{"$nulls":4},"26.20.40.111-009",796,"Штука",4211.8]
[{"$nulls":4},"26.20.40.111-010",796,"Штука",5536]
[null,544,"26.20.40","Блоки, части и принадлежности вычислительных машин. Пояснение по требуемой продукции: источник бесперебойного питания (резервный)","26.20.40.111-020",796,"Штука",6095.67]
[{"$nulls":4},"26.20.40.111-021",796,"Штука",7237.67]
[null,545,"26.30.11","Аппаратура коммуникационная передающая с приемными устройствами. Пояснение по требуемой продукции: Wi-Fi роутер","26.30.11.111-006",796,"Штука",1953]
[{"$nulls":4},"26.30.11.111-007",796,"Штука",5209.67]
[null,546,"26.30.11","Аппаратура коммуникационная передающая с приемными устройствами. Пояснение по требуемой продукции: IP-телефон","26.30.11.119-033",796,"Штука",11499]
[{"$nulls":4},"26.30.11.119-034",796,"Штука",15741]
[{"$nulls":4},"26.30.11.119-035",796,"Штука",6742.25]
[null,547,"26.30.13","Камеры телевизионные. Пояснение по требуемой продукции: документ-камера","26.30.13.000-002",796,"Штука",24920.33]
[null,548,"26.30.21","Аппараты телефонные проводные с беспроводной трубкой. Пояснение по требуемой продукции: радиотелефон","26.30.21.000-001",796,"Штука",3532]
[{"$nulls":4},"26.30.21.000-003",796,"Штука",9923.75]
[{"$nulls":4},"26.30.21.000-004",796,"Штука",9148.33]
[null,549,"26.30.22","Аппараты телефонные для сотовых сетей связи или для прочих беспроводных сетей. Пояснение по требуемой продукции: мобильный телефон (смартфон)","26.30.22.110-029",796,"Штука","-",null,7659.67]
[{"$nulls":4},"26.30.22.110-028",796,"Штука","-",null,4846.33]
[{"$nulls":4},"26.30.22.110-032",796,"Штука",14211.5,null,"-"]
[null,550,"26.30.22","Аппараты телефонные для сотовых сетей связи или для прочих беспроводных сетей. Пояснение по требуемой продукции: телефон мобильный","26.30.22.110-030",796,"Штука","-",null,1443]
[{"$nulls":4},"26.30.22.110-031",796,"Штука",3759.67,null,3759.67]
[null,551,"26.30.23","Аппараты телефонные прочие, устройства и аппаратура для передачи и приема речи, изображений или других данных, включая оборудование коммуникационное для работы в проводных или беспроводных сетях связи (например, локальных и глобальных сетях). Пояснение по требуемой продукции: модуль Wi-Fi ","26.30.23.113-035",796,"Штука",583]
[{"$nulls":4},"26.30.23.113-036",796,"Штука",1037]
[null,552,"26.30.23","Аппараты телефонные прочие, устройства и аппаратура для передачи и приема речи, изображений или других данных, включая оборудование коммуникационное для работы в проводных или беспроводных сетях связи (например, локальных и глобальных сетях). Пояснение по требуемой продукции: телефонный аппарат","26.30.23.170-001",796,"Штука",4536.33]
[{"$nulls":4},"26.30.23.170-002",796,"Штука",1506.8]
[null,553,"26.40.31","Устройства электропроигрывающие, проигрыватели грампластинок, кассетные проигрыватели и прочая аппаратура для воспроизведения звука. Пояснение по требуемой продукции: колонки компьютерные","26.40.31.190-001",796,"Штука",735]
[{"$nulls":4},"26.40.31.190-003",796,"Штука",2607.33]
[{"$nulls":4},"26.40.31.190-004",796,"Штука",4189.25]
[{"$nulls":4},"26.40.31.190-005",796,"Штука",8080]
[{"$nulls":4},"26.40.31.190-002",796,"Штука",1549.5]
[null,554,"26.40.33","Видеокамеры для записи и прочая аппаратура для записи или воспроизведения изображения. Пояснение по требуемой продукции: IP-видеорегистратор","26.40.33.114-001",796,"Штука",8112.33]
[{"$nulls":4},"26.40.33.114-002",796,"Штука",11978.67]
[{"$nulls":4},"26.40.33.114-003",796,"Штука",23934.75]
[{"$nulls":4},"26.40.33.114-004",796,"Штука",40121.800000000003]
[null,555,"26.40.42","Громкоговорители; головные телефоны, наушники и комбинированные устройства, состоящие из микрофона громкоговорителя. Пояснение по требуемой продукции: гарнитура","26.40.42.120-003",796,"Штука",1233]
[{"$nulls":4},"26.40.42.120-004",796,"Штука",2859]
[null,556,"26.70.13","Видеокамеры цифровые. Пояснение по требуемой продукции: веб-камера","26.70.13.000-002",796,"Штука",2654.92]
[{"$nulls":4},"26.70.13.000-010",796,"Штука",8029]
[{"$nulls":4},"26.70.13.000-001",796,"Штука",1080.5]
[null,557,"26.70.13","Видеокамеры цифровые. Пояснение по требуемой продукции: камера видеонаблюдения","26.70.13.000-004",796,"Штука",3199.67]
[{"$nulls":4},"26.70.13.000-005",796,"Штука",5253]
[{"$nulls":4},"26.70.13.000-006",796,"Штука",9846.75]
[{"$nulls":4},"26.70.13.000-007",796,"Штука",15719.67]
[{"$nulls":4},"26.70.13.000-008",796,"Штука",13620]
[{"$nulls":4},"26.70.13.000-009",796,"Штука",12716]
[{"$nulls":4},"26.70.13.000-104",796,"Штука",9970]
[{"$nulls":4},"26.70.13.000-106",796,"Штука",19664.55]
[null,558,"26.70.17","Фотовспышки; фотоувеличители; аппаратура для фотолабораторий; негатоскопы, проекционные экраны. Пояснение по требуемой продукции: экран для проектора","26.70.17.150-001",796,"Штука",3241.75]
[{"$nulls":4},"26.70.17.150-007",796,"Штука",23200.67]
[{"$nulls":4},"26.70.17.150-006",796,"Штука",23142.25]
[{"$nulls":4},"26.70.17.150-004",796,"Штука",5821.58]
[{"$nulls":4},"26.70.17.150-008",796,"Штука",36293.199999999997]
[{"$nulls":4},"26.70.17.150-009",796,"Штука",63734.400000000001]
[{"$nulls":4},"26.70.17.150-002",796,"Штука",3906.5]
[{"$nulls":4},"26.70.17.150-005",796,"Штука",17871]
[{"$nulls":4},"26.70.17.150-003",796,"Штука",4473.5]
[null,559,"26.80.12","Носители данных оптические без записи. Пояснение по требуемой продукции: диск оптический","26.80.12.000-003",796,"Штука",29.18]
[{"$nulls":4},"26.80.12.000-004",796,"Штука",102.67]
[{"$nulls":4},"26.80.12.000-001",796,"Штука",30.67]
[null,560,"27.33.13","Разъемы, розетки и прочая аппаратура коммутации или защиты электрических цепей, не включенная в другие группировки. Пояснение по требуемой продукции: блок розеток","27.33.13.190-006",796,"Штука",319.8]
[{"$nulls":4},"27.33.13.190-007",796,"Штука",422]
[{"$nulls":4},"27.33.13.190-009",796,"Штука",550.66999999999996]
[{"$nulls":4},"27.33.13.190-008",796,"Штука",558.33000000000004]
[{"$nulls":4},"27.33.13.190-010",796,"Штука",1053]
[null,561,"28.23.23","Машины офисные прочие. Пояснение по требуемой продукции: ламинатор","28.23.23.000-001",796,"Штука",2732.33]
[{"$nulls":4},"28.23.23.000-002",796,"Штука",5211.67]
[{"$nulls":4},"28.23.23.000-003",796,"Штука",6481.67]
[{"$nulls":4},"28.23.23.000-004",796,"Штука",10569.67]
[null,562,"28.99.14","Оборудование печатное прочее, кроме печатного оборудования офисного типа. Пояснение по требуемой продукции: ризограф","28.99.14.160-001",796,"Штука",948017]
[{"$nulls":4},"28.99.14.160-002",796,"Штука",422221.85]
[null,"2.5. Перечень товарных позиций части «Мебель»"]
[{"$nulls":4},"В соответствии с кодом конечного каталожного наименования (ККН)",null,null,"Предельная цена (руб. с НДС)"]
[null,563,"25.99.21","Сейфы, контейнеры и двери упрочненные металлические бронированные или армированные, ящики, предназначенные для хранения денег и документов, и аналогичные изделия из недрагоценных металлов. Пояснение по требуемой продукции: шкаф бухгалтерский","25.99.21.119-001",796,"Штука",15801.56]
[{"$nulls":4},"25.99.21.119-003",796,"Штука",10963.5]
[null,564,"31.01.11","Мебель металлическая для офисов. Пояснение по требуемой продукции: антресоль металлическая, архивная","31.01.11.122-005",796,"Штука",12198]
[{"$nulls":4},"31.01.11.122-006",796,"Штука",9395.33]
[null,565,"31.01.11","Мебель металлическая для офисов. Пояснение по требуемой продукции: диван","31.01.11.150-048",796,"Штука",23256.400000000001]
[{"$nulls":4},"31.01.11.150-049",796,"Штука",28749.09]
[null,566,"31.01.11","Мебель металлическая для офисов. Пояснение по требуемой продукции: конференц-кресло","31.01.11.150-020",796,"Штука",13073.83]
[null,567,"31.01.11","Мебель металлическая для офисов. Пояснение по требуемой продукции: кресло офисное","31.01.11.150-021",796,"Штука",19184.5,null,"-"]
[{"$nulls":4},"31.01.11.150-022",796,"Штука",49806,null,"-"]
[{"$nulls":4},"31.01.11.150-023",796,"Штука","-",null,6554.33]
[{"$nulls":4},"31.01.11.150-024",796,"Штука","-",null,23734.33]
[{"$nulls":4},"31.01.11.150-054",796,"Штука",19755.75,null,19755.75]
[{"$nulls":4},"31.01.11.150-089",796,"Штука",25794.67,null,25794.67]
[{"$nulls":4},"31.01.11.150-086",796,"Штука",33505.33,null,"-"]
[{"$nulls":4},"31.01.11.150-087",796,"Штука",27701,null,27701]
[{"$nulls":4},"31.01.11.150-088",796,"Штука",38950.199999999997,null,"-"]
[{"$nulls":4},"31.01.11.150-094",796,"Штука","-",null,8137]
[{"$nulls":4},"31.01.11.150-095",796,"Штука",16101.67,null,16101.67]
[{"$nulls":4},"31.01.11.150-098",796,"Штука",36174.99,null,"-"]
[{"$nulls":4},"31.01.11.150-102",796,"Штука","-",null,18430]
[null,568,"31.01.11","Мебель металлическая для офисов. Пояснение по требуемой продукции: секция стульев многоместная","31.01.11.150-001",796,"Штука",7147.33]
[{"$nulls":4},"31.01.11.150-002",796,"Штука",7582.5]
[{"$nulls":4},"31.01.11.150-003",796,"Штука",8287]
[{"$nulls":4},"31.01.11.150-004",796,"Штука",7550]
[{"$nulls":4},"31.01.11.150-005",796,"Штука",8130]
[{"$nulls":4},"31.01.11.150-006",796,"Штука",8978.33]
[{"$nulls":4},"31.01.11.150-007",796,"Штука",9669.73]
[{"$nulls":4},"31.01.11.150-008",796,"Штука",10844.07]
[{"$nulls":4},"31.01.11.150-009",796,"Штука",9782.5]
[{"$nulls":4},"31.01.11.150-010",796,"Штука",11202]
[{"$nulls":4},"31.01.11.150-011",796,"Штука",10955.5]
[{"$nulls":4},"31.01.11.150-012",796,"Штука",12341.33]
[{"$nulls":4},"31.01.11.150-013",796,"Штука",12531]
[{"$nulls":4},"31.01.11.150-055",796,"Штука",27132.2]
[{"$nulls":4},"31.01.11.150-056",796,"Штука",26250.17]
[{"$nulls":4},"31.01.11.150-057",796,"Штука",27306.49]
[{"$nulls":4},"31.01.11.150-058",796,"Штука",23701.599999999999]
[{"$nulls":4},"31.01.11.150-097",796,"Штука",27764.28]
[null,569,"31.01.11","Мебель металлическая для офисов. Пояснение по требуемой продукции: скамья","31.01.11.150-062",796,"Штука",4085.2]
[{"$nulls":4},"31.01.11.150-063",796,"Штука",4216.7]
[{"$nulls":4},"31.01.11.150-066",796,"Штука",4485.8]
[{"$nulls":4},"31.01.11.150-067",796,"Штука",4607.3]
[null,570,"31.01.11","Мебель металлическая для офисов. Пояснение по требуемой продукции: стеллаж офисный","31.01.11.130-001",796,"Штука",7506.33]
[{"$nulls":4},"31.01.11.130-002",796,"Штука",9645.26]
[null,571,"31.01.11","Мебель металлическая для офисов. Пояснение по требуемой продукции: стол офисный","31.01.11.110-013",796,"Штука",5476.3]
[{"$nulls":4},"31.01.11.110-011",796,"Штука",5795.35]
[{"$nulls":4},"31.01.11.110-007",796,"Штука",5365.6]
[{"$nulls":4},"31.01.11.110-006",796,"Штука",6034]
[{"$nulls":4},"31.01.11.110-004",796,"Штука",6615]
[null,572,"31.01.11","Мебель металлическая для офисов. Пояснение по требуемой продукции: стол письменный на металлокаркасе","31.01.11.110-019",796,"Штука",11557.37]
[null,573,"31.01.11","Мебель металлическая для офисов. Пояснение по требуемой продукции: стол приставной","31.01.11.110-017",796,"Штука","-",null,3377.79]
[{"$nulls":4},"31.01.11.110-018",796,"Штука","-",null,5343.54]
[{"$nulls":4},"31.01.11.110-016",796,"Штука",13138.5,null,"-"]
[null,574,"31.01.11","Мебель металлическая для офисов. Пояснение по требуемой продукции: стул на металлическом каркасе для офиса","31.01.11.150-014",796,"Штука",7653.99]
[{"$nulls":4},"31.01.11.150-015",796,"Штука",2317.96]
[{"$nulls":4},"31.01.11.150-016",796,"Штука",2542.02]
[{"$nulls":4},"31.01.11.150-017",796,"Штука",5810.44]
[{"$nulls":4},"31.01.11.150-018",796,"Штука",3072.75]
[{"$nulls":4},"31.01.11.150-019",796,"Штука",3910.75]
[null,575,"31.01.11","Мебель металлическая для офисов. Пояснение по требуемой продукции: стул на металлическом каркасе для столовой","31.01.11.150-070",796,"Штука",1893.52]
[{"$nulls":4},"31.01.11.150-071",796,"Штука",2877.72]
[{"$nulls":4},"31.01.11.150-078",796,"Штука",2625.37]
[{"$nulls":4},"31.01.11.150-079",796,"Штука",3148.33]
[{"$nulls":4},"31.01.11.150-084",796,"Штука",3478.05]
[{"$nulls":4},"31.01.11.150-085",796,"Штука",5644]
[{"$nulls":4},"31.01.11.150-100",796,"Штука",4925.33]
[null,576,"31.01.11","Мебель металлическая для офисов. Пояснение по требуемой продукции: стул ученический","31.01.11.150-025",796,"Штука",2070.5]
[{"$nulls":4},"31.01.11.150-026",796,"Штука",1966]
[{"$nulls":4},"31.01.11.150-027",796,"Штука",1966]
[{"$nulls":4},"31.01.11.150-028",796,"Штука",1966]
[{"$nulls":4},"31.01.11.150-029",796,"Штука",2115.98]
[{"$nulls":4},"31.01.11.150-030",796,"Штука",1013]
[{"$nulls":4},"31.01.11.150-031",796,"Штука",1153.5]
[{"$nulls":4},"31.01.11.150-032",796,"Штука",1954.67]
[{"$nulls":4},"31.01.11.150-033",796,"Штука",1954.67]
[{"$nulls":4},"31.01.11.150-034",796,"Штука",2036.88]
[{"$nulls":4},"31.01.11.150-035",796,"Штука",2072.5]
[{"$nulls":4},"31.01.11.150-036",796,"Штука",2417.39]
[{"$nulls":4},"31.01.11.150-037",796,"Штука",2368.06]
[{"$nulls":4},"31.01.11.150-038",796,"Штука",2375.6]
[{"$nulls":4},"31.01.11.150-039",796,"Штука",3183.6]
[{"$nulls":4},"31.01.11.150-040",796,"Штука",3540.83]
[{"$nulls":4},"31.01.11.150-099",796,"Штука",5991.1]
[{"$nulls":4},"31.01.11.150-101",796,"Штука",4472.67]
[null,577,"31.01.11","Мебель металлическая для офисов. Пояснение по требуемой продукции: табурет","31.01.11.150-050",796,"Штука",1921.46]
[{"$nulls":4},"31.01.11.150-051",796,"Штука",1892.5]
[{"$nulls":4},"31.01.11.150-052",796,"Штука",2565]
[{"$nulls":4},"31.01.11.150-053",796,"Штука",1754]
[null,578,"31.01.11","Мебель металлическая для офисов. Пояснение по требуемой продукции: шкаф архивный металлический","31.01.11.122-001",796,"Штука",14195.33]
[{"$nulls":4},"31.01.11.122-002",796,"Штука",17296.330000000002]
[{"$nulls":4},"31.01.11.122-003",796,"Штука",23198.75]
[{"$nulls":4},"31.01.11.122-004",796,"Штука",28257.25]
[{"$nulls":4},"31.01.11.122-007",796,"Штука",35966.89]
[{"$nulls":4},"31.01.11.122-008",796,"Штука",47601.2]
[null,579,"31.01.11","Мебель металлическая для офисов. Пояснение по требуемой продукции: шкаф для одежды металлический","31.01.11.121-001",796,"Штука",19317.330000000002]
[{"$nulls":4},"31.01.11.121-002",796,"Штука",11727]
[{"$nulls":4},"31.01.11.121-003",796,"Штука",13148.09]
[{"$nulls":4},"31.01.11.121-004",796,"Штука",11111.33]
[{"$nulls":4},"31.01.11.121-005",796,"Штука",16206.33]
[{"$nulls":4},"31.01.11.121-006",796,"Штука",23619.599999999999]
[{"$nulls":4},"31.01.11.121-007",796,"Штука",19434.400000000001]
[null,580,"31.01.11","Мебель металлическая для офисов. Пояснение по требуемой продукции: шкаф картотечный металлический","31.01.11.123-001",796,"Штука",24284]
[{"$nulls":4},"31.01.11.123-002",796,"Штука",29495.26]
[{"$nulls":4},"31.01.11.123-003",796,"Штука",37431]
[null,581,"31.01.11","Мебель металлическая для офисов. Пояснение по требуемой продукции: шкаф хозяйственный металлический","31.01.11.129-006",796,"Штука",12954.52]
[{"$nulls":4},"31.01.11.129-007",796,"Штука",16477.22]
[null,582,"31.01.12","Мебель деревянная для офисов. Пояснение по требуемой продукции: диван на деревянном каркасе","31.01.12.160-026",796,"Штука",37534.5]
[{"$nulls":4},"31.01.12.160-027",796,"Штука",30767.25]
[null,583,"31.01.12","Мебель деревянная для офисов. Пояснение по требуемой продукции: конференц-кресло","31.01.12.160-002",796,"Штука",19146.330000000002]
[{"$nulls":4},"31.01.12.160-003",796,"Штука",10488.02]
[null,584,"31.01.12","Мебель деревянная для офисов. Пояснение по требуемой продукции: полка для клавиатуры","31.01.12.190-002",796,"Штука",2489.92]
[null,585,"31.01.12","Мебель деревянная для офисов. Пояснение по требуемой продукции: приставка для письменного стола","31.01.12.190-001",796,"Штука",1854.5]
[null,586,"31.01.12","Мебель деревянная для офисов. Пояснение по требуемой продукции: скамья","31.01.12.160-006",796,"Штука",2565.5500000000002]
[null,587,"31.01.12","Мебель деревянная для офисов. Пояснение по требуемой продукции: стеллаж офисный деревянный, прямой","31.01.12.140-003",796,"Штука","-",null,6463.33]
[{"$nulls":4},"31.01.12.140-004",796,"Штука","-",null,9740.07]
[{"$nulls":4},"31.01.12.140-005",796,"Штука",16777.75,null,"-"]
[null,588,"31.01.12","Мебель деревянная для офисов. Пояснение по требуемой продукции: стеллаж офисный деревянный, угловой","31.01.12.140-006",796,"Штука",10841.63]
[null,589,"31.01.12","Мебель деревянная для офисов. Пояснение по требуемой продукции: стол детский для дошкольных учреждений на деревянном каркасе","31.01.12.121-005",796,"Штука",4450]
[{"$nulls":4},"31.01.12.121-010",796,"Штука",4270]
[null,590,"31.01.12","Мебель деревянная для офисов. Пояснение по требуемой продукции: стол детский для дошкольных учреждений на металлическом каркасе","31.01.12.121-002",796,"Штука",3871.5]
[{"$nulls":4},"31.01.12.121-004",796,"Штука",3691.5]
[{"$nulls":4},"31.01.12.121-006",796,"Штука",3790]
[{"$nulls":4},"31.01.12.121-007",796,"Штука",6115.67]
[{"$nulls":4},"31.01.12.121-011",796,"Штука",10773.23]
[null,591,"31.01.12","Мебель деревянная для офисов. Пояснение по требуемой продукции: стол для переговоров","31.01.12.110-006",796,"Штука",36801.18]
[{"$nulls":4},"31.01.12.110-029",796,"Штука",27079.34]
[null,592,"31.01.12","Мебель деревянная для офисов. Пояснение по требуемой продукции: стол игровой для дошкольных учреждений","31.01.12.121-009",796,"Штука","3082,93"]
[null,593,"31.01.12","Мебель деревянная для офисов. Пояснение по требуемой продукции: стол логопедический для дошкольных учреждений","31.01.12.121-008",796,"Штука",8628.4]
[null,594,"31.01.12","Мебель деревянная для офисов. Пояснение по требуемой продукции: стол письменный","31.01.12.110-001",796,"Штука","-",null,6975.67]
[{"$nulls":4},"31.01.12.110-002",796,"Штука","-",null,8526.33]
[{"$nulls":4},"31.01.12.110-003",796,"Штука","-",null,10428.5]
[{"$nulls":4},"31.01.12.110-004",796,"Штука","-",null,10663]
[{"$nulls":4},"31.01.12.110-005",796,"Штука","-",null,8824.32]
[{"$nulls":4},"31.01.12.110-020",796,"Штука","-",null,13383.33]
[{"$nulls":4},"31.01.12.110-021",796,"Штука","-",null,11125]
[{"$nulls":4},"31.01.12.110-022",796,"Штука","-",null,12383]
[{"$nulls":4},"31.01.12.110-024",796,"Штука","-",null,13451.4]
[{"$nulls":4},"31.01.12.110-007",796,"Штука","-",null,10838]
[{"$nulls":4},"31.01.12.110-011",796,"Штука","-",null,16222.8]
[{"$nulls":4},"31.01.12.110-014",796,"Штука","-",null,19818.73]
[{"$nulls":4},"31.01.12.110-026",796,"Штука",67019.75,null,"-"]
[{"$nulls":4},"31.01.12.110-027",796,"Штука",70839,null,"-"]
[{"$nulls":4},"31.01.12.110-030",796,"Штука","-",null,5527.51]
[null,595,"31.01.12","Мебель деревянная для офисов. Пояснение по требуемой продукции: стол приставной деревянный","31.01.12.110-028",796,"Штука",20095.5,null,"-"]
[null,596,"31.01.12","Мебель деревянная для офисов. Пояснение по требуемой продукции: стол ученический","31.01.12.122-011",796,"Штука",4216.57]
[{"$nulls":4},"31.01.12.122-012",796,"Штука",4203.6000000000004]
[{"$nulls":4},"31.01.12.122-013",796,"Штука",4250.87]
[{"$nulls":4},"31.01.12.122-014",796,"Штука",4249.8500000000004]
[{"$nulls":4},"31.01.12.122-015",796,"Штука",2949.75]
[{"$nulls":4},"31.01.12.122-016",796,"Штука",2732]
[{"$nulls":4},"31.01.12.122-017",796,"Штука",2732]
[{"$nulls":4},"31.01.12.122-018",796,"Штука",2732]
[{"$nulls":4},"31.01.12.122-019",796,"Штука",2802.5]
[{"$nulls":4},"31.01.12.122-020",796,"Штука",3432]
[{"$nulls":4},"31.01.12.122-021",796,"Штука",3432]
[{"$nulls":4},"31.01.12.122-022",796,"Штука",3432]
[{"$nulls":4},"31.01.12.122-023",796,"Штука",3673]
[{"$nulls":4},"31.01.12.122-024",796,"Штука",3673]
[{"$nulls":4},"31.01.12.122-025",796,"Штука",3837.12]
[{"$nulls":4},"31.01.12.122-027",796,"Штука",3607.33]
[{"$nulls":4},"31.01.12.122-029",796,"Штука",4274.7700000000004]
[{"$nulls":4},"31.01.12.122-030",796,"Штука",4524.6000000000004]
[{"$nulls":4},"31.01.12.122-031",796,"Штука",4912.7700000000004]
[{"$nulls":4},"31.01.12.122-032",796,"Штука",4785.47]
[{"$nulls":4},"31.01.12.122-033",796,"Штука",4892.9799999999996]
[{"$nulls":4},"31.01.12.122-036",796,"Штука",5421.9]
[{"$nulls":4},"31.01.12.122-037",796,"Штука",3308.18]
[{"$nulls":4},"31.01.12.122-038",796,"Штука",3090.22]
[{"$nulls":4},"31.01.12.122-039",796,"Штука",3427.33]
[{"$nulls":4},"31.01.12.122-040",796,"Штука",4959.6000000000004]
[{"$nulls":4},"31.01.12.122-042",796,"Штука",4339.7299999999996]
[{"$nulls":4},"31.01.12.122-043",796,"Штука",4091.33]
[{"$nulls":4},"31.01.12.122-045",796,"Штука",3916.67]
[{"$nulls":4},"31.01.12.122-049",796,"Штука",3383.5]
[{"$nulls":4},"31.01.12.122-051",796,"Штука",3184.33]
[{"$nulls":4},"31.01.12.122-052",796,"Штука",3184.33]
[{"$nulls":4},"31.01.12.122-053",796,"Штука",3525]
[{"$nulls":4},"31.01.12.122-054",796,"Штука",3901.5]
[{"$nulls":4},"31.01.12.122-055",796,"Штука",5660.33]
[{"$nulls":4},"31.01.12.122-063",796,"Штука",6244.33]
[{"$nulls":4},"31.01.12.122-064",796,"Штука",5341.6]
[null,597,"31.01.12","Мебель деревянная для офисов. Пояснение по требуемой продукции: стул на деревянном каркасе","31.01.12.160-004",796,"Штука","-",null,7180.09]
[{"$nulls":4},"31.01.12.160-025",796,"Штука",19838.07,null,"-"]
[null,598,"31.01.12","Мебель деревянная для офисов. Пояснение по требуемой продукции: табурет","31.01.12.160-001",796,"Штука",1547.53]
[null,599,"31.01.12","Мебель деревянная для офисов. Пояснение по требуемой продукции: тумба офисная деревянная","31.01.12.150-001",796,"Штука","-",null,10216.43]
[{"$nulls":4},"31.01.12.150-002",796,"Штука","-",null,6655.03]
[{"$nulls":4},"31.01.12.150-003",796,"Штука","-",null,6648.33]
[{"$nulls":4},"31.01.12.150-004",796,"Штука","-",null,8417.0499999999993]
[{"$nulls":4},"31.01.12.150-005",796,"Штука","-",null,4500.53]
[{"$nulls":4},"31.01.12.150-006",796,"Штука","-",null,8717.1299999999992]
[{"$nulls":4},"31.01.12.150-009",796,"Штука",46118.33,null,"-"]
[{"$nulls":4},"31.01.12.150-010",796,"Штука",28036,null,"-"]
[{"$nulls":4},"31.01.12.150-011",796,"Штука",13532,null,"-"]
[null,600,"31.01.12","Мебель деревянная для офисов. Пояснение по требуемой продукции: шкаф деревянный для документов, закрытый","31.01.12.139-001",796,"Штука",12754.64]
[{"$nulls":4},"31.01.12.139-015",796,"Штука",11527.87]
[null,601,"31.01.12","Мебель деревянная для офисов. Пояснение по требуемой продукции: шкаф деревянный для документов, комбинированный","31.01.12.139-002",796,"Штука",15211.92]
[{"$nulls":4},"31.01.12.139-016",796,"Штука",12357.76]
[null,602,"31.01.12","Мебель деревянная для офисов. Пояснение по требуемой продукции: шкаф деревянный для документов, низкий, закрытый","31.01.12.139-009",796,"Штука",8998.5]
[{"$nulls":4},"31.01.12.139-019",796,"Штука",6899.5]
[null,603,"31.01.12","Мебель деревянная для офисов. Пояснение по требуемой продукции: шкаф деревянный для документов, низкий, открытый","31.01.12.139-011",796,"Штука",6734.35]
[null,604,"31.01.12","Мебель деревянная для офисов. Пояснение по требуемой продукции: шкаф деревянный для документов, низкий, полузакрытый","31.01.12.139-008",796,"Штука",7311]
[null,605,"31.01.12","Мебель деревянная для офисов. Пояснение по требуемой продукции: шкаф деревянный для документов, полузакрытый","31.01.12.139-003",796,"Штука",10926.97]
[{"$nulls":4},"31.01.12.139-007",796,"Штука",8884.7999999999993]
[{"$nulls":4},"31.01.12.139-018",796,"Штука",8885.24]
[{"$nulls":4},"31.01.12.139-004",796,"Штука",11994.59]
[null,606,"31.01.12","Мебель деревянная для офисов. Пояснение по требуемой продукции: шкаф для одежды деревянный","31.01.12.131-001",796,"Штука","-",null,11878.54]
[{"$nulls":4},"31.01.12.131-002",796,"Штука","-",null,9688.1299999999992]
[{"$nulls":4},"31.01.12.131-003",796,"Штука",65005.33,null,"-"]
[{"$nulls":4},"31.01.12.131-004",796,"Штука","-",null,18457.41]
[null,607,"31.09.11","Мебель металлическая, не включенная в другие группировки. Пояснение по требуемой продукции: кровать детская, подъемная в шкафу","31.09.11.110-001",796,"Штука",29900.21]
[null,608,"31.09.11","Мебель металлическая, не включенная в другие группировки. Пояснение по требуемой продукции: раскладушка детская на металлическом каркасе","31.09.11.190-012",796,"Штука",3314.44]
[{"$nulls":4},"31.09.11.190-013",796,"Штука",4420]
[null,609,"31.09.11","Мебель металлическая, не включенная в другие группировки. Пояснение по требуемой продукции: раскладушка подростковая на металлическом каркасе","31.09.11.190-014",796,"Штука",5890]
[{"$nulls":4},"31.09.11.190-015",796,"Штука",6740]
[null,610,"31.09.11","Мебель металлическая, не включенная в другие группировки. Пояснение по требуемой продукции: стеллаж складской металлический","31.09.11.120-005",796,"Штука",16962]
[{"$nulls":4},"31.09.11.120-006",796,"Штука",12627.5]
[{"$nulls":4},"31.09.11.120-002",796,"Штука",6680]
[{"$nulls":4},"31.09.11.120-003",796,"Штука",8273.7099999999991]
[{"$nulls":4},"31.09.11.120-004",796,"Штука",9388.5]
[null,611,"31.09.11","Мебель металлическая, не включенная в другие группировки. Пояснение по требуемой продукции: стол лабораторный","31.09.11.140-001",796,"Штука",64030]
[{"$nulls":4},"31.09.11.140-002",796,"Штука",76926.67]
[{"$nulls":4},"31.09.11.140-003",796,"Штука",88330]
[{"$nulls":4},"31.09.11.140-004",796,"Штука",99860]
[{"$nulls":4},"31.09.11.140-005",796,"Штука",111290]
[{"$nulls":4},"31.09.11.140-006",796,"Штука",68250]
[{"$nulls":4},"31.09.11.140-007",796,"Штука",85200]
[{"$nulls":4},"31.09.11.140-008",796,"Штука",102130]
[{"$nulls":4},"31.09.11.140-009",796,"Штука",101890]
[{"$nulls":4},"31.09.11.140-010",796,"Штука",113030]
[{"$nulls":4},"31.09.11.140-011",796,"Штука",37490]
[{"$nulls":4},"31.09.11.140-012",796,"Штука",44330]
[{"$nulls":4},"31.09.11.140-013",796,"Штука",66810]
[{"$nulls":4},"31.09.11.140-014",796,"Штука",75810]
[{"$nulls":4},"31.09.11.140-015",796,"Штука",100090]
[null,612,"31.09.12","Мебель деревянная для спальни, столовой и гостиной. Пояснение по требуемой продукции: журнальный стол","31.09.12.132-001",796,"Штука",20187.93,null,"-"]
[{"$nulls":4},"31.09.12.132-002",796,"Штука","-",null,6968.52]
[null,613,"31.09.12","Мебель деревянная для спальни, столовой и гостиной. Пояснение по требуемой продукции: кровать детская","31.09.12.122-007",796,"Штука",8015.5]
[{"$nulls":4},"31.09.12.122-008",796,"Штука",15632.05]
[null,614,"31.09.12","Мебель деревянная для спальни, столовой и гостиной. Пояснение по требуемой продукции: кровать детская выкатная","31.09.12.122-001",796,"Штука",17290.509999999998]
[{"$nulls":4},"31.09.12.122-002",796,"Штука",15607.44]
[{"$nulls":4},"31.09.12.122-003",796,"Штука",14653.34]
[{"$nulls":4},"31.09.12.122-004",796,"Штука",17928.25]
[{"$nulls":4},"31.09.12.122-005",796,"Штука",17061.72]
[null,615,"31.09.12","Мебель деревянная для спальни, столовой и гостиной. Пояснение по требуемой продукции: кровать детская (для детей в возрасте от 3 до 7 лет)","31.09.12.122-009",796,"Штука",6832.06]
[{"$nulls":4},"31.09.12.122-010",796,"Штука",11528.33]
[null,616,"31.09.12","Мебель деревянная для спальни, столовой и гостиной. Пояснение по требуемой продукции: раскладушка детская, деревянная","31.09.12.129-001",796,"Штука",4138]
[null,617,"31.09.12","Мебель деревянная для спальни, столовой и гостиной. Пояснение по требуемой продукции: стол обеденный школьный","31.09.12.131-001",796,"Штука",7111]
[{"$nulls":4},"31.09.12.131-002",796,"Штука",9240.67]
[{"$nulls":4},"31.09.12.131-003",796,"Штука",6813]
[null,618,"31.09.13","Мебель деревянная, не включенная в другие группировки. Пояснение по требуемой продукции: банкетка","31.09.13.190-017",796,"Штука",4782.8999999999996]
[{"$nulls":4},"31.09.13.190-018",796,"Штука",6515.53]
[{"$nulls":4},"31.09.13.190-019",796,"Штука",6644.12]
[{"$nulls":4},"31.09.13.190-020",796,"Штука",7550.93]
[{"$nulls":4},"31.09.13.190-021",796,"Штука",10473.32]
[{"$nulls":4},"31.09.13.190-022",796,"Штука",13895.71]
[null,619,"31.09.13","Мебель деревянная, не включенная в другие группировки. Пояснение по требуемой продукции: диван детский для дошкольных учреждений","31.09.13.149-038",796,"Штука",10755.07]
[{"$nulls":4},"31.09.13.149-039",796,"Штука",6914.88]
[{"$nulls":4},"31.09.13.149-040",796,"Штука",5744.94]
[null,620,"31.09.13","Мебель деревянная, не включенная в другие группировки. Пояснение по требуемой продукции: кресло детское для дошкольных учреждений","31.09.13.149-041",796,"Штука",8021.04]
[null,621,"31.09.13","Мебель деревянная, не включенная в другие группировки. Пояснение по требуемой продукции: набор детской мебели","31.09.13.142-001",796,"Штука",15521.69]
[null,622,"31.09.13","Мебель деревянная, не включенная в другие группировки. Пояснение по требуемой продукции: надстройка на кровать","31.09.13.149-046",796,"Штука",6702.45]
[null,623,"31.09.13","Мебель деревянная, не включенная в другие группировки. Пояснение по требуемой продукции: стеллаж детский","31.09.13.149-013",796,"Штука",8927.23]
[{"$nulls":4},"31.09.13.149-014",796,"Штука",6273.95]
[{"$nulls":4},"31.09.13.149-015",796,"Штука",5499.97]
[{"$nulls":4},"31.09.13.149-016",796,"Штука",3429.9]
[{"$nulls":4},"31.09.13.149-017",796,"Штука",4668.63]
[null,624,"31.09.13","Мебель деревянная, не включенная в другие группировки. Пояснение по требуемой продукции: стол демонстрационный для кабинета физики","31.09.13.190-026",796,"Штука",36291.96]
[null,625,"31.09.13","Мебель деревянная, не включенная в другие группировки. Пояснение по требуемой продукции: стол дидактический","31.09.13.149-047",796,"Штука",30137.23]
[{"$nulls":4},"31.09.13.149-048",796,"Штука",17742.05]
[null,626,"31.09.13","Мебель деревянная, не включенная в другие группировки. Пояснение по требуемой продукции: стол компьютерный","31.09.13.190-012",796,"Штука",5814.86]
[{"$nulls":4},"31.09.13.190-013",796,"Штука",8968.08]
[{"$nulls":4},"31.09.13.190-025",796,"Штука",13987.06]
[null,627,"31.09.13","Мебель деревянная, не включенная в другие группировки. Пояснение по требуемой продукции: стул детский для дошкольных учреждений на деревянном каркасе","31.09.13.149-025",796,"Штука",2516.39]
[{"$nulls":4},"31.09.13.149-026",796,"Штука",2677.65]
[{"$nulls":4},"31.09.13.149-027",796,"Штука",1865]
[{"$nulls":4},"31.09.13.149-028",796,"Штука",1865.5]
[{"$nulls":4},"31.09.13.149-029",796,"Штука",1980.67]
[{"$nulls":4},"31.09.13.149-030",796,"Штука",2005]
[{"$nulls":4},"31.09.13.149-042",796,"Штука",2196]
[null,628,"31.09.13","Мебель деревянная, не включенная в другие группировки. Пояснение по требуемой продукции: стул детский для дошкольных учреждений на металлическом каркасе, жесткий (необитый)","31.09.13.149-024",796,"Штука",2489.33]
[null,629,"31.09.13","Мебель деревянная, не включенная в другие группировки. Пояснение по требуемой продукции: стул детский для дошкольных учреждений на металлическом каркасе, мягкий (обитый)","31.09.13.149-020",796,"Штука",2419.65]
[{"$nulls":4},"31.09.13.149-021",796,"Штука",2675.28]
[{"$nulls":4},"31.09.13.149-022",796,"Штука",2419.65]
[{"$nulls":4},"31.09.13.149-023",796,"Штука",2675.28]
[null,630,"31.09.13","Мебель деревянная, не включенная в другие группировки. Пояснение по требуемой продукции: табурет игровой для дошкольных учреждений","31.09.13.149-045",796,"Штука",1205.97]
[null,631,"31.09.13","Мебель деревянная, не включенная в другие группировки. Пояснение по требуемой продукции: тумба под школьную доску","31.09.13.190-010",796,"Штука",6194.23]
[{"$nulls":4},"31.09.13.190-011",796,"Штука",7020.13]
[null,632,"31.09.13","Мебель деревянная, не включенная в другие группировки. Пояснение по требуемой продукции: шкаф детский для горшков","31.09.13.149-032",796,"Штука",7195.92]
[null,633,"31.09.13","Мебель деревянная, не включенная в другие группировки. Пояснение по требуемой продукции: шкаф для одежды","31.09.13.149-004",796,"Штука",8214]
[{"$nulls":4},"31.09.13.149-005",796,"Штука",8555]
[{"$nulls":4},"31.09.13.149-006",796,"Штука",6805]
[{"$nulls":4},"31.09.13.149-007",796,"Штука",4960]
[{"$nulls":4},"31.09.13.149-008",796,"Штука",8780]
[{"$nulls":4},"31.09.13.149-009",796,"Штука",6410]
[{"$nulls":4},"31.09.13.149-010",796,"Штука",10427.5]
[{"$nulls":4},"31.09.13.149-011",796,"Штука",11175]
[{"$nulls":4},"31.09.13.149-012",796,"Штука",11109.98]
[{"$nulls":4},"31.09.13.149-018",796,"Штука",4027.5]
[{"$nulls":4},"31.09.13.149-019",796,"Штука",7770]
[{"$nulls":4},"31.09.13.149-033",796,"Штука",5500]
[{"$nulls":4},"31.09.13.149-034",796,"Штука",16466.669999999998]
[{"$nulls":4},"31.09.13.149-035",796,"Штука",14220.25]
[{"$nulls":4},"31.09.13.149-036",796,"Штука",14227.5]
[{"$nulls":4},"31.09.13.149-037",796,"Штука",12995]
[null,634,"31.09.13","Мебель деревянная, не включенная в другие группировки. Пояснение по требуемой продукции: шкаф для полотенец","31.09.13.149-001",796,"Штука",3489.5]
[{"$nulls":4},"31.09.13.149-002",796,"Штука",5645.17]
[{"$nulls":4},"31.09.13.149-003",796,"Штука",14055.77]
[{"$nulls":4},"31.09.13.149-031",796,"Штука",7580.05]
[null,635,"31.09.13","Мебель деревянная, не включенная в другие группировки. Пояснение по требуемой продукции: шкаф для хозяйственного инвентаря","31.09.13.190-006",796,"Штука",5962.41]
[null,"2.6. Перечень товарных позиций части  «Хозяйственные товары» "]
[{"$nulls":4},"В соответствии с кодом конечного каталожного наименования (ККН)",null,null,"Предельная цена (руб. с НДС)"]
[null,636,"13.92.14","Белье туалетное и кухонное. Пояснение по требуемой продукции: полотенце текстильное (махровое для ванной комнаты)","13.92.14.110-002",796,"Штука",345.94]
[{"$nulls":4},"13.92.14.110-005",796,"Штука",173.58]
[{"$nulls":4},"13.92.14.110-006",796,"Штука",158]
[null,637,"13.92.14","Белье туалетное и кухонное. Пояснение по требуемой продукции: полотенце текстильное (вафельное)","13.92.14.120-001",796,"Штука",67.510000000000005]
[{"$nulls":4},"13.92.14.110-007",796,"Штука",117.14]
[null,638,"13.92.14","Белье туалетное и кухонное. Пояснение по требуемой продукции: полотенце текстильное (салфетка махровая)","13.92.14.110-003",796,"Штука",110.41]
[null,639,"13.92.29","Изделия текстильные готовые прочие (включая тряпки для мытья полов, посуды, удаления пыли и аналогичные текстильные изделия, спасательные жилеты и пояса). Пояснение по требуемой продукции: тряпка для очистки поверхностей (полотно в рулоне)","13.92.29.110-107",796,"Штука",3275]
[{"$nulls":4},"13.92.29.110-108",796,"Штука",2829.71]
[{"$nulls":4},"13.92.29.110-109",796,"Штука",5573.51]
[null,640,"13.92.29","Изделия текстильные готовые прочие (включая тряпки для мытья полов, посуды, удаления пыли и аналогичные текстильные изделия, спасательные жилеты и пояса). Пояснение по требуемой продукции: тряпка для очистки поверхностей (насадка для швабры)","13.92.29.110-088",796,"Штука",155.69]
[{"$nulls":4},"13.92.29.110-091",796,"Штука",473.77]
[{"$nulls":4},"13.92.29.110-092",796,"Штука",284.33]
[{"$nulls":4},"13.92.29.110-110",796,"Штука",466.23]
[{"$nulls":4},"13.92.29.110-111",796,"Штука",559.9]
[null,641,"13.92.29","Изделия текстильные готовые прочие (включая тряпки для мытья полов, посуды, удаления пыли и аналогичные текстильные изделия, спасательные жилеты и пояса). Пояснение по требуемой продукции: тряпка для очистки поверхностей (универсальные в упаковке)","13.92.29.110-008",796,"Штука",11.86]
[{"$nulls":4},"13.92.29.120-001",796,"Штука",7.61]
[{"$nulls":4},"13.92.29.110-102",796,"Штука",50.83]
[null,642,"13.92.29","Изделия текстильные готовые прочие (включая тряпки для мытья полов, посуды, удаления пыли и аналогичные текстильные изделия, спасательные жилеты и пояса). Пояснение по требуемой продукции: тряпка для очистки поверхностей ","13.92.29.110-093",796,"Штука",54.18]
[{"$nulls":4},"13.92.29.110-104",796,"Штука",159.11000000000001]
[{"$nulls":4},"13.92.29.110-105",796,"Штука",242.31]
[null,643,"13.92.29","Изделия текстильные готовые прочие (включая тряпки для мытья полов, посуды, удаления пыли и аналогичные текстильные изделия, спасательные жилеты и пояса). Пояснение по требуемой продукции: тряпка для очистки поверхностей (для удаления пыли в рулоне)","13.92.29.110-012",796,"Штука",2.3199999999999998]
[{"$nulls":4},"13.92.29.110-100",796,"Штука",3.71]
[{"$nulls":4},"13.92.29.110-101",796,"Штука",2.16]
[null,644,"13.92.29","Изделия текстильные готовые прочие (включая тряпки для мытья полов, посуды, удаления пыли и аналогичные текстильные изделия, спасательные жилеты и пояса). Пояснение по требуемой продукции: тряпка для очистки поверхности (полотно в рулоне)","13.92.29.110-002",796,"Штука",2634.66]
[{"$nulls":4},"13.92.29.110-003",796,"Штука",4412.28]
[{"$nulls":4},"13.92.29.110-009",796,"Штука",3349.57]
[{"$nulls":4},"13.92.29.110-011",796,"Штука",2168.31]
[{"$nulls":4},"13.92.29.110-013",796,"Штука",2500.67]
[null,645,"13.92.29","Изделия текстильные готовые прочие (включая тряпки для мытья полов, посуды, удаления пыли и аналогичные текстильные изделия, спасательные жилеты и пояса). Пояснение по требуемой продукции: тряпка для очистки поверхностей","13.92.29.110-010",796,"Штука",47.78]
[{"$nulls":4},"13.92.29.110-089",796,"Штука",254.3]
[{"$nulls":4},"13.92.29.110-090",796,"Штука",50.28]
[{"$nulls":4},"13.92.29.110-094",796,"Штука",205.09]
[null,646,"13.93.19","Ковры и текстильные напольные покрытия прочие (включая войлочные). Пояснение по требуемой продукции: коврик придверный (ворсовый)","13.93.19.110-002",796,"Штука",341]
[{"$nulls":4},"13.93.19.110-003",796,"Штука",1798.42]
[{"$nulls":4},"13.93.19.110-004",796,"Штука",2977.04]
[{"$nulls":4},"13.93.19.110-010",796,"Штука",283.79000000000002]
[null,647,"13.93.19","Ковры и текстильные напольные покрытия прочие (включая войлочные). Пояснение по требуемой продукции: коврик придверный (искусственная трава)","13.93.19.110-005",796,"Штука",257.67]
[{"$nulls":4},"13.93.19.110-009",796,"Штука",8818.68]
[{"$nulls":4},"13.93.19.110-011",796,"Штука",11146.6]
[null,648,"13.94.11\n(13.94.12)****","Шпагат, канаты, веревки и шнуры из джута или прочих текстильных лубяных материалов. Пояснение по требуемой продукции: шпагат бытовой (полипропиленовый)","13.94.12.190-001",796,"Штука",49.6]
[{"$nulls":4},"13.94.12.190-002",796,"Штука",84.37]
[{"$nulls":4},"13.94.12.190-003",796,"Штука",316.75]
[{"$nulls":4},"13.94.12.190-004",796,"Штука",446.13]
[{"$nulls":4},"13.94.12.190-005",796,"Штука",475.57]
[{"$nulls":4},"13.94.12.190-006",796,"Штука",2141.67]
[null,649,"13.99.19","Материалы и изделия текстильные прочие, не включенные в другие группировки. Пояснение по требуемой продукции: прокладки женские гигиенические","13.99.19.121-001",778,"Упаковка",73.53]
[{"$nulls":4},"13.99.19.121-002",778,"Упаковка",79.33]
[{"$nulls":4},"13.99.19.121-003",778,"Упаковка",264.45999999999998]
[{"$nulls":4},"13.99.19.121-004",778,"Упаковка",280.01]
[null,650,"13.99.19","Материалы и изделия текстильные прочие, не включенные в другие группировки. Пояснение по требуемой продукции: ватные диски (в упаковке)","13.99.19.129-003",778,"Упаковка",72.819999999999993]
[{"$nulls":4},"13.99.19.129-004",778,"Упаковка",88.24]
[{"$nulls":4},"13.99.19.129-005",778,"Упаковка",118.33]
[null,651,"13.99.19","Материалы и изделия текстильные прочие, не включенные в другие группировки. Пояснение по требуемой продукции: ватные палочки (в упаковке)","13.99.19.129-001",778,"Упаковка",79.010000000000005]
[{"$nulls":4},"13.99.19.129-002",778,"Упаковка",44.38]
[null,652,"14.12.30","Спецодежда прочая. Пояснение по требуемой продукции: перчатки трикотажные для защиты от внешних воздействий","14.12.30.150-001",715,"Пара (2 шт.)",24.33]
[{"$nulls":4},"14.12.30.150-002",715,"Пара (2 шт.)",24.28]
[{"$nulls":4},"14.12.30.150-007",715,"Пара (2 шт.)",131.88999999999999]
[null,653,"16.29.11","Инструменты, корпуса и рукоятки инструментов, рукоятки и части щеток и метел, блоки для изготовления курительных трубок, сапожные колодки и растяжки для обуви, деревянные. Пояснение по требуемой продукции: рукоятка (черенок)","16.29.11.120-001",796,"Штука",112.8]
[{"$nulls":4},"16.29.11.120-003",796,"Штука",81.069999999999993]
[{"$nulls":4},"16.29.11.120-004",796,"Штука",112.92]
[null,654,"17.22.11","Бумага туалетная, платки носовые, салфетки и полотенца гигиенические или косметические, скатерти и салфетки для стола из бумажной массы, бумаги, целлюлозной ваты и полотна из целлюлозных волокон. Пояснение по требуемой продукции: бумага туалетная","17.22.11.110-009",796,"Штука",26.81]
[{"$nulls":4},"17.22.11.110-010",796,"Штука",104.82]
[{"$nulls":4},"17.22.11.110-011",796,"Штука",191.53]
[{"$nulls":4},"17.22.11.110-012",796,"Штука",216]
[{"$nulls":4},"17.22.11.110-013",796,"Штука",25.21]
[{"$nulls":4},"17.22.11.110-014",796,"Штука",57.54]
[{"$nulls":4},"17.22.11.110-015",796,"Штука",191.97]
[{"$nulls":4},"17.22.11.110-016",796,"Штука",336.84]
[{"$nulls":4},"17.22.11.110-017",796,"Штука",330.6]
[{"$nulls":4},"17.22.11.110-018",796,"Штука",21.97]
[null,655,"17.22.11","Бумага туалетная, платки носовые, салфетки и полотенца гигиенические или косметические, скатерти и салфетки для стола из бумажной массы, бумаги, целлюлозной ваты и полотна из целлюлозных волокон. Пояснение по требуемой продукции: салфетка гигиеническая влажная","17.22.11.130-009",778,"Упаковка",164.33]
[{"$nulls":4},"17.22.11.130-016",778,"Упаковка",29.31]
[null,656,"17.22.11","Бумага туалетная, платки носовые, салфетки и полотенца гигиенические или косметические, скатерти и салфетки для стола из бумажной массы, бумаги, целлюлозной ваты и полотна из целлюлозных волокон. Пояснение по требуемой продукции: салфетка бумажная для сервировки стола","17.22.11.140-001",778,"Упаковка",30.68]
[{"$nulls":4},"17.22.11.140-002",778,"Упаковка",26.96]
[{"$nulls":4},"17.22.11.140-004",778,"Упаковка",80.52]
[{"$nulls":4},"17.22.11.140-005",778,"Упаковка",39.74]
[{"$nulls":4},"17.22.11.140-006",778,"Упаковка",58.08]
[null,657,"17.22.11","Бумага туалетная, платки носовые, салфетки и полотенца гигиенические или косметические, скатерти и салфетки для стола из бумажной массы, бумаги, целлюлозной ваты и полотна из целлюлозных волокон. Пояснение по требуемой продукции: полотенце бумажное (форма выпуска лист, для диспенсеров)","17.22.11.130-002",778,"Упаковка",124.81]
[{"$nulls":4},"17.22.11.130-003",778,"Упаковка",97.37]
[{"$nulls":4},"17.22.11.130-004",778,"Упаковка",174.13]
[{"$nulls":4},"17.22.11.130-005",778,"Упаковка",140.33000000000001]
[{"$nulls":4},"17.22.11.130-006",778,"Упаковка",116.46]
[{"$nulls":4},"17.22.11.130-007",778,"Упаковка",158.72]
[{"$nulls":4},"17.22.11.130-011",778,"Упаковка",180.67]
[{"$nulls":4},"17.22.11.130-012",778,"Упаковка",160.06]
[null,658,"17.22.11","Бумага туалетная, платки носовые, салфетки и полотенца гигиенические или косметические, скатерти и салфетки для стола из бумажной массы, бумаги, целлюлозной ваты и полотна из целлюлозных волокон. Пояснение по требуемой продукции: полотенце бумажное","17.22.11.130-001",796,"Штука",62]
[{"$nulls":4},"17.22.11.130-008",796,"Штука",36.119999999999997]
[{"$nulls":4},"17.22.11.130-022",796,"Штука",99.39]
[null,659,"17.22.11","Бумага туалетная, платки носовые, салфетки и полотенца гигиенические или косметические, скатерти и салфетки для стола из бумажной массы, бумаги, целлюлозной ваты и полотна из целлюлозных волокон. Пояснение по требуемой продукции: скатерть бумажная для сервировки стола","17.22.11.140-003",796,"Штука",169.85]
[null,660,"17.22.11","Бумага туалетная, платки носовые, салфетки и полотенца гигиенические или косметические, скатерти и салфетки для стола из бумажной массы, бумаги, целлюлозной ваты и полотна из целлюлозных волокон. Пояснение по требуемой продукции: полотенце бумажное (форма выпуска рулон, для диспенсеров)","17.22.11.130-017",796,"Штука",388.22]
[{"$nulls":4},"17.22.11.130-018",796,"Штука",417.86]
[{"$nulls":4},"17.22.11.130-019",796,"Штука",364.71]
[{"$nulls":4},"17.22.11.130-020",796,"Штука",1493.59]
[{"$nulls":4},"17.22.11.130-021",796,"Штука",351.45]
[null,661,"17.22.12","Полотенца санитарно-гигиенические и тампоны, подгузники и пеленки детские и аналогичные изделия санитарно-гигиенического назначения и предметы и аксессуары одежды из бумажной массы, бумаги, целлюлозной ваты и полотна из целлюлозных волокон. Пояснение по требуемой продукции: одноразовое гигиеническое сиденье","17.22.12.130-017",778,"Упаковка",370.53]
[{"$nulls":4},"17.22.12.130-018",778,"Упаковка",276.93]
[null,662,"20.13.43","Карбонаты. Пояснение по требуемой продукции: сода кальцинированная","20.13.43.119-001",796,"Штука",46.6]
[{"$nulls":4},"20.13.43.119-002",796,"Штука",52.01]
[null,663,"20.20.11","Инсектициды. Пояснение по требуемой продукции: аэрозоль (против насекомых)","20.20.11.000-001",796,"Штука",223.12]
[null,664,"20.20.11","Инсектициды. Пояснение по требуемой продукции: лента липкая (против насекомых)","20.20.11.000-002",796,"Штука",14.65]
[null,665,"20.20.14","Средства дезинфекционные. Пояснение по требуемой продукции: средство дезинфицирующие (жидкость)","20.20.14.000-031",112,"Литр; кубический дециметр",173.49]
[{"$nulls":4},"20.20.14.000-032",112,"Литр; кубический дециметр",159.75]
[null,666,"20.20.14","Средства дезинфекционные. Пояснение по требуемой продукции: средство дезинфицирующие (порошок)","20.20.14.000-033",166,"Килограмм",1034.67]
[null,667,"20.20.14","Средства дезинфекционные. Пояснение по требуемой продукции: средство дезинфицирующие  (в таблетках)","20.20.14.000-034",166,"Килограмм",715.91]
[{"$nulls":4},"20.20.14.000-035",166,"Килограмм",1215.75]
[null,668,"20.41.31","Мыло и органические поверхностно-активные вещества и средства, используемые в качестве мыла; бумага, вата, войлок, фетр и нетканые материалы, пропитанные или покрытые мылом или моющим средством. Пояснение по требуемой продукции: мыло хозяйственное твердое","20.41.31.121-002",166,"Килограмм",178.13]
[{"$nulls":4},"20.41.31.123-002",166,"Килограмм",134.63999999999999]
[{"$nulls":4},"20.41.31.123-003",166,"Килограмм",398.73]
[null,669,"20.41.31","Мыло и органические поверхностно-активные вещества и средства, используемые в качестве мыла; бумага, вата, войлок, фетр и нетканые материалы, пропитанные или покрытые мылом или моющим средством. Пояснение по требуемой продукции: мыло хозяйственное жидкое","20.41.31.140-001",112,"Литр; кубический дециметр",101.33]
[{"$nulls":4},"20.41.31.140-002",112,"Литр; кубический дециметр",142.76]
[null,670,"20.41.31","Мыло и органические поверхностно-активные вещества и средства, используемые в качестве мыла; бумага, вата, войлок, фетр и нетканые материалы, пропитанные или покрытые мылом или моющим средством. Пояснение по требуемой продукции: мыло туалетное твердое","20.41.31.111-001",796,"Штука",6.2]
[{"$nulls":4},"20.41.31.111-002",796,"Штука",25.89]
[{"$nulls":4},"20.41.31.111-003",796,"Штука",57.85]
[{"$nulls":4},"20.41.31.113-002",796,"Штука",26.78]
[{"$nulls":4},"20.41.31.113-003",796,"Штука",24.33]
[{"$nulls":4},"20.41.31.114-001",796,"Штука",41.44]
[null,671,"20.41.31","Мыло и органические поверхностно-активные вещества и средства, используемые в качестве мыла; бумага, вата, войлок, фетр и нетканые материалы, пропитанные или покрытые мылом или моющим средством. Пояснение по требуемой продукции: мыло туалетное жидкое","20.41.31.130-007",112,"Литр; кубический дециметр",62.37]
[{"$nulls":4},"20.41.31.130-008",112,"Литр; кубический дециметр",156.47999999999999]
[{"$nulls":4},"20.41.31.130-009",112,"Литр; кубический дециметр",290.01]
[{"$nulls":4},"20.41.31.130-010",112,"Литр; кубический дециметр",127.53]
[{"$nulls":4},"20.41.31.130-011",112,"Литр; кубический дециметр",173]
[{"$nulls":4},"20.41.31.130-012",112,"Литр; кубический дециметр",323.93]
[{"$nulls":4},"20.41.31.130-013",112,"Литр; кубический дециметр",357.16]
[{"$nulls":4},"20.41.31.130-016",796,"Штука",235.63]
[{"$nulls":4},"20.41.31.130-015",112,"Литр; кубический дециметр",184.14]
[{"$nulls":4},"20.41.31.130-017",112,"Литр; кубический дециметр",118.74]
[null,672,"20.41.32","Средства моющие и стиральные. Пояснение по требуемой продукции: средство для мытья посуды","20.41.32.111-012",796,"Штука",70.28]
[{"$nulls":4},"20.41.32.111-013",796,"Штука",210.21]
[{"$nulls":4},"20.41.32.111-014",796,"Штука",515.9]
[{"$nulls":4},"20.41.32.111-015",796,"Штука",117.02]
[null,673,"20.41.32","Средства моющие и стиральные. Пояснение по требуемой продукции: средство для мытья посуды (ополаскиватель для посуды для посудомоечных машин)","20.41.32.111-018",112,"Литр; кубический дециметр",383.54]
[null,674,"20.41.32","Средства моющие и стиральные. Пояснение по требуемой продукции: средство для мытья посуды (таблетки для посудомоечных машин)","20.41.32.111-002",796,"Штука",7.25]
[{"$nulls":4},"20.41.32.111-005",796,"Штука",9.4499999999999993]
[{"$nulls":4},"20.41.32.111-006",796,"Штука",9.27]
[null,675,"20.41.32","Средства моющие и стиральные. Пояснение по требуемой продукции: средство для мытья посуды (порошок для посудомоечных машин)","20.41.32.111-016",166,"Килограмм",328.86]
[{"$nulls":4},"20.41.32.111-017",166,"Килограмм",323.8]
[null,676,"20.41.32","Средства моющие и стиральные. Пояснение по требуемой продукции: средство для мытья посуды (жидкость для посудомоечных машин)","20.41.32.111-011",112,"Литр; кубический дециметр",177.45]
[null,677,"20.41.32","Средства моющие и стиральные. Пояснение по требуемой продукции: средства моющие для стекол и зеркал","20.41.32.113-001",112,"Литр; кубический дециметр",169.39]
[{"$nulls":4},"20.41.32.113-002",112,"Литр; кубический дециметр",86.6]
[null,678,"20.41.32","Средства моющие и стиральные. Пояснение по требуемой продукции: средства моющие для туалетов и ванных комнат","20.41.32.114-001",796,"Штука",102.97]
[{"$nulls":4},"20.41.32.114-002",796,"Штука",117.08]
[{"$nulls":4},"20.41.32.114-003",796,"Штука",140.06]
[{"$nulls":4},"20.41.32.114-004",796,"Штука",741]
[null,679,"20.41.32","Средства моющие и стиральные. Пояснение по требуемой продукции: чистящее средство для кофемашин","20.41.32.119-018",778,"Упаковка",491.33]
[null,680,"20.41.32","Средства моющие и стиральные. Пояснение по требуемой продукции: чистящее средство (жидкое для кухонного оборудования)","20.41.32.119-001",796,"Штука",162.06]
[{"$nulls":4},"20.41.32.119-002",796,"Штука",642.12]
[{"$nulls":4},"20.41.32.119-007",796,"Штука",185.13]
[null,681,"20.41.32","Средства моющие и стиральные. Пояснение по требуемой продукции: чистящее средство (жидкие для мытья различных поверхностей)","20.41.32.119-006",796,"Штука",502.39]
[null,682,"20.41.32","Средства моющие и стиральные. Пояснение по требуемой продукции: чистящее средство (жидкое для мытья пароконвектоматов)","20.41.32.119-014",796,"Штука",345.47]
[{"$nulls":4},"20.41.32.119-015",796,"Штука",1718.85]
[{"$nulls":4},"20.41.32.119-016",796,"Штука",7959.12]
[null,683,"20.41.32","Средства моющие и стиральные. Пояснение по требуемой продукции: чистящее средство (для мытья пароконвектоматов в таблетках)","20.41.32.119-017",796,"Штука",150.97999999999999]
[{"$nulls":4},"20.41.32.119-019",796,"Штука",102.36]
[null,684,"20.41.32","Средства моющие и стиральные. Пояснение по требуемой продукции: кондиционер для белья","20.41.32.124-001",112,"Литр; кубический дециметр",135.4]
[{"$nulls":4},"20.41.32.124-002",112,"Литр; кубический дециметр",156.54]
[{"$nulls":4},"20.41.32.124-003",112,"Литр; кубический дециметр",95.72]
[{"$nulls":4},"20.41.32.124-004",112,"Литр; кубический дециметр",165.71]
[null,685,"20.41.32","Средства моющие и стиральные. Пояснение по требуемой продукции: средства отбеливающие для стирки","20.41.32.125-004",112,"Литр; кубический дециметр",61.19]
[{"$nulls":4},"20.41.32.125-005",166,"Килограмм",345.56]
[{"$nulls":4},"20.41.32.125-006",166,"Килограмм",303.24]
[null,686,"20.41.32","Средства моющие и стиральные. Пояснение по требуемой продукции: чистящее средство (жидкое для чистки ковров)","20.41.32.119-022",796,"Штука",134.22999999999999]
[null,687,"20.41.32","Средства моющие и стиральные. Пояснение по требуемой продукции: чистящее средство (жидкое для мытья пола)","20.41.32.119-011",796,"Штука",88.18]
[{"$nulls":4},"20.41.32.119-012",796,"Штука",157.04]
[{"$nulls":4},"20.41.32.119-013",796,"Штука",427.09]
[{"$nulls":4},"20.41.32.119-023",796,"Штука",267.60000000000002]
[null,688,"20.41.32","Средства моющие и стиральные. Пояснение по требуемой продукции: порошок стиральный","20.41.32.121-013",166,"Килограмм",198.55]
[{"$nulls":4},"20.41.32.121-014",166,"Килограмм",149.16999999999999]
[{"$nulls":4},"20.41.32.121-015",166,"Килограмм",137.68]
[{"$nulls":4},"20.41.32.121-016",166,"Килограмм",138.22999999999999]
[{"$nulls":4},"20.41.32.121-020",166,"Килограмм",218.99]
[{"$nulls":4},"20.41.32.121-021",166,"Килограмм",233.59]
[{"$nulls":4},"20.41.32.121-023",166,"Килограмм",208.58]
[null,689,"20.41.32","Средства моющие и стиральные. Пояснение по требуемой продукции: гель для стирки","20.41.32.129-001",112,"Литр; кубический дециметр",217.65]
[{"$nulls":4},"20.41.32.129-002",112,"Литр; кубический дециметр",215.67]
[null,690,"20.41.32","Средства моющие и стиральные. Пояснение по требуемой продукции: порошок стиральный (для детского белья)","20.41.32.121-017",166,"Килограмм",294.20999999999998]
[{"$nulls":4},"20.41.32.121-018",166,"Килограмм",202.56]
[{"$nulls":4},"20.41.32.121-019",166,"Килограмм",246.36]
[{"$nulls":4},"20.41.32.121-022",166,"Килограмм",200.66]
[null,691,"20.41.41","Средства для дезодорирования и ароматизации воздуха в помещениях. Пояснение по требуемой продукции: средства для дезодорирования и ароматизации воздуха в помещениях (освежители воздуха)","20.41.41.000-001",796,"Штука",90.42]
[null,692,"20.41.41","Средства для дезодорирования и ароматизации воздуха в помещениях. Пояснение по требуемой продукции: средства для дезодорирования и ароматизации воздуха в помещениях (автоматические в наборе)","20.41.41.000-002",796,"Штука",939.81]
[null,693,"20.41.41","Средства для дезодорирования и ароматизации воздуха в помещениях. Пояснение по требуемой продукции: средства для дезодорирования и ароматизации воздуха в помещениях (сменные баллоны для диспенсера)","20.41.41.000-003",796,"Штука",634.57000000000005]
[{"$nulls":4},"20.41.41.000-004",796,"Штука",426.49]
[{"$nulls":4},"20.41.41.000-005",796,"Штука",551.39]
[null,694,"20.41.43","Средства, кремы, мастики для обуви, мебели, полов, транспортных средств, стекла или металла полирующие. Пояснение по требуемой продукции: средство полирующее для мебели","20.41.43.120-001",796,"Штука",145.94]
[null,695,"20.41.44","Пасты чистящие, порошки и прочие чистящие средства. Пояснение по требуемой продукции: паста для рук","20.41.44.110-001",796,"Штука",72.599999999999994]
[null,696,"20.41.44","Пасты чистящие, порошки и прочие чистящие средства. Пояснение по требуемой продукции: порошок чистящий","20.41.44.120-001",166,"Килограмм",137.78]
[{"$nulls":4},"20.41.44.120-002",166,"Килограмм",359.23]
[{"$nulls":4},"20.41.44.120-003",166,"Килограмм",195.49]
[null,697,"20.41.44","Пасты чистящие, порошки и прочие чистящие средства. Пояснение по требуемой продукции: чистящее средство (для труб)","20.41.44.190-003",796,"Штука",77.069999999999993]
[{"$nulls":4},"20.41.44.190-008",796,"Штука",489.79]
[null,698,"20.41.44","Пасты чистящие, порошки и прочие чистящие средства. Пояснение по требуемой продукции: чистящее средство (антивандальное)","20.41.44.190-006",796,"Штука",396.23]
[null,699,"20.42.15","Средства для ухода за кожей, макияжа или защитные средства для кожи (включая солнцезащитные и для загара), не включенные в другие группировки. Пояснение по требуемой продукции: крем для рук","20.42.15.141-001",112,"Литр; кубический дециметр",783.75]
[null,700,"20.42.15","Средства для ухода за кожей, макияжа или защитные средства для кожи (включая солнцезащитные и для загара), не включенные в другие группировки. Пояснение по требуемой продукции: крем защитный","20.42.15.149-001",796,"Штука",137.66999999999999]
[{"$nulls":4},"20.42.15.149-002",796,"Штука",90.64]
[{"$nulls":4},"20.42.15.149-003",796,"Штука",100.24]
[{"$nulls":4},"20.42.15.149-004",796,"Штука",144.82]
[null,701,"20.42.16","Шампуни, лаки для волос, средства для завивки или распрямления волос. Пояснение по требуемой продукции: шампунь","20.42.16.110-001",112,"Литр; кубический дециметр",309.57]
[{"$nulls":4},"20.42.16.110-002",112,"Литр; кубический дециметр",488.53]
[{"$nulls":4},"20.42.16.110-003",112,"Литр; кубический дециметр",361.28]
[{"$nulls":4},"20.42.16.110-004",112,"Литр; кубический дециметр",376.24]
[null,702,"20.42.18","Средства гигиены полости рта и зубов (включая фиксирующие пасты и порошки для зубных протезов), нити для чистки зубов. Пояснение по требуемой продукции: паста зубная","20.42.18.111-001",112,"Литр; кубический дециметр",1176.67]
[{"$nulls":4},"20.42.18.111-002",112,"Литр; кубический дециметр",1408.81]
[null,703,"20.42.19","Средства для бритья; дезодоранты и антиперспиранты; средства для ванн, прочие парфюмерные, косметические или туалетные средства, не включенные в другие группировки. Пояснение по требуемой продукции: гель для душа","20.42.19.190-001",796,"Штука",3.13]
[{"$nulls":4},"20.42.19.190-002",796,"Штука",160.49]
[{"$nulls":4},"20.42.19.190-003",796,"Штука",171]
[null,704,"20.59.59","Продукты разные химические, не включенные в другие группировки. Пояснение по требуемой продукции: средство для декальцинации","20.59.59.900-095",778,"Упаковка",270.47000000000003]
[{"$nulls":4},"20.59.59.900-106",778,"Упаковка",355]
[null,705,"20.60.14","Мононити синтетические; нити ленточные и аналогичные плоские нити из синтетических текстильных материалов. Пояснение по требуемой продукции: леска (для триммеров и мотокос в бобине)","20.60.14.110-001",616,"Бобина",595.33000000000004]
[null,706,"22.19.60","Предметы одежды и ее аксессуары из вулканизированной резины, кроме твердой резины (эбонита). Пояснение по требуемой продукции: перчатки резиновые общего назначения (кроме медицинских) (латексные)","22.19.60.114-001",715,"Пара (2 шт.)",62.73]
[{"$nulls":4},"22.19.60.114-003",715,"Пара (2 шт.)",65.3]
[{"$nulls":4},"22.19.60.114-004",715,"Пара (2 шт.)",74.88]
[{"$nulls":4},"22.19.60.114-005",715,"Пара (2 шт.)",73.53]
[{"$nulls":4},"22.19.60.114-006",715,"Пара (2 шт.)",86.77]
[{"$nulls":4},"22.19.60.114-007",715,"Пара (2 шт.)",75.89]
[{"$nulls":4},"22.19.60.114-008",715,"Пара (2 шт.)",69.61]
[{"$nulls":4},"22.19.60.114-009",715,"Пара (2 шт.)",70.989999999999995]
[null,707,"22.19.60","Предметы одежды и ее аксессуары из вулканизированной резины, кроме твердой резины (эбонита). Пояснение по требуемой продукции: перчатки резиновые общего назначения (кроме медицинских)  (виниловые)","22.19.60.114-002",715,"Пара (2 шт.)",6.14]
[{"$nulls":4},"22.19.60.114-010",715,"Пара (2 шт.)",6.48]
[{"$nulls":4},"22.19.60.114-011",715,"Пара (2 шт.)",7.75]
[null,708,"22.19.60","Предметы одежды и ее аксессуары из вулканизированной резины, кроме твердой резины (эбонита). Пояснение по требуемой продукции: перчатки резиновые общего назначения (кроме медицинских) (полиэтиленовые)","22.19.60.119-020",715,"Пара (2 шт.)",0.98]
[{"$nulls":4},"22.19.60.119-021",715,"Пара (2 шт.)",1.1499999999999999]
[null,709,"22.19.72","Покрытия и коврики напольные из вулканизированной резины, кроме пористой. Пояснение по требуемой продукции: коврик придверный (резиновый грязесборный)","22.19.72.000-009",796,"Штука",395.25]
[null,710,"22.19.72","Покрытия и коврики напольные из вулканизированной резины, кроме пористой. Пояснение по требуемой продукции: коврик придверный (ячеистый резиновый)","22.19.72.000-005",796,"Штука",3237.67]
[{"$nulls":4},"22.19.72.000-006",796,"Штука",893.5]
[null,711,"22.19.73","Изделия из вулканизированной резины прочие, не включенные в другие группировки; твердая резина во всех формах и изделия из нее; напольные покрытия и коврики из вулканизированной пористой резины. Пояснение по требуемой продукции: вантуз","22.19.73.119-002",796,"Штука",122.08]
[null,712,"22.21.42","Плиты, листы, пленка и полосы (ленты) прочие пластмассовые непористые. Пояснение по требуемой продукции: пленка пищевая","22.21.42.129-001",736,"Рулон",80.5]
[{"$nulls":4},"22.21.42.129-002",736,"Рулон",499]
[null,713,"22.22.11","Мешки и сумки, включая конические, из полимеров этилена прочие. Пояснение по требуемой продукции: мешок полимерный для мусора","22.22.11.190-003",736,"Рулон",54.23]
[{"$nulls":4},"22.22.11.190-004",736,"Рулон",64.16]
[{"$nulls":4},"22.22.11.190-005",736,"Рулон",279.26]
[{"$nulls":4},"22.22.11.190-006",736,"Рулон",587.4]
[{"$nulls":4},"22.22.11.190-007",736,"Рулон",66.819999999999993]
[{"$nulls":4},"22.22.11.190-008",736,"Рулон",210.18]
[{"$nulls":4},"22.22.11.190-009",736,"Рулон",325.10000000000002]
[{"$nulls":4},"22.22.11.190-010",736,"Рулон",161.65]
[{"$nulls":4},"22.22.11.190-011",736,"Рулон",504.79]
[{"$nulls":4},"22.22.11.190-012",736,"Рулон",63.57]
[{"$nulls":4},"22.22.11.190-013",736,"Рулон",148]
[{"$nulls":4},"22.22.11.190-023",778,"Упаковка",500.13]
[null,714,"22.22.11","Мешки и сумки, включая конические, из полимеров этилена прочие. Пояснение по требуемой продукции: пакет фасовочный пищевой","22.22.11.190-014",796,"Штука",4]
[{"$nulls":4},"22.22.11.190-015",796,"Штука",3.61]
[{"$nulls":4},"22.22.11.190-016",796,"Штука",7.21]
[null,715,"22.22.11","Мешки и сумки, включая конические, из полимеров этилена прочие. Пояснение по требуемой продукции: мешок полимерный полипропиленовый","22.22.11.190-017",796,"Штука",15.4]
[{"$nulls":4},"22.22.11.190-018",796,"Штука",19.89]
[null,716,"22.29.10","Одежда и ее аксессуары, включая пластмассовые перчатки. Пояснение по требуемой продукции: фартук одноразовый","22.29.10.110-001",796,"Штука",4.51]
[null,717,"22.29.23","Посуда столовая и кухонная, прочие предметы домашнего обихода и предметы туалета пластмассовые. Пояснение по требуемой продукции: бак","22.29.23.120-024",796,"Штука",1719.1]
[{"$nulls":4},"22.29.23.120-040",796,"Штука",1206.5]
[null,718,"22.29.23","Посуда столовая и кухонная, прочие предметы домашнего обихода и предметы туалета пластмассовые. Пояснение по требуемой продукции: штора для ванной","22.29.23.120-031",796,"Штука",497.4]
[null,719,"22.29.23","Посуда столовая и кухонная, прочие предметы домашнего обихода и предметы туалета пластмассовые. Пояснение по требуемой продукции: ведро пластмассовое","22.29.23.120-002",796,"Штука",218.93]
[{"$nulls":4},"22.29.23.120-023",796,"Штука",138.5]
[{"$nulls":4},"22.29.23.120-033",796,"Штука",270.20999999999998]
[{"$nulls":4},"22.29.23.120-034",796,"Штука",179.5]
[{"$nulls":4},"22.29.23.120-035",796,"Штука",395.67]
[null,720,"22.29.23","Посуда столовая и кухонная, прочие предметы домашнего обихода и предметы туалета пластмассовые. Пояснение по требуемой продукции: горшок для цветов","22.29.23.120-004",796,"Штука",170.32]
[null,721,"22.29.23","Посуда столовая и кухонная, прочие предметы домашнего обихода и предметы туалета пластмассовые. Пояснение по требуемой продукции: горшок детский (пластмассовый)","22.29.23.120-007",796,"Штука",242.24]
[{"$nulls":4},"22.29.23.120-008",796,"Штука",196.15]
[null,722,"22.29.23","Посуда столовая и кухонная, прочие предметы домашнего обихода и предметы туалета пластмассовые. Пояснение по требуемой продукции: губка для посуды (из поролона)","22.29.23.120-001",796,"Штука",6.24]
[null,723,"22.29.23","Посуда столовая и кухонная, прочие предметы домашнего обихода и предметы туалета пластмассовые. Пояснение по требуемой продукции: держатель для туалетной бумаги","22.29.23.120-006",796,"Штука",82.55]
[null,724,"22.29.23","Посуда столовая и кухонная, прочие предметы домашнего обихода и предметы туалета пластмассовые. Пояснение по требуемой продукции: диспенсер для полотенец  (листовых, пластмассовые)","22.29.23.130-007",796,"Штука",1638.17]
[{"$nulls":4},"22.29.23.130-008",796,"Штука",1337.17]
[{"$nulls":4},"22.29.23.130-009",796,"Штука",2005.56]
[{"$nulls":4},"22.29.23.130-010",796,"Штука",2192.87]
[null,725,"22.29.23","Посуда столовая и кухонная, прочие предметы домашнего обихода и предметы туалета пластмассовые. Пояснение по требуемой продукции: диспенсер для полотенец (рулонных, пластмассовые)","22.29.23.130-011",796,"Штука",2923.86]
[{"$nulls":4},"22.29.23.130-012",796,"Штука",8826.15]
[{"$nulls":4},"22.29.23.130-013",796,"Штука",13380]
[null,726,"22.29.23","Посуда столовая и кухонная, прочие предметы домашнего обихода и предметы туалета пластмассовые. Пояснение по требуемой продукции: дозатор для жидких дезинфицирующих средств бытовой","22.29.23.130-005",796,"Штука",3755.81]
[{"$nulls":4},"22.29.23.130-006",796,"Штука",1230.83]
[null,727,"22.29.23","Посуда столовая и кухонная, прочие предметы домашнего обихода и предметы туалета пластмассовые. Пояснение по требуемой продукции: корзина пластмассовая","22.29.23.120-003",796,"Штука",158.15]
[{"$nulls":4},"22.29.23.120-042",796,"Штука",314.67]
[{"$nulls":4},"22.29.23.120-044",796,"Штука",1096.43]
[null,728,"22.29.23","Посуда столовая и кухонная, прочие предметы домашнего обихода и предметы туалета пластмассовые. Пояснение по требуемой продукции: крючок бытовой (пластмассовый в упаковке)","22.29.23.120-021",778,"Упаковка",165]
[{"$nulls":4},"22.29.23.120-022",778,"Упаковка",319.57]
[null,729,"22.29.23","Посуда столовая и кухонная, прочие предметы домашнего обихода и предметы туалета пластмассовые. Пояснение по требуемой продукции: совок (пластмассовый)","22.29.23.120-005",796,"Штука",106.93]
[{"$nulls":4},"22.29.23.120-030",796,"Штука",208.18]
[null,730,"22.29.23","Посуда столовая и кухонная, прочие предметы домашнего обихода и предметы туалета пластмассовые. Пояснение по требуемой продукции: таз (пластмассовый)","22.29.23.120-011",796,"Штука",193.92]
[{"$nulls":4},"22.29.23.120-012",796,"Штука",204.59]
[{"$nulls":4},"22.29.23.120-013",796,"Штука",379]
[{"$nulls":4},"22.29.23.120-014",796,"Штука",326.26]
[{"$nulls":4},"22.29.23.120-015",796,"Штука",377.42]
[{"$nulls":4},"22.29.23.120-016",796,"Штука",624.01]
[null,731,"22.29.23","Посуда столовая и кухонная, прочие предметы домашнего обихода и предметы туалета пластмассовые. Пояснение по требуемой продукции: дозатор жидких средств бытовой (для мыла пластмассовый) ","22.29.23.130-001",796,"Штука",805.05]
[{"$nulls":4},"22.29.23.130-002",796,"Штука",680.75]
[null,732,"22.29.23","Посуда столовая и кухонная, прочие предметы домашнего обихода и предметы туалета пластмассовые. Пояснение по требуемой продукции: диспенсер гигиенических средств (для туалетной бумаги пластмассовый) ","22.29.23.130-003",796,"Штука",1333.29]
[{"$nulls":4},"22.29.23.130-004",796,"Штука",2738.31]
[null,733,"22.29.23","Посуда столовая и кухонная, прочие предметы домашнего обихода и предметы туалета пластмассовые. Пояснение по требуемой продукции: вешалка-плечики гардеробная","22.29.23.120-025",796,"Штука",27.84]
[{"$nulls":4},"22.29.23.120-026",796,"Штука",84.85]
[null,734,"22.29.23","Посуда столовая и кухонная, прочие предметы домашнего обихода и предметы туалета пластмассовые. Пояснение по требуемой продукции: мыльница","22.29.23.120-027",796,"Штука",25.29]
[{"$nulls":4},"22.29.23.120-028",796,"Штука",39.619999999999997]
[null,735,"22.29.23","Посуда столовая и кухонная, прочие предметы домашнего обихода и предметы туалета пластмассовые. Пояснение по требуемой продукции: держатель для одноразовых стаканов","22.29.23.120-029",796,"Штука",924.38]
[null,736,"22.29.23","Посуда столовая и кухонная, прочие предметы домашнего обихода и предметы туалета пластмассовые. Пояснение по требуемой продукции: ведро мусорное","22.29.23.120-041",796,"Штука",768.97]
[null,737,"25.73.10","Инструмент ручной, используемый в сельском хозяйстве, садоводстве или лесном хозяйстве. Пояснение по требуемой продукции: грабли","25.73.10.000-001",796,"Штука",370.37]
[{"$nulls":4},"25.73.10.000-002",796,"Штука",229.28]
[{"$nulls":4},"25.73.10.000-003",796,"Штука",337.51]
[{"$nulls":4},"25.73.10.000-004",796,"Штука",199.9]
[{"$nulls":4},"25.73.10.000-008",796,"Штука",861.67]
[{"$nulls":4},"25.73.10.000-009",796,"Штука",566]
[null,738,"25.73.10","Инструмент ручной, используемый в сельском хозяйстве, садоводстве или лесном хозяйстве. Пояснение по требуемой продукции: ножницы садовые","25.73.10.000-006",796,"Штука",2629.56]
[null,739,"25.73.10","Инструмент ручной, используемый в сельском хозяйстве, садоводстве или лесном хозяйстве. Пояснение по требуемой продукции: сучкорез садовый","25.73.10.000-005",796,"Штука",776.54]
[{"$nulls":4},"25.73.10.000-014",796,"Штука",3299]
[null,740,"25.73.60","Инструмент прочий. Пояснение по требуемой продукции: ледоруб-топор","25.73.60.190-001",796,"Штука",394.9]
[{"$nulls":4},"25.73.60.190-023",796,"Штука",274.85000000000002]
[null,741,"25.99.12","Изделия столовые, кухонные и бытовые и их части из черных металлов, меди или алюминия. Пояснение по требуемой продукции: ведро мусорное (с педалью, металлическое)","25.99.12.112-027",796,"Штука",2087.38]
[{"$nulls":4},"25.99.12.112-028",796,"Штука",3291.87]
[{"$nulls":4},"25.99.12.112-082",796,"Штука",2383.63]
[null,742,"25.99.12","Изделия столовые, кухонные и бытовые и их части из черных металлов, меди или алюминия. Пояснение по требуемой продукции: изделия бытовые из нержавеющей стали (губка из нержавеющей стали для посуды)","25.99.12.112-001",796,"Штука",53.09]
[null,743,"25.99.12","Изделия столовые, кухонные и бытовые и их части из черных металлов, меди или алюминия. Пояснение по требуемой продукции: дозатор жидких средств бытовой (для мыла металлический) ","25.99.12.112-002",796,"Штука",1169.32]
[{"$nulls":4},"25.99.12.112-107",796,"Штука",1606.79]
[null,744,"25.99.12","Изделия столовые, кухонные и бытовые и их части из черных металлов, меди или алюминия. Пояснение по требуемой продукции: диспенсер гигиенических средств (для бумажных полотенец из нержавеющей стали)","25.99.12.112-006",796,"Штука",3266.32]
[{"$nulls":4},"25.99.12.112-007",796,"Штука",3149.72]
[{"$nulls":4},"25.99.12.112-008",796,"Штука",5983.5]
[null,745,"25.99.12","Изделия столовые, кухонные и бытовые и их части из черных металлов, меди или алюминия. Пояснение по требуемой продукции: диспенсер гигиенических средств (для туалетной бумаги из нержавеющей стали)","25.99.12.112-005",796,"Штука",3413.33]
[{"$nulls":4},"25.99.12.112-106",796,"Штука",2691]
[null,746,"25.99.12","Изделия столовые, кухонные и бытовые и их части из черных металлов, меди или алюминия. Пояснение по требуемой продукции:  диспенсер гигиенических средств (для одноразовых гигиенических сидений из нержавеющей стали)","25.99.12.112-176",796,"Штука",2724.93]
[null,747,"25.99.12","Изделия столовые, кухонные и бытовые и их части из черных металлов, меди или алюминия. Пояснение по требуемой продукции: изделия бытовые из нержавеющей стали (совок из нержавеющей стали)","25.99.12.112-065",796,"Штука",148.6]
[{"$nulls":4},"25.99.12.112-177",796,"Штука",364.5]
[null,748,"25.99.12","Изделия столовые, кухонные и бытовые и их части из черных металлов, меди или алюминия. Пояснение по требуемой продукции: изделия бытовые из нержавеющей стали (ведро из нержавеющей стали)","25.99.12.112-180",796,"Штука",304.17]
[{"$nulls":4},"25.99.12.112-181",796,"Штука",1396.75]
[null,749,"25.99.12","Изделия столовые, кухонные и бытовые и их части из черных металлов, меди или алюминия. Пояснение по требуемой продукции: изделия бытовые из нержавеющей стали (держатель для бумажных полотенец)","25.99.12.112-172",796,"Штука",276.33]
[null,750,"25.99.12","Изделия столовые, кухонные и бытовые и их части из черных металлов, меди или алюминия. Пояснение по требуемой продукции: горшок детский (металлический эмалированный)","25.99.12.119-012",796,"Штука",868.75]
[null,751,"25.99.29","Изделия из недрагоценных металлов прочие, не включенные в другие группировки. Пояснение по требуемой продукции: лопата штыковая ","25.99.29.129-002",796,"Штука",613.19000000000005]
[{"$nulls":4},"25.99.29.129-003",796,"Штука",342.4]
[{"$nulls":4},"25.99.29.129-007",796,"Штука",1256.8399999999999]
[null,752,"25.99.29","Изделия из недрагоценных металлов прочие, не включенные в другие группировки. Пояснение по требуемой продукции: лопата совковая","25.99.29.129-014",796,"Штука",514.71]
[{"$nulls":4},"25.99.29.129-015",796,"Штука",321.12]
[null,753,"25.99.29","Изделия из недрагоценных металлов прочие, не включенные в другие группировки. Пояснение по требуемой продукции: лопата для уборки снега","25.99.29.129-001",796,"Штука",786.8]
[{"$nulls":4},"25.99.29.129-008",796,"Штука",1134.23]
[{"$nulls":4},"25.99.29.129-009",796,"Штука",2970.3]
[null,754,"25.99.29","Изделия прочие из недрагоценных металлов, не включенные в другие группировки. Пояснение по требуемой продукции: сушилка для белья","25.99.29.190-016",796,"Штука",1794.38]
[null,755,"27.40.22","Светильники электрические настольные, прикроватные или напольные. Пояснение по требуемой продукции: светильники настольные","27.40.22.130-002",796,"Штука",1677.6]
[{"$nulls":4},"27.40.22.130-003",796,"Штука",2372.29]
[{"$nulls":4},"27.40.22.130-004",796,"Штука",2304.84]
[null,756,"27.51.23","Приборы электротермические для укладки волос или для сушки рук; электрические утюги. Пояснение по требуемой продукции: электрическая сушилка для рук","27.51.23.120-001",796,"Штука",31968.38]
[{"$nulls":4},"27.51.23.120-002",796,"Штука",12224.95]
[null,757,"28.29.12","Оборудование и установки для фильтрования или очистки жидкостей. Пояснение по требуемой продукции: фильтр-кувшин","28.29.12.134-002",796,"Штука",524.38]
[null,758,"28.29.82","Части центрифуг; части машин и аппаратов для фильтрования или очистки жидкостей или газов. Пояснение по требуемой продукции: картридж для фильтров воды","28.29.82.120-001",796,"Штука",382.55]
[null,759,"31.09.11","Мебель металлическая, не включенная в другие группировки. Пояснение по требуемой продукции: доска гладильная","31.09.11.190-032",796,"Штука",2595.13]
[null,760,"32.91.11","Метлы и щетки для домашней уборки. Пояснение по требуемой продукции: щетка для уборки (сметка)","32.91.11.000-015",796,"Штука",109.7]
[null,761,"32.91.11","Метлы и щетки для домашней уборки. Пояснение по требуемой продукции: щетка для уборки (для мытья посуды)","32.91.11.000-019",796,"Штука",109.44]
[{"$nulls":4},"32.91.11.000-020",796,"Штука",90.5]
[null,762,"32.91.11","Метлы и щетки для домашней уборки. Пояснение по требуемой продукции: держатель насадок для МОП","32.91.11.000-003",796,"Штука",786.33]
[{"$nulls":4},"32.91.11.000-029",796,"Штука",547]
[{"$nulls":4},"32.91.11.000-030",796,"Штука",368.21]
[{"$nulls":4},"32.91.11.000-031",796,"Штука",593]
[null,763,"32.91.11","Метлы и щетки для домашней уборки. Пояснение по требуемой продукции: комплект для уборки (набор для уборки совок и щетка)","32.91.11.000-005",839,"Комплект",3194.5]
[{"$nulls":4},"32.91.11.000-006",839,"Комплект",1098.07]
[{"$nulls":4},"32.91.11.000-007",839,"Комплект",2341.15]
[{"$nulls":4},"32.91.11.000-008",839,"Комплект",465.01]
[{"$nulls":4},"32.91.11.000-012",839,"Комплект",279.33]
[null,764,"32.91.11","Метлы и щетки для домашней уборки. Пояснение по требуемой продукции: метла для уборки (полипропиленовая метла с деревянной ручкой)","32.91.11.000-004",796,"Штука",290.89]
[null,765,"32.91.11","Метлы и щетки для домашней уборки. Пояснение по требуемой продукции: ручка для МОП","32.91.11.000-002",796,"Штука",211.68]
[null,766,"32.91.11","Метлы и щетки для домашней уборки. Пояснение по требуемой продукции: щетка для уборки (для швабры)","32.91.11.000-001",796,"Штука",176.98]
[{"$nulls":4},"32.91.11.000-009",796,"Штука",139.75]
[{"$nulls":4},"32.91.11.000-025",796,"Штука",120.18]
[null,767,"32.91.11","Метлы и щетки для домашней уборки. Пояснение по требуемой продукции: метла для уборки (веник хозяйственный)","32.91.11.000-010",796,"Штука",206.82]
[null,768,"32.91.11","Метлы и щетки для домашней уборки. Пояснение по требуемой продукции: щетка для уборки (набор для уборки ручка и щетка)","32.91.11.000-021",796,"Штука",245.48]
[null,769,"32.91.11","Метлы и щетки для домашней уборки. Пояснение по требуемой продукции: метла для уборки (полипропиленовая с металлическим черенком)","32.91.11.000-016",796,"Штука",949.8]
[null,770,"32.91.11","Метлы и щетки для домашней уборки. Пояснение по требуемой продукции: метла для уборки (натуральная с черенком)","32.91.11.000-017",796,"Штука",362.65]
[null,771,"32.91.11","Метлы и щетки для домашней уборки. Пояснение по требуемой продукции: комплект для уборки (набор для уборки держатель насадки МОП и рукоятка)","32.91.11.000-014",839,"Комплект",1473.94]
[{"$nulls":4},"32.91.11.000-023",839,"Комплект",1976.67]
[{"$nulls":4},"32.91.11.000-026",839,"Комплект",758.45]
[null,772,"32.91.11","Метлы и щетки для домашней уборки. Пояснение по требуемой продукции: комплект для уборки (с насадкой валик ПВХ с механизмом отжима)","32.91.11.000-024",839,"Комплект",787.96]
[null,773,"32.91.11","Метлы и щетки для домашней уборки. Пояснение по требуемой продукции: рукоятка (черенок из металлопластика)","32.91.11.000-011",796,"Штука",145.94999999999999]
[{"$nulls":4},"32.91.11.000-022",796,"Штука",660.33]
[null,774,"32.91.11","Метлы и щетки для домашней уборки. Пояснение по требуемой продукции: метла для уборки (натуральная без черенка)","32.91.11.000-018",796,"Штука",39.17]
[null,775,"32.91.11","Метлы и щетки для домашней уборки. Пояснение по требуемой продукции: щетка для мытья окон","32.91.11.000-027",796,"Штука",665.17]
[{"$nulls":4},"32.91.11.000-028",796,"Штука",220.23]
[null,776,"32.91.12","Зубные щетки, щетки для волос и прочие туалетные щетки для ухода за внешностью; художественные кисти, кисточки для письма, косметические кисточки. Пояснение по требуемой продукции: мочалка для тела","32.91.12.130-001",796,"Штука",61]
[{"$nulls":4},"32.91.12.130-002",796,"Штука",128.12]
[null,777,"32.91.12","Зубные щетки, щетки для волос и прочие туалетные щетки для ухода за внешностью; художественные кисти, кисточки для письма, косметические кисточки. Пояснение по требуемой продукции: зубная щетка","32.91.12.110-001",796,"Штука",48.23]
[{"$nulls":4},"32.91.12.110-002",796,"Штука",45.67]
[null,778,"32.91.19","Щетки прочие, не включенные в другие группировки. Пояснение по требуемой продукции: ерш","32.91.19.130-001",796,"Штука",134.25]
[{"$nulls":4},"32.91.19.130-002",796,"Штука",455.75]
[null,779,"32.99.52","Расчески, гребни для волос и аналогичные изделия; шпильки для волос; зажимы для завивки, бигуди; пульверизаторы для духов и их насадки и головки. Пояснение по требуемой продукции: расческа","32.99.52.110-001",796,"Штука",10.74]
[null,"2.7. Перечень товарных позиций части «Средства индивидуальной защиты»"]
[{"$nulls":4},"В соответствии с кодом конечного каталожного наименования (ККН)",null,null,"Предельная цена (руб. с НДС)"]
[null,780,"14.12.30","Спецодежда прочая. Пояснение по требуемой продукции: маска гигиеническая, многоразовая","14.12.30.190-014",796,"Штука",65.67]
[null,781,"32.99.11","Уборы головные защитные и средства защиты прочие. Пояснение по требуемой продукции: респиратор","32.99.11.120-004",796,"Штука",52.18]
[{"$nulls":4},"32.99.11.120-001",796,"Штука",516.05999999999995]
[{"$nulls":4},"32.99.11.120-002",796,"Штука",522.82000000000005]
[{"$nulls":4},"32.99.11.120-003",796,"Штука",1224.33]
[null,782,"32.99.11","Уборы головные защитные и средства защиты прочие. Пояснение по требуемой продукции: очки защитные","32.99.11.160-002",796,"Штука",157.97]
[{"$nulls":4},"32.99.11.160-006",796,"Штука",433.71]
[null,783,"32.99.11","Уборы головные защитные и средства защиты прочие. Пояснение по требуемой продукции: щиток лицевой защитный","32.99.11.160-005",796,"Штука",180.68]
[null,"2.8. Перечень работ по уборке внутриквартальных территорий "]
[null,784,"81.29.19","Ручная уборка в зимний период усовершенствованных покрытий: подметание свежевыпавшего снега толщиной слоя до 2 см, сгребание снега в валы или кучи","Единица измерения","055","Квадратный метр",1]
[{"$nulls":4},"Предельная цена за 1 кв. м",383,"Рубль","3,20"]
[null,785,"81.29.19","Ручная уборка в зимний период усовершенствованных покрытий: сдвигание свежевыпавшего снега толщиной слоя более 2 см движком в валы или кучи","Единица измерения","055","Квадратный метр","1"]
[{"$nulls":4},"Предельная цена за 1 кв. м",383,"Рубль","13,93"]
[null,786,"81.29.19","Ручная уборка в зимний период усовершенствованных покрытий: подметание территории в дни без снегопадов","Единица измерения","055","Квадратный метр","1"]
[{"$nulls":4},"Предельная цена за 1 кв. м",383,"Рубль","2,44"]
[null,787,"81.29.19","Ручная уборка в зимний период усовершенствованных покрытий: подборка после механизированной уборки (очистка участков территорий от снега и наледи при механизированной уборке: \n1) очистка вручную участков, не доступных для уборки машин; \n2) сдвигание снега и наледи на полосу механизированной уборки)","Единица измерения","055","Квадратный метр","1"]
[{"$nulls":4},"Предельная цена за 1 кв. м",383,"Рубль","15,89"]
[null,788,"81.29.19","Ручная уборка в зимний период усовершенствованных покрытий: очистка территорий с усовершенствованным покрытием от уплотненного снега и снежно-ледяных образований","Единица измерения","055","Квадратный метр","1"]
[{"$nulls":4},"Предельная цена за 1 кв. м",383,"Рубль","44,33"]
[null,789,"81.29.19","Ручная уборка в зимний период усовершенствованных покрытий: обработка территории противогололедными материалами","Единица измерения","055","Квадратный метр","1"]
[{"$nulls":4},"Предельная цена за 1 кв. м",383,"Рубль","60,38"]
[null,790,"81.29.19","Ручная уборка в зимний период неусовершенствованных покрытий: подметание свежевыпавшего снега толщиной слоя до 2 см, сгребание снега в валы или кучи","Единица измерения","055","Квадратный метр","1"]
[{"$nulls":4},"Предельная цена за 1 кв. м",383,"Рубль","3,32"]
[null,791,"81.29.19","Ручная уборка в зимний период неусовершенствованных покрытий: сдвигание свежевыпавшего снега толщиной слоя более 2 см движком в валы или кучи","Единица измерения","055","Квадратный метр","1"]
[{"$nulls":4},"Предельная цена за 1 кв. м",383,"Рубль","14,51"]
[null,792,"81.29.19","Ручная уборка в зимний период неусовершенствованных покрытий: подметание территории в дни без снегопадов","Единица измерения","055","Квадратный метр","1"]
[{"$nulls":4},"Предельная цена за 1 кв. м",383,"Рубль","2,75"]
[null,793,"81.29.19","Ручная уборка в зимний период неусовершенствованных покрытий: подборка после механизированной уборки (очистка участков территорий от снега и наледи при механизированной уборке: \n1) очистка вручную участков, не доступных для уборки машин;\n2) сдвигание снега и наледи на полосу механизированной уборки)","Единица измерения","055","Квадратный метр","1"]
[{"$nulls":4},"Предельная цена за 1 кв. м",383,"Рубль","16,09"]
[null,794,"81.29.19","Ручная уборка в зимний период неусовершенствованных покрытий: обработка территории противогололедными материалами","Единица измерения","055","Квадратный метр","1"]
[{"$nulls":4},"Предельная цена за 1 кв. м",383,"Рубль","45,73"]
[null,795,"81.29.19","Ручная уборка в зимний период газонов: уборка газонов от мусора","Единица измерения","055","Квадратный метр","1"]
[{"$nulls":4},"Предельная цена за 1 кв. м",383,"Рубль","1,74"]
[null,796,"81.29.19","Механизированная уборка в зимний период усовершенствованных покрытий: подметание свежевыпавшего снега толщиной слоя до 2 см ","Единица измерения","055","Квадратный метр","1"]
[{"$nulls":4},"Предельная цена за 1 кв. м",383,"Рубль","0,19"]
[null,797,"81.29.19","Механизированная уборка в зимний период усовершенствованных покрытий: уборка свежевыпавшего снега толщиной слоя свыше 2 см (сдвигание свежевыпавшего снега в валы или кучи с помощью плуга с одновременным подметанием щеткой)","Единица измерения","055","Квадратный метр","1"]
[{"$nulls":4},"Предельная цена за 1 кв. м",383,"Рубль","0,37"]
[null,798,"81.29.19","Механизированная уборка в зимний период усовершенствованных покрытий: очистка территорий с усовершенствованным покрытием от уплотненного снега и снежно-ледяных образований","Единица измерения","055","Квадратный метр","1"]
[{"$nulls":4},"Предельная цена за 1 кв. м",383,"Рубль","0,47"]
[null,799,"81.29.19","Механизированная уборка в зимний период усовершенствованных покрытий: подметание территории в дни без снегопада","Единица измерения","055","Квадратный метр","1"]
[{"$nulls":4},"Предельная цена за 1 кв. м",383,"Рубль","0,48"]
[null,800,"81.29.19","Механизированная уборка в зимний период усовершенствованных покрытий: обработка территории противогололедными материалами","Единица измерения","055","Квадратный метр","1"]
[{"$nulls":4},"Предельная цена за 1 кв. м",383,"Рубль","0,82"]
[null,801,"81.29.19","Механизированная уборка в зимний период неусовершенствованных покрытий: подметание свежевыпавшего снега толщиной слоя до 2 см","Единица измерения","055","Квадратный метр","1"]
[{"$nulls":4},"Предельная цена за 1 кв. м",383,"Рубль","0,24"]
[null,802,"81.29.19","Механизированная уборка в зимний период неусовершенствованных покрытий: уборка свежевыпавшего снега толщиной слоя свыше 2 см (сдвигание свежевыпавшего снега в валы или кучи с помощью плуга с одновременным подметанием щеткой)","Единица измерения","055","Квадратный метр","1"]
[{"$nulls":4},"Предельная цена за 1 кв. м",383,"Рубль","0,47"]
[null,803,"81.29.19","Механизированная уборка в зимний период неусовершенствованных покрытий: подметание территории в дни без снегопада","Единица измерения","055","Квадратный метр","1"]
[{"$nulls":4},"Предельная цена за 1 кв. м",383,"Рубль","0,64"]
[null,804,"81.29.19","Механизированная уборка в зимний период неусовершенствованных покрытий: обработка территории противогололедными материалами","Единица измерения","055","Квадратный метр","1"]
[{"$nulls":4},"Предельная цена за 1 кв. м",383,"Рубль","0,70"]
[null,805,"81.29.19","Прочие работы в зимний период: уборка лотковой зоны с очисткой верха бордюрного камня и усовершенствованного покрытия от него в сторону снежного вала на расстоянии не менее 0,5 м","Единица измерения","055","Квадратный метр","1"]
[{"$nulls":4},"Предельная цена за 1 кв. м",383,"Рубль","58,48"]
[null,806,"81.29.19","Прочие работы в зимний период: расчистка крышек люков и амбразур патрубков дождевой канализации от мусора, снега и льда","Единица измерения",796,"Штука","1"]
[{"$nulls":4},"Предельная цена за 1 штуку",383,"Рубль","139,66"]
[null,807,"81.29.19","Прочие работы в зимний период: раздвижение снежных валов в местах размещения амбразур для обеспечения постоянного отвода талых вод при наступлении оттепели","Единица измерения",876,"Условная единица","1"]
[{"$nulls":4},"Предельная цена за 1 куб.м",383,"Рубль","555,43"]
[null,808,"81.29.19","Прочие работы в зимний период: погрузка, вывоз и утилизация снега","Единица измерения",876,"Условная единица","1"]
[{"$nulls":4},"Предельная цена за 1 куб.м",383,"Рубль","526,16"]
[null,809,"81.29.19","Прочие работы в зимний период: очистка урн от мусора","Единица измерения",796,"Штука","1"]
[{"$nulls":4},"Предельная цена за 1 штуку",383,"Рубль","138,47"]
[null,810,"81.29.19","Прочие работы в зимний период: промывка урн","Единица измерения",796,"Штука","1"]
[{"$nulls":4},"Предельная цена за 1 штуку",383,"Рубль","218,32"]
[null,811,"81.29.19","Ручная уборка территорий в летний период усовершенствованных покрытий: подметание территории (подметание пыли и сора с поверхности покрытий, уборка и транспортировка мусора в установленное место)","Единица измерения","055","Квадратный метр","1"]
[{"$nulls":4},"Предельная цена за 1 кв. м",383,"Рубль","2,11"]
[null,812,"81.29.19","Ручная уборка территорий в летний период усовершенствованных покрытий: мойка территории","Единица измерения","055","Квадратный метр","1"]
[{"$nulls":4},"Предельная цена за 1 кв. м",383,"Рубль","8,57"]
[null,813,"81.29.19","Ручная уборка территорий в летний период усовершенствованных покрытий: поливка территории","Единица измерения","055","Квадратный метр","1"]
[{"$nulls":4},"Предельная цена за 1 кв. м",383,"Рубль","5,00"]
[null,814,"81.29.19","Ручная уборка территорий в летний период неусовершенствованных покрытий: подметание территории (подметание пыли и сора с поверхности покрытий, уборка и транспортировка мусора в установленное место)","Единица измерения","055","Квадратный метр","1"]
[{"$nulls":4},"Предельная цена за 1 кв. м",383,"Рубль","2,39"]
[null,815,"81.29.19","Ручная уборка территорий в летний период неусовершенствованных покрытий: мойка территории","Единица измерения","055","Квадратный метр","1"]
[{"$nulls":4},"Предельная цена за 1 кв. м",383,"Рубль","6,48"]
[null,816,"81.29.19","Ручная уборка территорий в летний период неусовершенствованных покрытий: поливка территории","Единица измерения","055","Квадратный метр","1"]
[{"$nulls":4},"Предельная цена за 1 кв. м",383,"Рубль","2,89"]
[null,817,"81.29.19","Ручная уборка территорий в летний период газонов: уборка газонов от мусора","Единица измерения","055","Квадратный метр","1"]
[{"$nulls":4},"Предельная цена за 1 кв. м",383,"Рубль","1,66"]
[null,818,"81.29.19","Ручная уборка территорий в летний период газонов: выкашивание газонов, уборка, погрузка и вывоз скошенной травы","Единица измерения","055","Квадратный метр","1"]
[{"$nulls":4},"Предельная цена за 1 кв. м",383,"Рубль","27,86"]
[null,819,"81.29.19","Ручная уборка территорий в летний период газонов: очистка газонов от опавших листьев (сгребание граблями листьев, сучьев и другого мусора, относка за пределы газона, транспортировка мусора в установленное место)","Единица измерения","055","Квадратный метр","1"]
[{"$nulls":4},"Предельная цена за 1 кв. м",383,"Рубль","25,21"]
[null,820,"81.29.19","Механизированная уборка территорий в летний период усовершенствованных покрытий: подметание территории (с одновременным увлажнением)","Единица измерения","055","Квадратный метр","1"]
[{"$nulls":4},"Предельная цена за 1 кв. м",383,"Рубль","0,32"]
[null,821,"81.29.19","Механизированная уборка территорий в летний период усовершенствованных покрытий: мойка территории","Единица измерения","055","Квадратный метр","1"]
[{"$nulls":4},"Предельная цена за 1 кв. м",383,"Рубль","1,08"]
[null,822,"81.29.19","Механизированная уборка территорий в летний период усовершенствованных покрытий: поливка территории","Единица измерения","055","Квадратный метр","1"]
[{"$nulls":4},"Предельная цена за 1 кв. м",383,"Рубль","0,36"]
[null,823,"81.29.19","Механизированная уборка территорий в летний период неусовершенствованных покрытий: подметание территории (с одновременным увлажнением)","Единица измерения","055","Квадратный метр","1"]
[{"$nulls":4},"Предельная цена за 1 кв. м",383,"Рубль","0,40"]
[null,824,"81.29.19","Механизированная уборка территорий в летний период неусовершенствованных покрытий: мойка территории","Единица измерения","055","Квадратный метр","1"]
[{"$nulls":4},"Предельная цена за 1 кв. м",383,"Рубль","1,00"]
[null,825,"81.29.19","Механизированная уборка территорий в летний период неусовершенствованных покрытий: поливка территории","Единица измерения","055","Квадратный метр","1"]
[{"$nulls":4},"Предельная цена за 1 кв. м",383,"Рубль","0,64"]
[null,826,"81.29.19","Механизированная уборка в летний период газонов: выкашивание газонов, уборка, погрузка и вывоз скошенной травы","Единица измерения","055","Квадратный метр","1"]
[{"$nulls":4},"Предельная цена за 1 кв. м",383,"Рубль","22,68"]
[null,827,"81.29.19","Прочие работы в летний период: расчистка крышек люков и амбразур патрубков дождевой канализации от смета, листвы и мусора без сброса листьев и смета в колодцы ливневой канализации, другие водоприемные устройства, а также в реки, каналы и другие водоемы","Единица измерения",796,"Штука","1"]
[{"$nulls":4},"Предельная цена за 1 штуку",383,"Рубль","12,23"]
[null,828,"81.29.19","Прочие работы в летний период: прореживание и формовка кроны кустарников","Единица измерения",796,"Штука","1"]
[{"$nulls":4},"Предельная цена за 1 штуку",383,"Рубль","60,91"]
[null,829,"81.29.19","Прочие работы в летний период: очистка урн от мусора","Единица измерения",796,"Штука","1"]
[{"$nulls":4},"Предельная цена за 1 штуку",383,"Рубль","132,50"]
[null,830,"81.29.19","Прочие работы в летний период: промывка урн","Единица измерения",796,"Штука","1"]
[{"$nulls":4},"Предельная цена за 1 штуку",383,"Рубль","207,94"]
[null,831,"81.29.19","Уборка территорий контейнерных площадок, специальных площадок для складирования крупногабаритных отходов: ежедневная уборка территорий контейнерных площадок, специальных площадок для складирования крупногабаритных отходов, а также в случае загрязнения отходами из контейнеров прилегающей к ней территории","Единица измерения","055","Квадратный метр","1"]
[{"$nulls":4},"Предельная цена за 1 кв. м",383,"Рубль","72,90"]
[null,832,"81.29.19","Уборка территорий контейнерных площадок, специальных площадок для складирования крупногабаритных отходов: мойка и дезинфекция территорий контейнерных площадок, специальных площадок для складирования крупногабаритных отходов в летний период с 16 апреля по 15 октября по мере необходимости, но не реже одного раза в неделю","Единица измерения","055","Квадратный метр","1"]
[{"$nulls":4},"Предельная цена за 1 кв. м",383,"Рубль","70,69"]
[null,833,"81.29.19","Уборка территорий контейнерных площадок, специальных площадок для складирования крупногабаритных отходов: дезинфекция территорий контейнерных площадок, специальных площадок для складирования крупногабаритных отходов в зимний период с 16 октября по 15 апреля по мере необходимости","Единица измерения","055","Квадратный метр","1"]
[{"$nulls":4},"Предельная цена за 1 кв. м",383,"Рубль","24,06"]
[null,834,"81.29.19","Уборка территорий контейнерных площадок, специальных площадок для складирования крупногабаритных отходов: дератизация территорий контейнерных площадок, специальных площадок для складирования крупногабаритных отходов по мере необходимости, но не реже двух раз в год в весенний и осенний периоды","Единица измерения","055","Квадратный метр","1"]
[{"$nulls":4},"Предельная цена за 1 кв. м",383,"Рубль","8,62"]
[null,835,"81.29.19","Уборка территорий контейнерных площадок, специальных площадок для складирования крупногабаритных отходов: уборка мусора, просыпавшегося из контейнеров, кроме случаев просыпания мусора при погрузочно-разгрузочных работах в ходе вывоза отходов","Единица измерения","055","Квадратный метр","1"]
[{"$nulls":4},"Предельная цена за 1 кв. м",383,"Рубль","15,31"]
[null,"2.9. Перечень товарных позиций части «Здания социальной инфраструктуры»"]
[null,836,"41.20.20","Здания нежилые. Пояснение по требуемой продукции: отдельно стоящие нежилые здания с бассейном для размещения дошкольных образовательных организаций на 100 мест","Мощность",698,"Место",100]
[{"$nulls":4},"Конструктивные особенности","-","-","Возможные значения: кирпично-монолитное здание, панельное здание"]
[{"$nulls":4},"Предельная цена за место",383,"Рубль","Не более 3 948 430,76"]
[null,837,"41.20.20","Здания нежилые. Пояснение по требуемой продукции: отдельно стоящие нежилые здания с бассейном для размещения дошкольных образовательных организаций на 105 мест","Мощность",698,"Место",105,null,120]
[{"$nulls":4},"Конструктивные особенности","-","-","Возможные значения: кирпично-монолитное здание, панельное здание"]
[{"$nulls":4},"Предельная цена за место",383,"Рубль","Не более 3 890 561,52"]
[null,838,"41.20.20","Здания нежилые. Пояснение по требуемой продукции: отдельно стоящие нежилые здания с бассейном для размещения дошкольных образовательных организаций на 110 мест","Мощность",698,"Место",110,null,120]
[{"$nulls":4},"Конструктивные особенности","-","-","Возможные значения: кирпично-монолитное здание, панельное здание"]
[{"$nulls":4},"Предельная цена за место",383,"Рубль","Не более 3 832 478,40"]
[null,839,"41.20.20","Здания нежилые. Пояснение по требуемой продукции: отдельно стоящие нежилые здания с бассейном для размещения дошкольных образовательных организаций на 120 мест","Мощность",698,"Место",120,null,120]
[{"$nulls":4},"Конструктивные особенности","-","-","Возможные значения: кирпично-монолитное здание, панельное здание"]
[{"$nulls":4},"Предельная цена за место",383,"Рубль","Не более 3 769 067,03"]
[null,840,"41.20.20","Здания нежилые. Пояснение по требуемой продукции: отдельно стоящие нежилые здания для размещения дошкольных образовательных организаций на 125 мест","Мощность",698,"Место",125,null,120]
[{"$nulls":4},"Конструктивные особенности","-","-","Возможные значения: кирпично-монолитное здание, панельное здание"]
[{"$nulls":4},"Предельная цена за место",383,"Рубль","Не более 3 099 051,61"]
[null,"840-1","41.20.20","Здания нежилые. Пояснение по требуемой продукции: отдельно стоящие нежилые здания с бассейном для размещения дошкольных образовательных организаций на 130 мест","Мощность",698,"Место",130,null,120]
[{"$nulls":4},"Конструктивные особенности","-","-","Возможные значения: кирпично-монолитное здание, панельное здание"]
[{"$nulls":4},"Предельная цена за место",383,"Рубль","Не более 3 718 379,85"]
[null,841,"41.20.20","Здания нежилые. Пояснение по требуемой продукции: отдельно стоящие нежилые здания с бассейном для размещения дошкольных образовательных организаций на 140 мест","Мощность",698,"Место",140,null,120]
[{"$nulls":4},"Конструктивные особенности","-","-","Возможные значения: кирпично-монолитное здание, панельное здание"]
[{"$nulls":4},"Предельная цена за место",383,"Рубль","Не более 3 667 692,66"]
[null,842,"41.20.20","Здания нежилые. Пояснение по требуемой продукции: отдельно стоящие нежилые здания для размещения дошкольных образовательных организаций на 140 мест","Мощность",698,"Место",140,null,120]
[{"$nulls":4},"Конструктивные особенности","-","-","Возможные значения: кирпично-монолитное здание, панельное здание"]
[{"$nulls":4},"Предельная цена за место",383,"Рубль","Не более 3 055 665,82"]
[null,843,"41.20.20","Здания нежилые. Пояснение по требуемой продукции: отдельно стоящие нежилые здания с бассейном для размещения дошкольных образовательных организаций на 160 мест","Мощность",698,"Место",160,null,120]
[{"$nulls":4},"Конструктивные особенности","-","-","Возможные значения: кирпично-монолитное здание, панельное здание"]
[{"$nulls":4},"Предельная цена за место",383,"Рубль","Не более 3 451 906,07"]
[null,844,"41.20.20","Здания нежилые. Пояснение по требуемой продукции: отдельно стоящие нежилые здания для размещения дошкольных образовательных организаций на 160 мест","Мощность",698,"Место",160,null,120]
[{"$nulls":4},"Конструктивные особенности","-","-","Возможные значения: кирпично-монолитное здание, панельное здание"]
[{"$nulls":4},"Предельная цена за место",383,"Рубль","Не более 2 872 357,22"]
[null,845,"41.20.20","Здания нежилые. Пояснение по требуемой продукции: отдельно стоящие нежилые здания с бассейном для размещения дошкольных образовательных организаций на 170 мест","Мощность",698,"Место",170,null,120]
[{"$nulls":4},"Конструктивные особенности","-","-","Возможные значения: кирпично-монолитное здание, панельное здание"]
[{"$nulls":4},"Предельная цена за место",383,"Рубль","Не более 3 343 584,11"]
[null,846,"41.20.20","Здания нежилые. Пояснение по требуемой продукции: отдельно стоящие нежилые здания с бассейном для размещения дошкольных образовательных организаций на 180 мест","Мощность",698,"Место",180,null,120]
[{"$nulls":4},"Конструктивные особенности","-","-","Возможные значения: кирпично-монолитное здание, панельное здание"]
[{"$nulls":4},"Предельная цена за место",383,"Рубль","Не более 3 218 929,19"]
[null,847,"41.20.20","Здания нежилые. Пояснение по требуемой продукции: отдельно стоящие нежилые здания для размещения дошкольных образовательных организаций на 180 мест","Мощность",698,"Место",180,null,120]
[{"$nulls":4},"Конструктивные особенности","-","-","Возможные значения: кирпично-монолитное здание, панельное здание"]
[{"$nulls":4},"Предельная цена за место",383,"Рубль","Не более 2 676 191,28"]
[null,848,"41.20.20","Здания нежилые. Пояснение по требуемой продукции: отдельно стоящие нежилые здания с бассейном для размещения дошкольных образовательных организаций на 190 мест","Мощность",698,"Место",190,null,120]
[{"$nulls":4},"Конструктивные особенности","-","-","Возможные значения: кирпично-монолитное здание, панельное здание"]
[{"$nulls":4},"Предельная цена за место",383,"Рубль","Не более 3 126 310,27"]
[null,849,"41.20.20","Здания нежилые. Пояснение по требуемой продукции: отдельно стоящие нежилые здания для размещения дошкольных образовательных организаций на 190 мест","Мощность",698,"Место",190,null,120]
[{"$nulls":4},"Конструктивные особенности","-","-","Возможные значения: кирпично-монолитное здание, панельное здание"]
[{"$nulls":4},"Предельная цена за место",383,"Рубль","Не более 2 598 675,69"]
[null,850,"41.20.20","Здания нежилые. Пояснение по требуемой продукции: отдельно стоящие нежилые здания с бассейном для размещения дошкольных образовательных организаций на 200 мест","Мощность",698,"Место",200,null,120]
[{"$nulls":4},"Конструктивные особенности","-","-","Возможные значения: кирпично-монолитное здание, панельное здание"]
[{"$nulls":4},"Предельная цена за место",383,"Рубль","Не более 3 023 831,39"]
[null,851,"41.20.20","Здания нежилые. Пояснение по требуемой продукции: отдельно стоящие нежилые здания с бассейном для размещения дошкольных образовательных организаций на 220 мест","Мощность",698,"Место",220,null,120]
[{"$nulls":4},"Конструктивные особенности","-","-","Возможные значения: кирпично-монолитное здание, панельное здание"]
[{"$nulls":4},"Предельная цена за место",383,"Рубль","Не более 2 815 956,61"]
[null,852,"41.20.20","Здания нежилые. Пояснение по требуемой продукции: отдельно стоящие нежилые здания с бассейном для размещения дошкольных образовательных организаций на 240 мест","Мощность",698,"Место",240,null,120]
[{"$nulls":4},"Конструктивные особенности","-","-","Возможные значения: кирпично-монолитное здание, панельное здание"]
[{"$nulls":4},"Предельная цена за место",383,"Рубль","Не более 2 661 235,45"]
[null,853,"41.20.20","Здания нежилые. Пояснение по требуемой продукции: отдельно стоящие нежилые здания для размещения дошкольных образовательных организаций на 240 мест","Мощность",698,"Место",240,null,120]
[{"$nulls":4},"Конструктивные особенности","-","-","Возможные значения: кирпично-монолитное здание, панельное здание"]
[{"$nulls":4},"Предельная цена за место",383,"Рубль","Не более 2 213 762,51"]
[null,854,"41.20.20","Здания нежилые. Пояснение по требуемой продукции: отдельно стоящие нежилые здания с бассейном для размещения дошкольных образовательных организаций на 250 мест","Мощность",698,"Место",250,null,120]
[{"$nulls":4},"Конструктивные особенности","-","-","Возможные значения: кирпично-монолитное здание, панельное здание"]
[{"$nulls":4},"Предельная цена за место",383,"Рубль","Не более 2 567 926,60"]
[null,855,"41.20.20","Здания нежилые. Пояснение по требуемой продукции: отдельно стоящие нежилые здания для размещения дошкольных образовательных организаций на 250 мест","Мощность",698,"Место",250,null,120]
[{"$nulls":4},"Конструктивные особенности","-","-","Возможные значения: кирпично-монолитное здание, панельное здание"]
[{"$nulls":4},"Предельная цена за место",383,"Рубль","Не более 2 133 139,66"]
[null,856,"41.20.20","Здания нежилые. Пояснение по требуемой продукции: отдельно стоящие нежилые здания с бассейном для размещения дошкольных образовательных организаций на 280 мест","Мощность",698,"Место",280,null,120]
[{"$nulls":4},"Конструктивные особенности","-","-","Возможные значения: кирпично-монолитное здание, панельное здание"]
[{"$nulls":4},"Предельная цена за место",383,"Рубль","Не более 2 549 352,85"]
[null,857,"41.20.20","Здания нежилые. Пояснение по требуемой продукции: отдельно стоящие нежилые здания с бассейном для размещения дошкольных образовательных организаций на 295 мест","Мощность",698,"Место",295,null,120]
[{"$nulls":4},"Конструктивные особенности","-","-","Возможные значения: кирпично-монолитное здание, панельное здание"]
[{"$nulls":4},"Предельная цена за место",383,"Рубль","Не более 2 540 065,98"]
[null,858,"41.20.20","Здания нежилые. Пояснение по требуемой продукции: отдельно стоящие нежилые здания с бассейном для размещения дошкольных образовательных организаций на 300 мест","Мощность",698,"Место",300,null,120]
[{"$nulls":4},"Конструктивные особенности","-","-","Возможные значения: кирпично-монолитное здание, панельное здание"]
[{"$nulls":4},"Предельная цена за место",383,"Рубль","Не более 2 503 339,60"]
[null,859,"41.20.20","Здания нежилые. Пояснение по требуемой продукции: отдельно стоящие нежилые здания с бассейном для размещения дошкольных образовательных организаций на 320 мест","Мощность",698,"Место",320,null,120]
[{"$nulls":4},"Конструктивные особенности","-","-","Возможные значения: кирпично-монолитное здание, панельное здание"]
[{"$nulls":4},"Предельная цена за место",383,"Рубль","Не более 2 356 337,99"]
[null,860,"41.20.20","Здания нежилые. Пояснение по требуемой продукции: отдельно стоящие нежилые здания с бассейном для размещения дошкольных образовательных организаций на 415 мест","Мощность",698,"Место",415,null,120]
[{"$nulls":4},"Конструктивные особенности","-","-","Возможные значения: кирпично-монолитное здание, панельное здание"]
[{"$nulls":4},"Предельная цена за место",383,"Рубль","Не более 2 085 746,14"]
[null,"860-1","41.20.20","Здания нежилые. Пояснение по требуемой продукции: отдельно стоящие нежилые здания с бассейном для размещения общеобразовательных организаций на 440 мест","Мощность",698,"Место",440,null,120]
[{"$nulls":4},"Конструктивные особенности","-","-","Возможные значения: кирпично-монолитное здание, панельное здание"]
[{"$nulls":4},"Предельная цена за место",383,"Рубль","Не более 2 014 537,76"]
[null,"860-2","41.20.20","Здания нежилые. Пояснение по требуемой продукции: отдельно стоящие нежилые здания с бассейном для размещения общеобразовательных организаций на 375 мест","Мощность",698,"Место",375,null,120]
[{"$nulls":4},"Конструктивные особенности","-","-","Возможные значения: кирпично-монолитное здание, панельное здание"]
[{"$nulls":4},"Предельная цена за место",383,"Рубль","Не более 3 372 747,22"]
[null,861,"41.20.20","Здания нежилые. Пояснение по требуемой продукции: отдельно стоящие нежилые здания с бассейнами для размещения общеобразовательных организаций на 450 мест","Мощность",698,"Место",450,null,120]
[{"$nulls":4},"Наличие бассейна",796,"Штука","Не менее двух"]
[{"$nulls":4},"Конструктивные особенности","-","-","Возможные значения: кирпично-монолитное здание, панельное здание"]
[{"$nulls":4},"Предельная цена за место",383,"Рубль","Не более 3 378 475,57"]
[null,862,"41.20.20","Здания нежилые. Пояснение по требуемой продукции: отдельно стоящие нежилые здания с бассейнами для размещения общеобразовательных организаций на 550 мест","Мощность",698,"Место",550,null,120]
[{"$nulls":4},"Наличие бассейна",796,"Штука","Не менее двух"]
[{"$nulls":4},"Конструктивные особенности","-","-","Возможные значения: кирпично-монолитное здание, панельное здание"]
[{"$nulls":4},"Предельная цена за место",383,"Рубль","Не более 3 099 071,05"]
[null,863,"41.20.20","Здания нежилые. Пояснение по требуемой продукции: отдельно стоящие нежилые здания с бассейнами для размещения общеобразовательных организаций на 685 мест","Мощность",698,"Место",685,null,120]
[{"$nulls":4},"Наличие бассейна",796,"Штука","Не менее двух"]
[{"$nulls":4},"Конструктивные особенности","-","-","Возможные значения: кирпично-монолитное здание, панельное здание"]
[{"$nulls":4},"Предельная цена за место",383,"Рубль","Не более 2 721 874,94"]
[null,864,"41.20.20","Здания нежилые. Пояснение по требуемой продукции: отдельно стоящие нежилые здания с бассейнами для размещения общеобразовательных организаций на 700 мест","Мощность",698,"Место",700,null,120]
[{"$nulls":4},"Наличие бассейна",796,"Штука","Не менее двух"]
[{"$nulls":4},"Конструктивные особенности","-","-","Возможные значения: кирпично-монолитное здание, панельное здание"]
[{"$nulls":4},"Предельная цена за место",383,"Рубль","Не более 2 679 964,26"]
[null,865,"41.20.20","Здания нежилые. Пояснение по требуемой продукции: отдельно стоящие нежилые здания с бассейнами для размещения общеобразовательных организаций на 825 мест","Мощность",698,"Место",825,null,120]
[{"$nulls":4},"Наличие бассейна",796,"Штука","Не менее двух"]
[{"$nulls":4},"Конструктивные особенности","-","-","Возможные значения: кирпично-монолитное здание, панельное здание"]
[{"$nulls":4},"Предельная цена за место",383,"Рубль","Не более 2 330 708,61"]
[null,866,"41.20.20","Здания нежилые. Пояснение по требуемой продукции: отдельно стоящие нежилые здания для размещения общеобразовательных организаций на 825 мест","Мощность",698,"Место",825,null,120]
[{"$nulls":4},"Конструктивные особенности","-","-","Возможные значения: кирпично-монолитное здание, панельное здание"]
[{"$nulls":4},"Предельная цена за место",383,"Рубль","Не более 1 931 423,24"]
[null,867,"41.20.20","Здания нежилые. Пояснение по требуемой продукции: отдельно стоящие нежилые здания с бассейнами для размещения общеобразовательных организаций на 975 мест","Мощность",698,"Место",975,null,120]
[{"$nulls":4},"Наличие бассейна",796,"Штука","Не менее двух"]
[{"$nulls":4},"Конструктивные особенности","-","-","Возможные значения: кирпично-монолитное здание, панельное здание"]
[{"$nulls":4},"Предельная цена за место",383,"Рубль","Не более 2 280 059,39"]
[null,868,"41.20.20","Здания нежилые. Пояснение по требуемой продукции: отдельно стоящие нежилые здания с бассейнами для размещения общеобразовательных организаций на 1100 мест","Мощность",698,"Место",1100,null,120]
[{"$nulls":4},"Наличие бассейна",796,"Штука","Не менее двух"]
[{"$nulls":4},"Конструктивные особенности","-","-","Возможные значения: кирпично-монолитное здание, панельное здание"]
[{"$nulls":4},"Предельная цена за место",383,"Рубль","Не более 2 237 851,71"]
[null,869,"41.20.20","Здания нежилые. Пояснение по требуемой продукции: отдельно стоящие нежилые здания с бассейнами для размещения общеобразовательных организаций на 1125 мест","Мощность",698,"Место",1125,null,120]
[{"$nulls":4},"Наличие бассейна",796,"Штука","Не менее двух"]
[{"$nulls":4},"Конструктивные особенности","-","-","Возможные значения: кирпично-монолитное здание, панельное здание"]
[{"$nulls":4},"Предельная цена за место",383,"Рубль","Не более 2 229 410,17"]
[null,870,"41.20.20","Здания нежилые. Пояснение по требуемой продукции: отдельно стоящие нежилые здания с бассейнами для размещения общеобразовательных организаций на 1200 мест","Мощность",698,"Место",1200,null,120]
[{"$nulls":4},"Наличие бассейна",796,"Штука","Не менее двух"]
[{"$nulls":4},"Конструктивные особенности","-","-","Возможные значения: кирпично-монолитное здание, панельное здание"]
[{"$nulls":4},"Предельная цена за место",383,"Рубль","Не более 2 204 085,56"]
[null,871,"41.20.20","Здания нежилые. Пояснение по требуемой продукции: отдельно стоящие нежилые здания с бассейнами для размещения общеобразовательных организаций на 1375 мест","Мощность",698,"Место",1375,null,120]
[{"$nulls":4},"Наличие бассейна",796,"Штука","Не менее двух"]
[{"$nulls":4},"Конструктивные особенности","-","-","Возможные значения: кирпично-монолитное здание, панельное здание"]
[{"$nulls":4},"Предельная цена за место",383,"Рубль","Не более 2 144 994,81"]
[null,872,"41.20.20","Здания нежилые. Пояснение по требуемой продукции: отдельно стоящие нежилые здания с бассейнами для размещения общеобразовательных организаций на 1550 мест","Мощность",698,"Место",1550,null,120]
[{"$nulls":4},"Наличие бассейна",796,"Штука","Не менее двух"]
[{"$nulls":4},"Конструктивные особенности","-","-","Возможные значения: кирпично-монолитное здание, панельное здание"]
[{"$nulls":4},"Предельная цена за место",383,"Рубль","Не более 2 085 904,05"]
[null,873,"41.20.20","Здания нежилые. Пояснение по требуемой продукции: отдельно стоящие нежилые здания с бассейнами для размещения общеобразовательных организаций на 1650 мест","Мощность",698,"Место",1650,null,120]
[{"$nulls":4},"Наличие бассейна",796,"Штука","Не менее двух"]
[{"$nulls":4},"Конструктивные особенности","-","-","Возможные значения: кирпично-монолитное здание, панельное здание"]
[{"$nulls":4},"Предельная цена за место",383,"Рубль","Не более 2 052 137,90"]
[null,"873-1","41.20.20","Здания нежилые. Пояснение по требуемой продукции: отдельно стоящие нежилые здания с бассейнами для размещения общеобразовательных организаций на 1750 мест","Мощность",698,"Место",1750,null,120]
[{"$nulls":4},"Наличие бассейна",796,"Штука","Не менее двух"]
[{"$nulls":4},"Конструктивные особенности","-","-","Возможные значения: кирпично-монолитное здание, панельное здание"]
[{"$nulls":4},"Предельная цена за место",383,"Рубль","Не более 2 018 371,75"]
[null,874,"41.20.20","Здания нежилые. Пояснение по требуемой продукции: отдельно стоящие нежилые здания с бассейнами для размещения общеобразовательных организаций на 1925 мест","Мощность",698,"Место",1925,null,120]
[{"$nulls":4},"Наличие бассейна",796,"Штука","Не менее двух"]
[{"$nulls":4},"Конструктивные особенности","-","-","Возможные значения: кирпично-монолитное здание, панельное здание"]
[{"$nulls":4},"Предельная цена за место",383,"Рубль","Не более 1 959 280,99"]
[null,"2.10. Перечень товарных позиций части «Жилые помещения (квартиры)»"]
[null,875,"41.20.10","Здания жилые. Пояснение по требуемой продукции: жилые помещения (квартиры) общей площадью жилого помещения (квартиры) не более 42,00 кв. м, за исключением жилых помещений (квартир), в отношении которых установлены требования к доступности жилого помещения и общего имущества в многоквартирном доме для инвалида, приобретаемые путем участия \nСанкт-Петербурга в долевом строительстве многоквартирных домов со сроком ввода в эксплуатацию не позднее 31.12.2023","Конструктивные особенности","-","-","Возможные значения: панельное здание, кирпичное здание, блочное здание, кирпично-монолитное здание, монолитное здание",null,120]
[{"$nulls":4},"Общая площадь жилого помещения (квартиры)","055","Квадратный метр","Не более 42,00"]
[{"$nulls":4},"Предельная цена за 1 кв. м",383,"Рубль","Не более 177 634,91"]
[null,876,"41.20.10","Здания жилые. Пояснение по требуемой продукции: жилые помещения (квартиры) общей площадью жилого помещения (квартиры) не менее 42,01 кв. м и не более 67,00 кв. м, за исключением жилых помещений (квартир), в отношении которых установлены требования к доступности жилого помещения и общего имущества в многоквартирном доме для инвалида, приобретаемые путем участия Санкт-Петербурга в долевом строительстве многоквартирных домов со сроком ввода в эксплуатацию не позднее 31.12.2023","Конструктивные особенности","-","-","Возможные значения: панельное здание, кирпичное здание, блочное здание, кирпично-монолитное здание, монолитное здание",null,120]
[{"$nulls":4},"Общая площадь жилого помещения (квартиры)","055","Квадратный метр","Не менее 42,01 и не более 67,00"]
[{"$nulls":4},"Предельная цена за 1 кв. м",383,"Рубль","Не более 167 427,01"]
[null,877,"41.20.10","Здания жилые. Пояснение по требуемой продукции: жилые помещения (квартиры) общей площадью жилого помещения (квартиры) более 67,00 кв. м, за исключением жилых помещений (квартир), в отношении которых установлены требования к доступности жилого помещения и общего имущества в многоквартирном: доме для инвалида, приобретаемые путем участия \nСанкт-Петербурга в долевом строительстве многоквартирных домов со сроком ввода в эксплуатацию не позднее 31.12.2023","Конструктивные особенности","-","-","Возможные значения: панельное здание, кирпичное здание, блочное здание, кирпично-монолитное здание, монолитное здание",null,120]
[{"$nulls":4},"Общая площадь жилого помещения (квартиры)","055","Квадратный метр","Более 67,00"]
[{"$nulls":4},"Предельная цена за 1 кв. м",383,"Рубль","Не более 159 629,28"]
[null,878,"41.20.10","Здания жилые. Пояснение по требуемой продукции; жилые помещения (квартиры) общей площадью жилого помещения (квартиры) не более 42,00 кв. м, за исключением жилых помещений (квартир), в отношении которых установлены требования к доступности жилого помещения и общего имущества в многоквартирном доме для инвалида, приобретаемые путем участия Санкт-Петербурга в долевом строительстве многоквартирных домов со сроком ввода в эксплуатацию не позднее 31.12.2024","Конструктивные особенности","-","-","Возможные значения: панельное здание, кирпичное здание, блочное здание, кирпично-монолитное здание, монолитное здание",null,120]
[{"$nulls":4},"Общая площадь жилого помещения (квартиры)","055","Квадратный метр","Не более 42,00"]
[{"$nulls":4},"Предельная цена за 1 кв. м",383,"Рубль","Не более 169 162,35"]
[null,879,"41.20.10","Здания жилые. Пояснение по требуемой продукции: жилые помещения (квартиры) общей площадью жилого помещения (квартиры) не менее 42,01 кв. м и не более 67,00 кв. м, за исключением жилых помещений (квартир), в отношении которых установлены требования к доступности жилого помещения и общего имущества в многоквартирном доме для инвалида, приобретаемые путем участия Санкт-Петербурга в долевом строительстве многоквартирных домов со сроком ввода в эксплуатацию не позднее 31.12.2024","Конструктивные особенности","-","-","Возможные значения: панельное здание, кирпичное здание, блочное здание, кирпично-монолитное здание, монолитное здание",null,120]
[{"$nulls":4},"Общая площадь жилого помещения (квартиры)","055","Квадратный метр","Не менее 42,01 и не более 67,00"]
[{"$nulls":4},"Предельная цена за 1 кв. м",383,"Рубль","Не более 159 441,33"]
[null,880,"41.20.10","Здания жилые. Пояснение по требуемой продукции: жилые помещения (квартиры) общей площадью жилого помещения (квартиры) более 67,00 кв. м, за исключением жилых помещений (квартир), в отношении которых установлены требования к доступности жилого помещения и общего имущества в многоквартирном доме для инвалида, приобретаемые путем участия \nСанкт-Петербурга в долевом строительстве многоквартирных домов со сроком ввода в эксплуатацию не позднее 31.12.2024","Конструктивные особенности","-","-","Возможные значения: панельное здание, кирпичное здание, блочное здание, кирпично-монолитное здание, монолитное здание",null,120]
[{"$nulls":4},"Общая площадь жилого помещения (квартиры)","055","Квадратный метр","Более 67,00"]
[{"$nulls":4},"Предельная цена за 1 кв. м",383,"Рубль","Не более 152 015,53"]
[null,881,"41.20.10","Здания жилые. Пояснение по требуемой продукции: жилые помещения (квартиры) общей площадью жилого помещения (квартиры) не более 42,00 кв. м, за исключением жилых помещений (квартир), в отношении которых установлены требования к доступности жилого помещения и общего имущества в многоквартирном доме для инвалида, приобретаемые путем участия \nСанкт-Петербурга в долевом строительстве многоквартирных домов со сроком ввода в эксплуатацию не позднее 31.12.2025","Конструктивные особенности","-","-","Возможные значения: панельное здание, кирпичное здание, блочное здание, кирпично-монолитное здание, монолитное здание",null,120]
[{"$nulls":4},"Общая площадь жилого помещения (квартиры)","055","Квадратный метр","Не более 42,00"]
[{"$nulls":4},"Предельная цена за 1 кв. м",383,"Рубль","Не более 160 087,51"]
[null,882,"41.20.10","Здания жилые. Пояснение по требуемой продукции: жилые помещения (квартиры) общей площадью жилого помещения (квартиры) не менее 42,01 кв. м и не более 67,00 кв. м, за исключением жилых помещений (квартир), в отношении которых установлены требования к доступности жилого помещения и общего имущества в многоквартирном доме для инвалида, приобретаемые путем участия Санкт-Петербурга в долевом строительстве многоквартирных домов со сроком ввода в эксплуатацию не позднее 31.12.2025","Конструктивные особенности","-","-","Возможные значения: панельное здание, кирпичное здание, блочное здание, кирпично-монолитное здание, монолитное здание",null,120]
[{"$nulls":4},"Общая площадь жилого помещения (квартиры)","055","Квадратный метр","Не менее 42,01 и не более 67,00"]
[{"$nulls":4},"Предельная цена за 1 кв. м",383,"Рубль","Не более 150 887,98"]
[null,883,"41.20.10","Здания жилые. Пояснение по требуемой продукции: жилые помещения (квартиры) общей площадью жилого помещения (квартиры) более 67,00 кв. м, за исключением жилых помещений (квартир), в отношении которых установлены требования к доступности жилого помещения и общего имущества в многоквартирном доме для инвалида, приобретаемые путем участия Санкт-Петербурга в долевом строительстве многоквартирных домов со сроком ввода в эксплуатацию не позднее 31.12.2025","Конструктивные особенности","-","-","Возможные значения: панельное здание, кирпичное здание, блочное здание, кирпично-монолитное здание, монолитное здание",null,120]
[{"$nulls":4},"Общая площадь жилого помещения (квартиры)","055","Квадратный метр","Более 67,00"]
[{"$nulls":4},"Предельная цена за 1 кв. м",383,"Рубль","Не более 143 860,55"]
[null,"2.11. Перечень услуг по покупке и продаже жилых зданий и занимаемых ими земельных участков"]
[null,884,"68.10.11","Услуги по покупке и продаже жилых зданий и занимаемых ими земельных участков. Пояснение по требуемым услугам: услуги по покупке и продаже жилых помещений (квартир) в многоквартирных домах общей площадью жилого помещения (квартиры) не более 42,00 кв. м, за исключением жилых помещений (квартир), в отношении которых установлены требования к доступности жилого помещения и общего имущества в многоквартирном доме для инвалида","Конструктивные особенности зданий, в которых приобретаются жилые помещения (квартиры)","-","-","Возможные значения: панельное здание, кирпичное здание, блочное здание, кирпично-монолитное здание, монолитное здание",null,120]
[{"$nulls":4},"Общая площадь жилого помещения (квартиры)","055","Квадратный метр","Не более 42,00"]
[{"$nulls":4},"Предельная цена за 1 кв. м",383,"Рубль","Не более 177 634,91"]
[{"$nulls":4},"Предельная цена за 1 кв. м",383,"Рубль","Не более 177 634,91"]
[null,885,"68.10.11","Услуги по покупке и продаже жилых зданий и занимаемых ими земельных участков. Пояснение по требуемым услугам: услуги по покупке и продаже жилых помещений (квартир) в многоквартирных домах общей площадью жилого помещения (квартиры) не менее 42,01 кв. м и не более 67,00 кв. м, за исключением жилых помещений (квартир), в отношении которых установлены требования к доступности жилого помещения и общего имущества в многоквартирном доме для инвалида","Конструктивные особенности зданий, в которых приобретаются жилые помещения (квартиры)","-","-","Возможные значения: панельное здание, кирпичное здание, блочное здание, кирпично-монолитное здание, монолитное здание",null,120]
[{"$nulls":4},"Общая площадь жилого помещения (квартиры)","055","Квадратный метр","Не менее 42,01 и не более 67,00"]
[{"$nulls":4},"Предельная цена за 1 кв. м",383,"Рубль","Не более 167 427,01"]
[null,886,"68.10.11","Услуги по покупке и продаже жилых зданий и занимаемых ими земельных участков. Пояснение по требуемым услугам: услуги по покупке и продаже жилых помещений (квартир) в многоквартирных домах общей площадью жилого помещения (квартиры) более 67,00 кв. м, за исключением жилых помещений (квартир), в отношении которых установлены требования к доступности жилого помещения и общего имущества в многоквартирном доме для инвалида","Конструктивные особенности зданий, в которых приобретаются жилые помещения (квартиры)","-","-","Возможные значения: панельное здание, кирпичное здание, блочное здание, кирпично-монолитное здание, монолитное здание",null,120]
[{"$nulls":4},"Общая площадь жилого помещения (квартиры)","055","Квадратный метр","Более 67,00"]
[{"$nulls":4},"Предельная цена за 1 кв. м",383,"Рубль","Не более 159 629,28"]
[null,"2.12. Перечень работ по уборке помещений объектов образования и здравоохранения"]
[null,887,"81.21.10","Уборка внутренних помещений: мытье пола в помещениях, свободных от мебели","Единица измерения","055","Квадратный метр",1]
[{"$nulls":4},"Предельная цена за 1 кв. м",383,"Рубль","10,42"]
[null,{"$f":"MAX($B$2693:B2694)+1","v":888},"81.21.10","Уборка внутренних помещений: мытье пола с мебелью ","Единица измерения","055","Квадратный метр","1"]
[{"$nulls":4},"Предельная цена за 1 кв. м",383,"Рубль","13,43"]
[null,{"$f":"MAX($B$2693:B2696)+1","v":889},"81.21.10","Уборка внутренних помещений: мытье стен, дверей","Единица измерения","055","Квадратный метр","1"]
[{"$nulls":4},"Предельная цена за 1 кв. м",383,"Рубль","27,73"]
[null,{"$f":"MAX($B$2693:B2698)+1","v":890},"81.21.10","Уборка внутренних помещений: влажная вакуумная обработка пола поломоечной машиной","Единица измерения","055","Квадратный метр","1"]
[{"$nulls":4},"Предельная цена за 1 кв. м",383,"Рубль","2,48"]
[null,{"$f":"MAX($B$2693:B2700)+1","v":891},"81.21.10","Уборка внутренних помещений: влажная протирка пола в помещениях, свободных от мебели","Единица измерения","055","Квадратный метр","1"]
[{"$nulls":4},"Предельная цена за 1 кв. м",383,"Рубль","5,74"]
[null,{"$f":"MAX($B$2693:B2702)+1","v":892},"81.21.10","Уборка внутренних помещений: влажная протирка пола с мебелью","Единица измерения","055","Квадратный метр","1"]
[{"$nulls":4},"Предельная цена за 1 кв. м",383,"Рубль","8,00"]
[null,{"$f":"MAX($B$2693:B2704)+1","v":893},"81.21.10","Уборка внутренних помещений: чистка напольных ковровых покрытий","Единица измерения","055","Квадратный метр","1"]
[{"$nulls":4},"Предельная цена за 1 кв. м",383,"Рубль","5,34"]
[null,{"$f":"MAX($B$2693:B2706)+1","v":894},"81.21.10","Уборка внутренних помещений: чистка и дезинфекция керамической плитки пола","Единица измерения","055","Квадратный метр","1"]
[{"$nulls":4},"Предельная цена за 1 кв. м",383,"Рубль","22,46"]
[null,{"$f":"MAX($B$2693:B2708)+1","v":895},"81.21.10","Уборка внутренних помещений: чистка и дезинфекция керамической плитки стен","Единица измерения","055","Квадратный метр","1"]
[{"$nulls":4},"Предельная цена за 1 кв. м",383,"Рубль","20,15"]
[null,{"$f":"MAX($B$2693:B2710)+1","v":896},"81.29.19","Уборка внутренних помещений: чистка и дезинфекция раковин, унитазов, писсуаров","Единица измерения",796,"Штука","1"]
[{"$nulls":4},"Предельная цена за 1 штуку",383,"Рубль","72,31"]
[null,{"$f":"MAX($B$2693:B2712)+1","v":897},"81.21.10","Уборка внутренних помещений: чистка зеркал и стеклянных поверхностей","Единица измерения","055","Квадратный метр","1"]
[{"$nulls":4},"Предельная цена за 1 кв. м",383,"Рубль","29,04"]
[null,{"$f":"MAX($B$2693:B2714)+1","v":898},"81.21.10","Уборка внутренних помещений: влажная протирка вентиляционных решеток","Единица измерения","055","Квадратный метр","1"]
[{"$nulls":4},"Предельная цена за 1 кв. м",383,"Рубль","28,42"]
[null,{"$f":"MAX($B$2693:B2716)+1","v":899},"81.21.10","Уборка внутренних помещений: влажная протирка стен","Единица измерения","055","Квадратный метр","1"]
[{"$nulls":4},"Предельная цена за 1 кв. м",383,"Рубль","11,87"]
[null,{"$f":"MAX($B$2693:B2718)+1","v":900},"81.21.10","Уборка внутренних помещений: влажная протирка дверей","Единица измерения","055","Квадратный метр","1"]
[{"$nulls":4},"Предельная цена за 1 кв. м",383,"Рубль","19,44"]
[null,{"$f":"MAX($B$2693:B2720)+1","v":901},"81.29.19","Уборка внутренних помещений: влажная протирка приборов (радиаторов) отопительных","Единица измерения",796,"Штука","1"]
[{"$nulls":4},"Предельная цена за 1 штуку",383,"Рубль","36,56"]
[null,{"$f":"MAX($B$2693:B2722)+1","v":902},"81.29.19","Уборка внутренних помещений: влажная протирка столов","Единица измерения",796,"Штука","1"]
[{"$nulls":4},"Предельная цена за 1 штуку",383,"Рубль","25,51"]
[null,{"$f":"MAX($B$2693:B2724)+1","v":903},"81.21.10","Уборка внутренних помещений: влажная протирка плинтусов","Единица измерения","055","Квадратный метр","1"]
[{"$nulls":4},"Предельная цена за 1 кв. м",383,"Рубль","32,93"]
[null,{"$f":"MAX($B$2693:B2726)+1","v":904},"81.21.10","Уборка внутренних помещений: влажная протирка открытых поверхностей мебели, стеллажей","Единица измерения","055","Квадратный метр","1"]
[{"$nulls":4},"Предельная цена за 1 кв. м",383,"Рубль","9,32"]
[null,{"$f":"MAX($B$2693:B2728)+1","v":905},"81.21.10","Уборка внутренних помещений: влажная протирка стендов","Единица измерения","055","Квадратный метр","1"]
[{"$nulls":4},"Предельная цена за 1 кв. м",383,"Рубль","29,63"]
[null,{"$f":"MAX($B$2693:B2730)+1","v":906},"81.29.19","Уборка внутренних помещений: влажная протирка шкафов","Единица измерения",796,"Штука","1"]
[{"$nulls":4},"Предельная цена за 1 штуку",383,"Рубль","18,00"]
[null,{"$f":"MAX($B$2693:B2732)+1","v":907},"81.29.19","Уборка внутренних помещений: влажная протирка диванов","Единица измерения",796,"Штука","1"]
[{"$nulls":4},"Предельная цена за 1 штуку",383,"Рубль","33,01"]
[null,{"$f":"MAX($B$2693:B2734)+1","v":908},"81.21.10","Уборка внутренних помещений: сухая протирка стендов, панелей и т.д.","Единица измерения","055","Квадратный метр","1"]
[{"$nulls":4},"Предельная цена за 1 кв. м",383,"Рубль","24,08"]
[null,{"$f":"MAX($B$2693:B2736)+1","v":909},"81.29.19","Уборка внутренних помещений: сухая протирка столов, шкафов","Единица измерения",796,"Штука","1"]
[{"$nulls":4},"Предельная цена за 1 штуку",383,"Рубль","15,05"]
[null,{"$f":"MAX($B$2693:B2738)+1","v":910},"81.29.19","Уборка внутренних помещений: очистка мусорных корзин от мусора","Единица измерения",796,"Штука","1"]
[{"$nulls":4},"Предельная цена за 1 штуку",383,"Рубль","7,51"]
[null,{"$f":"MAX($B$2693:B2740)+1","v":911},"81.21.10","Уборка внутренних помещений лестничных клеток: влажное подметание лестничных площадок и маршей без оборудования нижних трех этажей","Единица измерения","055","Квадратный метр","1"]
[{"$nulls":4},"Предельная цена за 1 кв. м",383,"Рубль","6,77"]
[null,{"$f":"MAX($B$2693:B2742)+1","v":912},"81.21.10","Уборка внутренних помещений лестничных клеток: влажное подметание лестничных площадок и маршей, без оборудования выше третьего этажа","Единица измерения","055","Квадратный метр","1"]
[{"$nulls":4},"Предельная цена за 1 кв. м",383,"Рубль","5,17"]
[null,{"$f":"MAX($B$2693:B2744)+1","v":913},"81.21.10","Уборка внутренних помещений лестничных клеток: влажное подметание лестничных площадок и маршей, оборудованных лифтами нижних трех этажей","Единица измерения","055","Квадратный метр","1"]
[{"$nulls":4},"Предельная цена за 1 кв. м",383,"Рубль","8,14"]
[null,{"$f":"MAX($B$2693:B2746)+1","v":914},"81.21.10","Уборка внутренних помещений лестничных клеток: влажное подметание лестничных площадок и маршей, оборудованных лифтами выше третьего этажа","Единица измерения","055","Квадратный метр","1"]
[{"$nulls":4},"Предельная цена за 1 кв. м",383,"Рубль","7,09"]
[null,{"$f":"MAX($B$2693:B2748)+1","v":915},"81.21.10","Уборка внутренних помещений лестничных клеток: влажное подметание лестничных площадок и маршей, оборудованных лифтами и мусоропроводом нижних трех этажей","Единица измерения","055","Квадратный метр","1"]
[{"$nulls":4},"Предельная цена за 1 кв. м",383,"Рубль","9,31"]
[null,{"$f":"MAX($B$2693:B2750)+1","v":916},"81.21.10","Уборка внутренних помещений лестничных клеток: влажное подметание лестничных площадок и маршей, оборудованных лифтами и мусоропроводом выше третьего этажа","Единица измерения","055","Квадратный метр","1"]
[{"$nulls":4},"Предельная цена за 1 кв. м",383,"Рубль","8,14"]
[null,{"$f":"MAX($B$2693:B2752)+1","v":917},"81.21.10","Уборка внутренних помещений лестничных клеток: мытье лестничных площадок и маршей без оборудования нижних трех этажей","Единица измерения","055","Квадратный метр","1"]
[{"$nulls":4},"Предельная цена за 1 кв. м",383,"Рубль","21,04"]
[null,{"$f":"MAX($B$2693:B2754)+1","v":918},"81.21.10","Уборка внутренних помещений лестничных клеток: мытье лестничных площадок и маршей без оборудования выше третьего этажа","Единица измерения","055","Квадратный метр","1"]
[{"$nulls":4},"Предельная цена за 1 кв. м",383,"Рубль","18,07"]
[null,{"$f":"MAX($B$2693:B2756)+1","v":919},"81.21.10","Уборка внутренних помещений лестничных клеток: мытье лестничных площадок и маршей, оборудованных лифтами нижних трех этажей","Единица измерения","055","Квадратный метр","1"]
[{"$nulls":4},"Предельная цена за 1 кв. м",383,"Рубль","16,01"]
[null,{"$f":"MAX($B$2693:B2758)+1","v":920},"81.21.10","Уборка внутренних помещений лестничных клеток: мытье лестничных площадок и маpшей, оборудованных лифтами выше третьего этажа","Единица измерения","055","Квадратный метр","1"]
[{"$nulls":4},"Предельная цена за 1 кв. м",383,"Рубль","14,48"]
[null,{"$f":"MAX($B$2693:B2760)+1","v":921},"81.21.10","Уборка внутренних помещений лестничных клеток: обметание пыли с потолков","Единица измерения","055","Квадратный метр","1"]
[{"$nulls":4},"Предельная цена за 1 кв. м",383,"Рубль","7,64"]
[null,{"$f":"MAX($B$2693:B2762)+1","v":922},"81.21.10","Уборка внутренних помещений лестничных клеток: влажная уборка стен","Единица измерения","055","Квадратный метр","1"]
[{"$nulls":4},"Предельная цена за 1 кв. м",383,"Рубль","11,11"]
[null,{"$f":"MAX($B$2693:B2764)+1","v":923},"81.21.10","Уборка внутренних помещений лестничных клеток: влажная протирка дверей","Единица измерения","055","Квадратный метр","1"]
[{"$nulls":4},"Предельная цена за 1 кв. м",383,"Рубль","16,37"]
[null,{"$f":"MAX($B$2693:B2766)+1","v":924},"81.21.10","Уборка внутренних помещений лестничных клеток: влажная протирка подоконников","Единица измерения","055","Квадратный метр","1"]
[{"$nulls":4},"Предельная цена за 1 кв. м",383,"Рубль","16,28"]
[null,{"$f":"MAX($B$2693:B2768)+1","v":925},"81.21.10","Уборка внутренних помещений лестничных клеток: влажная протирка оконных ограждений","Единица измерения","055","Квадратный метр","1"]
[{"$nulls":4},"Предельная цена за 1 кв. м",383,"Рубль","15,68"]
[null,{"$f":"MAX($B$2693:B2770)+1","v":926},"81.29.19","Уборка внутренних помещений лестничных клеток: влажная протирка шкафов для щитов и слаботочных устройств","Единица измерения",796,"Штука","1"]
[{"$nulls":4},"Предельная цена за 1 штуку",383,"Рубль","5,94"]
[null,{"$f":"MAX($B$2693:B2772)+1","v":927},"81.21.10","Уборка внутренних помещений лестничных клеток: влажная протирка приборов (радиаторов) отопительных","Единица измерения","055","Квадратный метр","1"]
[{"$nulls":4},"Предельная цена за 1 кв. м",383,"Рубль","20,29"]
[null,{"$f":"MAX($B$2693:B2774)+1","v":928},"81.21.10","Уборка внутренних помещений лестничных клеток: влажная протирка перил","Единица измерения","055","Квадратный метр","1"]
[{"$nulls":4},"Предельная цена за 1 кв. м",383,"Рубль","13,19"]
[null,{"$f":"MAX($B$2693:B2776)+1","v":929},"81.29.19","Уборка внутренних помещений лестничных клеток: влажная протирка плафонов с периодической заменой воды и моющего раствора","Единица измерения",796,"Штука","1"]
[{"$nulls":4},"Предельная цена за 1 штуку",383,"Рубль","6,41"]
[null,{"$f":"MAX($B$2693:B2778)+1","v":930},"81.21.10","Уборка внутренних помещений лестничных клеток: влажная протирка чердачных лестниц","Единица измерения","055","Квадратный метр","1"]
[{"$nulls":4},"Предельная цена за 1 кв. м",383,"Рубль","10,43"]
[null,{"$f":"MAX($B$2693:B2780)+1","v":931},"81.21.10","Уборка внутренних помещений лестничных клеток: уборка лифтовых кабин","Единица измерения","055","Квадратный метр","1"]
[{"$nulls":4},"Предельная цена за 1 кв. м",383,"Рубль","57,79"]
[null,{"$f":"MAX($B$2693:B2782)+1","v":932},"81.22.11","Уборка внутренних помещений и лестничных клеток: мытье окон","Единица измерения","055","Квадратный метр","1"]
[{"$nulls":4},"Предельная цена за 1 кв. м",383,"Рубль","44,42"]
[null,"2.13. Перечень предметов обихода для оборудования квартир, предоставляемых детям-сиротам по договорам найма специализированного жилищного фонда Санкт-Петербурга"]
[{"$nulls":4},"В соответствии с кодом конечного каталожного наименования (ККН)",null,null,"Предельная цена (руб. с НДС)"]
[null,933,"25.99.29","Изделия прочие из недрагоценных металлов, не включенные в другие группировки. Пояснение по требуемой продукции: карниз для ванной","25.99.29.190-024",796,"Штука",397.25]
[null,934,"22.29.23","Посуда столовая и кухонная, прочие предметы домашнего обихода и предметы туалета пластмассовые. Пояснение по требуемой продукции: ведро мусорное","22.29.23.120-041",796,"Штука",768.97]
[null,{"$f":"MAX($B$2787:B2788)+1","v":935},"32.91.11","Метлы и щетки для домашней уборки. Пояснение по требуемой продукции: комплект для уборки (набор для уборки совок и щетка)","32.91.11.000-012",839,"Комплект",279.33]
[null,{"$f":"MAX($B$2787:B2789)+1","v":936},"22.29.23","Посуда столовая и кухонная, прочие предметы домашнего обихода и предметы туалета пластмассовые. Пояснение по требуемой продукции: штора для ванной","22.29.23.120-031",796,"Штука",497.4]
[null,{"$f":"MAX($B$2787:B2790)+1","v":937},"31.09.11","Мебель металлическая, не включенная в другие группировки. Пояснение по требуемой продукции: доска гладильная","31.09.11.190-032",796,"Штука",2595.13]
[null,{"$f":"MAX($B$2787:B2791)+1","v":938},"25.99.29","Изделия прочие из недрагоценных металлов, не включенные в другие группировки. Пояснение по требуемой продукции: сушилка для белья","25.99.29.190-016",796,"Штука",1794.38]
[null,{"$f":"MAX($B$2787:B2792)+1","v":939},"25.99.29","Изделия из недрагоценных металлов прочие, не включенные в другие группировки. Пояснение по требуемой продукции: карниз","25.99.29.190-025",796,"Штука","2914,76"]
[{"$nulls":4},"25.99.29.190-026",796,"Штука","1827,67"]
[null,{"$f":"MAX($B$2787:B2794)+1","v":940},"31.09.11","Мебель металлическая, не включенная в другие группировки. Пояснение по требуемой продукции: вешалка металлическая","31.09.11.120-007",796,"Штука",3614.72]
[null,{"$f":"MAX($B$2787:B2795)+1","v":941},"23.12.13","Зеркала стеклянные, изделия из стекла изолирующие многослойные. Пояснение по требуемой продукции: зеркало","23.12.13.119-001",796,"Штука",3526.54]
[null,{"$f":"MAX($B$2787:B2796)+1","v":942},"31.02.10","Мебель кухонная. Пояснение по требуемой продукции: мебель кухонная (набор)","31.02.10.140-001",796,"Штука",67821.27]
[null,{"$f":"MAX($B$2787:B2797)+1","v":943},"31.02.10","Мебель кухонная. Пояснение по требуемой продукции: стол обеденный","31.02.10.110-001",796,"Штука",5746.02]
[null,{"$f":"MAX($B$2787:B2798)+1","v":944},"31.01.11","Мебель металлическая для офисов. Пояснение по требуемой продукции: табурет","31.01.11.150-051",796,"Штука",1892.5]
[null,{"$f":"MAX($B$2787:B2799)+1","v":945},"31.09.12","Мебель деревянная для спальни, столовой и гостиной. Пояснение по требуемой продукции: диван","31.09.12.119-001",796,"Штука",40011.449999999997]
[null,{"$f":"MAX($B$2787:B2800)+1","v":946},"31.09.12","Мебель деревянная для спальни, столовой и гостиной. Пояснение по требуемой продукции: комод","31.09.12.129-002",796,"Штука",8543.73]
[null,{"$f":"MAX($B$2787:B2801)+1","v":947},"31.01.12","Мебель деревянная для офисов. Пояснение по требуемой продукции: стул на деревянном каркасе","31.01.12.160-004",796,"Штука",7180.09]
[null,{"$f":"MAX($B$2787:B2802)+1","v":948},"31.01.12","Мебель деревянная для офисов. Пояснение по требуемой продукции: шкаф для одежды деревянный","31.01.12.131-001",796,"Штука",11878.54]
[null,{"$f":"MAX($B$2787:B2803)+1","v":949},"31.09.13","Мебель деревянная, не включенная в другие группировки. Пояснение по требуемой продукции: шкаф для ванной комнаты","31.09.13.110-002",796,"Штука",7235.53]
[null,{"$f":"MAX($B$2787:B2804)+1","v":950},"27.51.11","Холодильники и морозильники бытовые. Пояснение по требуемой продукции: холодильник бытовой","27.51.11.110-002",796,"Штука",24306.82]
[null,{"$f":"MAX($B$2787:B2805)+1","v":951},"27.51.13","Машины стиральные бытовые и машины для сушки одежды. Пояснение по требуемой продукции: машина стиральная бытовая","27.51.13.110-001",796,"Штука",24597.439999999999]
[null,{"$f":"MAX($B$2787:B2806)+1","v":952},"27.51.23","Приборы электротермические для укладки волос или для сушки рук; электрические утюги. Пояснение по требуемой продукции: утюг электрический бытовой","27.51.23.130-001",796,"Штука",1707.67]
[null,{"$f":"MAX($B$2787:B2807)+1","v":953},"27.51.24","Приборы электронагревательные прочие. Пояснение по требуемой продукции: электрочайник бытовой","27.51.24.110-001",796,"Штука",1300.83]
[]
[]
[null,"--------------------------------"]
[null,"х  Заполняется в соответствии с пунктом 2 Правил определения требований к закупаемым государственными органами Санкт-Петербурга, органом управления территориальным государственным внебюджетным фондом и подведомственными  им казенными учреждениями, бюджетными "]
[null,"учреждениями и государственными унитарными предприятиями отдельным видам товаров, работ, услуг (в том числе предельных цен товаров, работ, услуг), утвержденных постановлением Правительства Санкт-Петербурга от 15.06.2016 № 489."]
[null,"****  В связи с внесением изменений в Общероссийский классификатор продукции по видам экономической деятельности (ОКПД2) ОК 034-2014 (КПЕС 2008), утв. Приказом Росстандарта от 31.01.2014 № 14-ст."]
[]
[null,"Принятые сокращения:"]
[null,"ОКПД2 - ОК 034-2014 Общероссийский классификатор продукции по видам экономической деятельности "]
[null,"ОКЕИ - Общероссийский классификатор единиц измерения"]
[null,"Сеть «Интернет» - информационно-телекоммуникационная сеть «Интернет»"]
[null,"МОП - многоразовая насадка для флаундера (швабры)"]
[null,"НДС - налог на добавленную стоимость"]